Workbook

Sheet Caratula Resumen
D12: FORMATOS ENTREGADOS PARA DAR CUMPLIMIENTO AL ARTICULO 73 DE "LA LEY GENERAL DE CONTABILIDAD GUBERNAMENTAL"
C21: Entidad Federativa : | D21: NAYARIT
C22: Fondo : | D22: Fondo de Aportaciones para la Educación Tecnológica y de Adultos/Instituto Nacional para la Educación de los Adultos (FAETA/INEA)
C23: Periodo : | D23: 1er. Trimestre
H32: TOTAL REGISTROS | J32: Num. de Paginas | L32: TOTAL PERSONAS | N32: TOTAL PLAZAS | P32: Total Pto. Federal | R32: Total Ppto. Otras Fuentes
B35: 1 | C35: A Y II D3 | D35: Personal Comisionado | H35: ='A Y II D3'!N21 -> 4 | J35: 1 | L35: =H35 -> 4 | N35: =H35 -> 4 | P35: ='A Y II D3'!Q21 -> 246303.09 | R35: ='A Y II D3'!R21 -> 0
B36: 2 | C36: A Y II D4 | D36: Personal con Licencia | H36: ='A Y II D4'!E42 -> 8 | J36: 1 | L36: =H36 -> 8 | N36: =H36:H36 -> 8 | P36: ='A Y II D4'!P44 -> 104256.42 | R36: ='A Y II D4'!Q44 -> 0
B37: 3 | C37: B) | D37: Registro Federal de Contribuyentes de Trabajadores con Pagos Retroactivos con un Periodo Mayor a 45 días | H37: 0 | J37: 1 | L37: 0 | N37: 0 | P37: N/A | R37: N/A
B38: 4 | C38: II B) Y 1 | D38: Plaza / Función | H38: ='II B) Y 1'!B179 -> 159 | J38: 4 | L38: =H38 -> 159 | N38: N/A | P38: N/A | R38: N/A
B39: 5 | C39: II C y 1_ | D39: Personal Federalizado por Registro Federal de Contribuyentes | H39: 159 | J39: 3 | L39: =H39 -> 159 | N39: N/A | P39: ='II C y 1_'!T175 -> 7672029.08 | R39: N/A
B40: 6 | C40: II D) 2 | D40: Movimientos de Plazas | H40: ='II D) 2'!M20 -> 288 | J40: 1 | L40: =H40 -> 288 | N40: =H40 -> 288 | P40: N/A | R40: N/A
B41: 7 | C41: II D) 4 | D41: Trabajadores Jubilados en el Periodo | H41: ='II D) 4'!C23 -> 2 | J41: 1 | L41: =H41 -> 2 | N41: =H41 -> 2 | P41: N/A | R41: N/A
B42: 8 | C42: II D) 4 A | D42: Trabajadores que Tramitaron Licencia Prejubilatoria en el Periodo | H42: ='II D) 4 A'!D20 -> 3 | J42: 1 | L42: =H42 -> 3 | N42: =H42 -> 3 | P42: ='II D) 4 A'!P20 -> 186689.97 | R42: ='II D) 4 A'!Q20 -> 0
B43: 9 | C43: II D) 6 | D43: Trabajadores Contratados por Honorarios en el Periodo | H43: ='II D) 6'!D31 -> 12 | J43: 1 | L43: 12 | N43: N/A | P43: N/A | R43: N/A
B44: 10 | C44: II D) 7 1 | D44: Analítico de Categorías / Plazas Autorizadas con su Tabulador | H44: 24 | J44: 1 | L44: N/A | N44: N/A | P44: N/A | R44: N/A
B45: 11 | C45: II D) 7 2 | D45: Catálogo de Categorías y Tabuladores | H45: 735 | J45: 20 | L45: N/A | N45: N/A | P45: N/A | R45: N/A
B46: 12 | C46: II D) 7 3 | D46: Catálogo de Percepciones y Deducciones | H46: 117 | J46: 3 | L46: N/A | N46: N/A | P46: N/A | R46: N/A
B47: 13 | C47: E) | D47: Trabajadores que Cobran con RFC / CURP con Formato Incorrecto | H47: 0 | J47: 1 | L47: 0 | N47: N/A | P47: N/A | R47: N/A
B48: 14 | C48: F) 1 | D48: Trabajadores con Doble Asignación Salarial en Municipios no Colindantes Geográficamente | H48: 0 | J48: 1 | L48: 0 | N48: N/A | P48: N/A | R48: N/A
B49: 15 | C49: F) 2 | D49: Trabajadores Ocupando Plazas que Superan el Número de Horas de Compatibilidad Autorizadas | H49: 0 | J49: 1 | L49: 0 | N49: 0 | P49: N/A | R49: N/A
B50: 16 | C50: G) | D50: Trabajadores Cuyo Salario Básico Supere los Ingresos Promedio de un Docente en la Categoría más Alta del Tabulador Salarial Correspondiente a Cada Entidad | H50: 0 | J50: 1 | L50: 0 | N50: N/A | P50: N/A | R50: N/A
C63: LIC. LIZETH DEL ROCIO NUÑEZ ORTEGA
C64: Nombre del Responsable
C66: JEFA DEL DEPARTAMENTO DE ADMINISTRACION
C67: Cargo
C70: Firma
C72: 2020-04-03
C73: Fecha

Sheet A Y II D3
C9: Formato: Personal Comisionado
C10: =IF('Caratula Resumen'!D22="Elige el Periodo…","",'Caratula Resumen'!D22) -> Fondo de Aportaciones para la Educación Tecnológica y de Adultos/Instituto Nacional para la Educación de los Adultos (FAETA/INEA) | Y10: =IF('Caratula Resumen'!D23="Elige el Periodo…","",'Caratula Resumen'!D23) -> 1er. Trimestre
C13: Entidad Federativa | D13: R.F.C. | E13: CURP | F13: Nombre | G13: Clave integrada | H13: Clave Presupuestal | O13: Fecha Comisión | Q13: Percepciones pagadas en el Periodo de Comisión con Presupuesto Federal* | R13: Percepciones pagadas en el Periodo de Comisión con Presupuesto de otra fuente* | S13: Clave CT Origen | T13: CT Destino dentro del sector | V13: Lugar de la comisión fuera del sector educativo | W13: Tipo de Comisión | X13: Función Específica | Y13: Objeto de la comision | Z13: No. Oficio
H14: Partida Presupuestal | I14: Código de Pago | J14: Clave de Unidad | K14: Clave de Sub Unidad | L14: Clave de Categoría | M14: Horas Semana Mes | N14: Número de Plaza | O14: Inicio | P14: Conclusión | T14: Clave | U14: Turno
C16: Entidad Federativa | D16: R.F.C. | E16: CURP | F16: Nombre | G16: Clave integrada | H16: Partida Presupuestal | I16: Código de Pago | J16: Clave de Unidad | K16: Clave de Sub Unidad | L16: Clave de Categoría | M16: Horas Semana Mes | N16: Número de Plaza | O16: Fecha Comisión Inicio | P16: Fecha Comisión Conclusión | Q16: Percepciones pagadas en el Periodo de Comisión con Presupuesto Federal* | R16: Percepciones pagadas en el Periodo de Comisión con Presupuesto de otra fuente* | S16: Clave CT Origen | T16: Clave | U16: Turno | V16: Lugar de la comisión fuera del sector educativo | W16: Tipo de Comisión | X16: Función Específica | Y16: Objeto de la comision | Z16: No. Oficio
C17: NAYARIT | D17: VIAB780203S93 | E17: VIAB780203HNTLLS09 | F17: BASILIO VILLASEÑOR ALCANTAR | G17: 8310101715TO382000.084 | H17: 83101 | I17: 01 | J17: 7 | K17: 15 | L17: T03820 | M17: 00.0 | N17: 84 | O17: 20141031 | P17: 99999999 | Q17: 60630.33 | R17: 0 | S17: 18FIA0001J | T17: 18FIA0001J | U17: 100 | V17: Tepic Nayarit San luis #120. Col. centro | W17: a | X17: REPRESENTAR AL SINDICATO | Y17: SECRETARIO GENERAL | Z17: DPAyE/1697/2014
C18: NAYARIT | D18: VARE720715LZ0 | E18: VARE720715MNTRMN06 | F18: ENRIQUETA VARGAS ROMERO | G18: 8310101714T032000.0917 | H18: 83101 | I18: 02 | J18: 7 | K18: 14 | L18: T03821 | M18: 00.1 | N18: 91 | O18: 20141031 | P18: 99999999 | Q18: 63823.23 | R18: 0 | S18: 18FIA0001J | T18: 18FIA0001J | U18: 100 | V18: Tepic Nayarit San luis #120. Col. centro | W18: a | X18: REPRESENTAR AL SINDICATO | Y18: SECRETARIA DE ORGANIZACIÓN Y FINANZAS | Z18: DPAyE/1697/2014
C19: NAYARIT | D19: AISG630112M7A | E19: AISG630112MNTMND00 | F19: MARIA GUADALUPE AMBRIZ SANDOVAL | G19: 8310101714T0382000.01147 | H19: 83101 | I19: 03 | J19: 7 | K19: 14 | L19: T03822 | M19: 00.2 | N19: 114 | O19: 20141031 | P19: 99999999 | Q19: 60428.71 | R19: 0 | S19: 18FIA0001J | T19: 18FIA0001J | U19: 100 | V19: Tepic Nayarit San luis #120. Col. centro | W19: a | X19: REPRESENTAR AL SINDICATO | Y19: SECRETARIA DE HONOR Y JUSTICIA | Z19: DPAyE/1697/2014
C20: NAYARIT | D20: MAMD710507CG4 | E20: MAMD710507MNTRRL06 | F20: DALIA CARMINA MARES MORA | G20: 831010126A0180700.054 | H20: 83101 | I20: 01 | J20: 2 | K20: 6 | L20: A01807 | M20: 00.0 | N20: 54 | O20: 20141031 | P20: 99999999 | Q20: 61420.82 | R20: 0 | S20: 18FIA0001J | T20: 18FIA0001J | U20: 100 | V20: Tepic Nayarit San luis #120. Col. centro | W20: a | X20: REPRESENTAR AL SINDICATO | Y20: SECRETARIA DE TRABAJO Y CONFLICTOS | Z20: DPAyE/1697/2014
C21: Total Personas : | D21: 4 | L21: Total Plazas : | N21: 4 | O21: Total Pto. Federal | Q21: =SUM(Q17:Q20) -> 246303.09
N23: Total Ppto. Otras Fuentes | Q23: 4
C25: *Total de Percepciones reportadas por la Entidad Federativa como pagadas al trabajador durante la comisión.
C26: Fuente : Información proporcionada por las Entidades Federativas.

Sheet B)
B9: Formato: Registro Federal de Contribuyentes de Trabajadores con Pagos Retroactivos con un Periodo Mayor a 45 días
B10: =IF('Caratula Resumen'!D22="Elige el Periodo…","",'Caratula Resumen'!D22) -> Fondo de Aportaciones para la Educación Tecnológica y de Adultos/Instituto Nacional para la Educación de los Adultos (FAETA/INEA) | R10: =IF('Caratula Resumen'!D23="Elige el Periodo…","",'Caratula Resumen'!D23) -> 1er. Trimestre
B13: Entidad Federativa | C13: RFC | D13: CURP | E13: Nombre | F13: Clave Presupuestal | M13: Clave de Centro de Trabajo | N13: Fecha de emisión de pago | O13: Motivo del Pago Retroactivo | P13: Periodo pagado | R13: Días transcurridos para el pago | S13: Percepciones pagadas en el periodo reportado *
F14: Partida Presupuestal | G14: Código de Pago | H14: Clave de Unidad | I14: Clave de Sub Unidad | J14: Clave de Categoría | K14: Horas Semana Mes | L14: Número de Plaza | P14: Desde | Q14: Hasta
B16: Entidad Federativa | C16: RFC | D16: CURP | E16: Nombre | F16: Partida Presupuestal | G16: Código de Pago | H16: Clave de Unidad | I16: Clave de Sub Unidad | J16: Clave de Categoría | K16: Horas semana mes | L16: Número de plaza | M16: Clave de Centro de Trabajo | N16: Fecha de emisión de pago | O16: Motivo del Pago Retroactivo | P16: Periodo pagado Desde | Q16: Periodo pagado Hasta | R16: Días transcurridos para el pago | S16: Percepciones pagadas en el periodo reportado *
B24: Total Personas : | K24: Total Plazas : | P24: Total Percepciones Pagadas:
B28: *Total de Percepciones reportadas por la Entidad Federativa como pagadas en el periodo
B29: Fuente : Información proporcionada por las Entidades Federativas

Sheet A Y II D4
B9: Formato: Personal con Licencia
B10: =IF('Caratula Resumen'!D22="Elige el Periodo…","",'Caratula Resumen'!D22) -> Fondo de Aportaciones para la Educación Tecnológica y de Adultos/Instituto Nacional para la Educación de los Adultos (FAETA/INEA) | U10: =IF('Caratula Resumen'!D23="Elige el Periodo…","",'Caratula Resumen'!D23) -> 1er. Trimestre
B13: Entidad Federativa | C13: R.F.C. | D13: CURP | E13: NOMBRE | F13: Clave integrada | G13: Clave Presupuestal | N13: Periodo Licencia | P13: Percepciones pagadas en el Periodo de la Licencia con Presupuesto Federal* | Q13: Percepciones pagadas en el Periodo de la Licencia con Presupuesto de otra fuente* | R13: Clave CT Origen | S13: Licencia | U13: Descripción de la Licencia
G14: Partida Presupuestal | H14: Código de Pago | I14: Clave de Unidad | J14: Clave de Sub Unidad | K14: Clave de Categoría | L14: Horas Semana Mes | M14: Número de Plaza | N14: Inicio | O14: Conclusión | S14: Clave | T14: Tipo
B16: Entidad Federativa | C16: R.F.C. | D16: CURP | E16: NOMBRE | F16: Clave integrada | G16: Partida Presupuestal | H16: Código de Pago | I16: Clave de Unidad | J16: Clave de Sub Unidad | K16: Clave de Categoría | L16: Horas Semana Mes | M16: Número de Plaza | N16: Periodo Licencia Inicio | O16: Periodo Licencia Conclusión | P16: Percepciones pagadas en el Periodo de la Licencia con Presupuesto Federal* | Q16: Percepciones pagadas en el Periodo de la Licencia con Presupuesto de otra fuente* | R16: Clave CT Origen | S16: Licencia Clave | T16: Licencia Tipo | U16: Descripción de la Licencia
B17: NAYARIT | C17: AEMF710709245 | D17: AEMF710709MNTLRB09 | E17: ALMEJO MORENO FABIOLA | F17: 831010138T0382300.052 | G17: 83101 | H17: 1 | I17: 3 | J17: 8 | K17: T03823 | L17: 0 | M17: 52 | N17: 2020-01-06 | O17: 2020-01-12 | P17: 4749.15 | Q17: 0 | R17: 18FIA0001J | S17: 22 | T17: CON GOCE DE SUELDO | U17: POR INCAPACIDAD MEDICA
B18: NAYARIT | C18: AEMF710709245 | D18: AEMF710709MNTLRB09 | E18: ALMEJO MORENO FABIOLA | F18: 831010138T0382300.053 | G18: 83101 | H18: 1 | I18: 3 | J18: 8 | K18: T03824 | L18: 0 | M18: 52 | N18: 2020-01-13 | O18: 2020-01-19 | P18: 4749.15 | Q18: 0 | R18: 18FIA0001J | S18: 22 | T18: CON GOCE DE SUELDO | U18: POR INCAPACIDAD MEDICA
B19: NAYARIT | C19: AEMF710709245 | D19: AEMF710709MNTLRB09 | E19: ALMEJO MORENO FABIOLA | F19: 831010138T0382300.053 | G19: 83101 | H19: 1 | I19: 3 | J19: 8 | K19: T03824 | L19: 0 | M19: 52 | N19: 2020-01-20 | O19: 2020-01-26 | P19: 4749.15 | Q19: 0 | R19: 18FIA0001J | S19: 22 | T19: CON GOCE DE SUELDO | U19: POR INCAPACIDAD MEDICA
B20: NAYARIT | C20: BARC731208RP3 | D20: BARC731208MNTRNN03 | E20: BARRERA RENTERIA MARIA CONCEPCION | F20: 8310101411T0382300.029 | G20: 83101 | H20: 1 | I20: 4 | J20: 11 | K20: T03823 | L20: 0 | M20: 29 | N20: 2020-01-20 | O20: 2020-01-20 | P20: 668.99 | Q20: 0 | R20: 18FIA0001J | S20: 22 | T20: CON GOCE DE SUELDO | U20: POR INCAPACIDAD MEDICA
B21: NAYARIT | C21: FOQA671014667 | D21: FOQA671014MNTLZG06 | E21: ARIAS SIMENTAL JOSEFINA | F21: 831010126A0180700.028 | G21: 83101 | H21: 1 | I21: 2 | J21: 6 | K21: A01807 | L21: 0 | M21: 28 | N21: 2020-01-29 | O21: 2020-02-04 | P21: 4083.1 | Q21: 0 | R21: 18FIA0001J | S21: 22 | T21: CON GOCE DE SUELDO | U21: POR INCAPACIDAD MEDICA
B22: NAYARIT | C22: RERS631103S43 | D22: RERS631103MNTNJL01 | E22: REINOSO ROJAS SILVIA | F22: 8310101714T0382000.0165 | G22: 83101 | H22: 1 | I22: 7 | J22: 14 | K22: T03820 | L22: 0 | M22: 165 | N22: 2020-01-13 | O22: 2020-02-02 | P22: 14202.09 | Q22: 0 | R22: 18FIA0001J | S22: 22 | T22: CON GOCE DE SUELDO | U22: POR INCAPACIDAD MEDICA
B23: NAYARIT | C23: PEHE701009N63 | D23: PEHE701009MNTRRD03 | E23: PEREZ HERNANDEZ EDNA TERESA | F23: 8310101713T0382000.093 | G23: 83101 | H23: 1 | I23: 7 | J23: 13 | K23: T03820 | L23: 0 | M23: 93 | N23: 2020-01-27 | O23: 2020-02-02 | P23: 4440.94 | Q23: 0 | R23: 18FIA0001J | S23: 22 | T23: CON GOCE DE SUELDO | U23: POR INCAPACIDAD MEDICA
B24: NAYARIT | C24: PEHE701009N63 | D24: PEHE701009MNTRRD03 | E24: PEREZ HERNANDEZ EDNA TERESA | F24: 8310101713T0382000.093 | G24: 83101 | H24: 1 | I24: 7 | J24: 13 | K24: T03820 | L24: 0 | M24: 93 | N24: 2020-02-03 | O24: 2020-02-09 | P24: 4440.94 | Q24: 0 | R24: 18FIA0001J | S24: 22 | T24: CON GOCE DE SUELDO | U24: POR INCAPACIDAD MEDICA
B25: NAYARIT | C25: FOQA671014667 | D25: FOQA671014MNTLZG06 | E25: ARIAS SIMENTAL JOSEFINA | F25: 831010126A0180700.028 | G25: 83101 | H25: 1 | I25: 2 | J25: 6 | K25: A01807 | L25: 0 | M25: 28 | N25: 2020-02-11 | O25: 2020-02-17 | P25: 4083.1 | Q25: 0 | R25: 18FIA0001J | S25: 22 | T25: CON GOCE DE SUELDO | U25: POR INCAPACIDAD MEDICA
B26: NAYARIT | C26: PEHE701009N63 | D26: PEHE701009MNTRRD03 | E26: PEREZ HERNANDEZ EDNA TERESA | F26: 8310101713T0382000.093 | G26: 83101 | H26: 1 | I26: 7 | J26: 13 | K26: T03820 | L26: 0 | M26: 93 | N26: 2020-02-10 | O26: 2020-02-17 | P26: 8881.88 | Q26: 0 | R26: 18FIA0001J | S26: 22 | T26: CON GOCE DE SUELDO | U26: POR INCAPACIDAD MEDICA
B27: NAYARIT | C27: ROIK8103229H4 | D27: ROIK810322MNTJXR05 | E27: ROJAS IÑIGUEZ KARINA LIZETH | F27: 8310101714T0382000.0304 | G27: 83101 | H27: 1 | I27: 7 | J27: 14 | K27: T03820 | L27: 0 | M27: 304 | N27: 2020-02-17 | O27: 2020-05-16 | P27: 45265.5 | Q27: 0 | R27: 18FIA0001J | S27: 22 | T27: CON GOCE DE SUELDO | U27: POR INCAPACIDAD MEDICA
B28: NAYARIT | C28: MUPS800906NS7 | D28: MUPS800906MNTRRL09 | E28: MURILLO PORTILLO SELENE LIZETH | F28: 8310101936A0180700.023 | G28: 83101 | H28: 1 | I28: 9 | J28: 36 | K28: A01807 | L28: 0 | M28: 23 | N28: 2020-03-05 | O28: 2020-03-05 | P28: 583.42 | Q28: 0 | R28: 18FIA0001J | S28: 22 | T28: CON GOCE DE SUELDO | U28: POR INCAPACIDAD MEDICA
B29: NAYARIT | C29: COHN840218I76 | D29: COHN840218HNTRRS08 | E29: CORTES HERNENDEZ NESTOR SIMITRIO | F29: 831010124T0380300.0321 | G29: 83101 | H29: 1 | I29: 2 | J29: 4 | K29: T03803 | L29: 0 | M29: 321 | N29: 2020-03-18 | O29: 2020-03-20 | P29: 1323.66 | Q29: 0 | R29: 18FIA0001J | S29: 22 | T29: CON GOCE DE SUELDO | U29: POR INCAPACIDAD MEDICA
B30: NAYARIT | C30: AEMF710709245 | D30: AEMF710709MNTLRB09 | E30: ALMEJO MORENO FABIOLA | F30: 831010138T0382300.053 | G30: 83101 | H30: 1 | I30: 3 | J30: 8 | K30: T03824 | L30: 0 | M30: 52 | N30: 2020-03-18 | O30: 2020-03-18 | P30: 2035.35 | Q30: 0 | R30: 18FIA0001J | S30: 22 | T30: CON GOCE DE SUELDO | U30: POR INCAPACIDAD MEDICA
B42: Total Personas : 11 | C42: 8 | E42: 8 | K42: Total Plazas : | M42: 8 | N42: Total Pto. Federal
N44: Total Ppto. Otras Fuentes | P44: =SUM(P17:P43) -> 104256.42
B45: *Total de Percepciones reportadas por la Entidad Federativa como pagadas al trabajador durante la Licencia.
B46: Fuente : Información proporcionada por las Entidades Federativas.

Sheet II B) Y 1
A9: Formato: Plaza / Función
A10: =IF('[1]Caratula Resumen'!D22="Elige el Periodo…","",'[1]Caratula Resumen'!D22) -> Fondo de Aportaciones para la Educación Tecnológica y de Adultos/Instituto Nacional para la Educación de los Adultos (FAETA/INEA) | W10: =IF('Caratula Resumen'!D23="Elige el Periodo…","",'Caratula Resumen'!D23) -> 1er. Trimestre
A13: Entidad Federativa | B13: RFC | C13: CURP | D13: Nombre | E13: Centros de Trabajo | F13: Plazas por tipo de función | U13: Total plazas Jornada | V13: Total HSM | W13: Total de Honorarios | X13: Total de recursos presupuestales ejercidos en servicios personales en el periodo (2)
F14: Apoyo a la labor educativa | I14: Administrativo y de servicio | L14: Docente y Apoyo Técnico Pedagógico | O14: Directivos y Supervisión | R14: Mandos medios y superiores
F15: Jornada | G15: HSM | H15: Honorarios | I15: Jornada | J15: HSM | K15: Honorarios | L15: Jornada | M15: HSM | N15: Honorarios | O15: Jornada | P15: HSM | Q15: Honorarios | R15: Jornada | S15: HSM | T15: Honorarios
A17: Entidad Federativa | B17: RFC | C17: CURP | D17: Nombre | E17: Centros de Trabajo | F17: Jornada | G17: HSM | H17: Honorarios | I17: Jornada2 | J17: HSM3 | K17: Honorarios4 | L17: Jornada5 | M17: HSM6 | N17: Honorarios7 | O17: Jornada8 | P17: HSM9 | Q17: Honorarios10 | R17: Jornada11 | S17: HSM12 | T17: Honorarios13 | U17: Total plazas Jornada | V17: Total HSM | W17: Total de Honorarios | X17: Columna1 | Y17: Total de recursos presupuestales ejercidos en servicios personales en el periodo (2)
A18: NAYARIT | B18: AABE6103292X4 | C18: AABE610329MNTNRL06 | D18: ELIA ANDRADE BARAJAS | E18: 1 | F18: 0 | G18: 0 | H18: 0 | I18: 1 | J18: 35 | K18: 0 | L18: 0 | M18: 0 | N18: 0 | O18: 0 | P18: 0 | Q18: 0 | R18: 0 | S18: 0 | T18: 0 | U18: 1 | V18: 35 | W18: 0 | X18: 47329.43 | Y18: 61344.61
A19: NAYARIT | B19: AAMG630419RIA | C19: AAMG630419MNTRRD02 | D19: MARIA GUADALUPE ARAGON MURILLO | E19: 1 | F19: 0 | G19: 0 | H19: 0 | I19: 1 | J19: 35 | K19: 0 | L19: 0 | M19: 0 | N19: 0 | O19: 0 | P19: 0 | Q19: 0 | R19: 0 | S19: 0 | T19: 0 | U19: 1 | V19: 35 | W19: 0 | X19: 61376.85 | Y19: 67413.2
A20: NAYARIT | B20: AEAE670823T58 | C20: AEAE670823HNTRLF06 | D20: EFRAIN ARELLANO ALATORRE | E20: 1 | F20: 0 | G20: 0 | H20: 0 | I20: 0 | J20: 0 | K20: 0 | L20: 1 | M20: 35 | N20: 0 | O20: 0 | P20: 0 | Q20: 0 | R20: 0 | S20: 0 | T20: 0 | U20: 1 | V20: 35 | W20: 0 | X20: 63599.88 | Y20: 82104.89
A21: NAYARIT | B21: AEMC660716HS4 | C21: AEMC660716MNTRNR04 | D21: CARMEN JULIA ARCE MONTIEL | E21: 1 | F21: 0 | G21: 0 | H21: 0 | I21: 0 | J21: 0 | K21: 0 | L21: 1 | M21: 35 | N21: 0 | O21: 0 | P21: 0 | Q21: 0 | R21: 0 | S21: 0 | T21: 0 | U21: 1 | V21: 35 | W21: 0 | X21: 63599.88 | Y21: 77002.23
A22: NAYARIT | B22: AEMF710709245 | C22: AEMF710709MNTLRB09 | D22: FABIOLA ALMEJO MORENO | E22: 1 | F22: 0 | G22: 0 | H22: 0 | I22: 1 | J22: 35 | K22: 0 | L22: 0 | M22: 0 | N22: 0 | O22: 0 | P22: 0 | Q22: 0 | R22: 0 | S22: 0 | T22: 0 | U22: 1 | V22: 35 | W22: 0 | X22: 61060.82 | Y22: 76526.66
A23: NAYARIT | B23: AERL490315IT8 | C23: AERL490315HNTRDS02 | D23: LUIS DANIEL ARREOLA RODRIGUEZ | E23: 1 | F23: 0 | G23: 0 | H23: 0 | I23: 1 | J23: 35 | K23: 0 | L23: 0 | M23: 0 | N23: 0 | O23: 0 | P23: 0 | Q23: 0 | R23: 0 | S23: 0 | T23: 0 | U23: 1 | V23: 35 | W23: 0 | X23: 47329.43 | Y23: 60329.01
A24: NAYARIT | B24: AESA660613253 | C24: AESA660613HNTRNN05 | D24: ANTONIO ARELIZ SANDOVAL | E24: 1 | F24: 0 | G24: 0 | H24: 0 | I24: 1 | J24: 35 | K24: 0 | L24: 0 | M24: 0 | N24: 0 | O24: 0 | P24: 0 | Q24: 0 | R24: 0 | S24: 0 | T24: 0 | U24: 1 | V24: 35 | W24: 0 | X24: 50698.14 | Y24: 64730.45
A25: NAYARIT | B25: AIAM561122BX1 | C25: AIAM561122HNTVVN01 | D25: MANUEL AVILA AVILA | E25: 1 | F25: 0 | G25: 0 | H25: 0 | I25: 1 | J25: 35 | K25: 0 | L25: 0 | M25: 0 | N25: 0 | O25: 0 | P25: 0 | Q25: 0 | R25: 0 | S25: 0 | T25: 0 | U25: 1 | V25: 35 | W25: 0 | X25: 44431.59 | Y25: 58550.66
A26: NAYARIT | B26: AIOP920903RY1 | C26: AIOP920903MNTVRL04 | D26: PALOMA LIZETH AVILA OROZCO | E26: 1 | F26: 0 | G26: 0 | H26: 0 | I26: 1 | J26: 35 | K26: 0 | L26: 0 | M26: 0 | N26: 0 | O26: 0 | P26: 0 | Q26: 0 | R26: 0 | S26: 0 | T26: 0 | U26: 1 | V26: 35 | W26: 0 | X26: 45836.9 | Y26: 58983.88
A27: NAYARIT | B27: AISG630112LU9 | C27: AISG630112MNTMND00 | D27: MARIA GUADALUPE AMBRIZ SANDOVAL | E27: 1 | F27: 0 | G27: 0 | H27: 0 | I27: 0 | J27: 0 | K27: 0 | L27: 1 | M27: 35 | N27: 0 | O27: 0 | P27: 0 | Q27: 0 | R27: 0 | S27: 0 | T27: 0 | U27: 1 | V27: 35 | W27: 0 | X27: 60428.71 | Y27: 72113.16
A28: NAYARIT | B28: AISJ700621BC9 | C28: AISJ700621MNTRMS00 | D28: JOSEFINA ARIAS SIMENTAL | E28: 1 | F28: 0 | G28: 0 | H28: 0 | I28: 1 | J28: 35 | K28: 0 | L28: 0 | M28: 0 | N28: 0 | O28: 0 | P28: 0 | Q28: 0 | R28: 0 | S28: 0 | T28: 0 | U28: 1 | V28: 35 | W28: 0 | X28: 52497.61 | Y28: 63781.26
A29: NAYARIT | B29: AUAP690629Q72 | C29: AUAP690629HNTGLD05 | D29: PEDRO AGUILAR ALVAREZ | E29: 1 | F29: 0 | G29: 0 | H29: 0 | I29: 1 | J29: 35 | K29: 0 | L29: 0 | M29: 0 | N29: 0 | O29: 0 | P29: 0 | Q29: 0 | R29: 0 | S29: 0 | T29: 0 | U29: 1 | V29: 35 | W29: 0 | X29: 53202.64 | Y29: 64224.36
A30: NAYARIT | B30: AUHT670720B63 | C30: AUHT670720MNTQRR01 | D30: TERESA AQUINO HERNANDEZ | E30: 1 | F30: 0 | G30: 0 | H30: 0 | I30: 0 | J30: 0 | K30: 0 | L30: 1 | M30: 35 | N30: 0 | O30: 0 | P30: 0 | Q30: 0 | R30: 0 | S30: 0 | T30: 0 | U30: 1 | V30: 35 | W30: 0 | X30: 64046.61 | Y30: 82426.97
A31: NAYARIT | B31: SANI8907293UA | C31: SANI890729HNTLVR09 | D31: IRAN JAIR SALAZAR NAVARRO | E31: 1 | F31: 0 | G31: 0 | H31: 0 | I31: 1 | J31: 35 | K31: 0 | L31: 0 | M31: 0 | N31: 0 | O31: 0 | P31: 0 | Q31: 0 | R31: 0 | S31: 0 | T31: 0 | U31: 1 | V31: 35 | W31: 0 | X31: 49466.64
A32: NAYARIT | B32: BARC731208RP3 | C32: BARC731208MNTRNN03 | D32: MARIA CONCEPCION BARRERA RENTERIA | E32: 1 | F32: 0 | G32: 0 | H32: 0 | I32: 1 | J32: 35 | K32: 0 | L32: 0 | M32: 0 | N32: 0 | O32: 0 | P32: 0 | Q32: 0 | R32: 0 | S32: 0 | T32: 0 | U32: 1 | V32: 35 | W32: 0 | X32: 60209.91 | Y32: 67891.34
A33: NAYARIT | B33: CABA5502259D5 | C33: CABA550225HNTSRB09 | D33: ABEL CASTRO BERNAL | E33: 1 | F33: 0 | G33: 0 | H33: 0 | I33: 0 | J33: 0 | K33: 0 | L33: 1 | M33: 35 | N33: 0 | O33: 0 | P33: 0 | Q33: 0 | R33: 0 | S33: 0 | T33: 0 | U33: 1 | V33: 35 | W33: 0 | X33: 60331.49 | Y33: 72113.16
A34: NAYARIT | B34: CAGC700411BP6 | C34: CAGC700411MNTRNL05 | D34: MARIA CELINA CARRILLO GONZALEZ | E34: 1 | F34: 0 | G34: 0 | H34: 0 | I34: 1 | J34: 35 | K34: 0 | L34: 0 | M34: 0 | N34: 0 | O34: 0 | P34: 0 | Q34: 0 | R34: 0 | S34: 0 | T34: 0 | U34: 1 | V34: 35 | W34: 0 | X34: 61943.53 | Y34: 77661.21
A35: NAYARIT | B35: CALM7004265UA | C35: CALM700426HNTHMR08 | D35: MARCELINO CHAVEZ LAMAS | E35: 1 | F35: 0 | G35: 0 | H35: 0 | I35: 0 | J35: 0 | K35: 0 | L35: 1 | M35: 35 | N35: 0 | O35: 0 | P35: 0 | Q35: 0 | R35: 0 | S35: 0 | T35: 0 | U35: 1 | V35: 35 | W35: 0 | X35: 52583.65 | Y35: 65415.59
A36: NAYARIT | B36: CEHA720829FX5 | C36: CEHA720829MNTRRN03 | D36: ANGELICA MARIA CERVANTES HERNANDEZ | E36: 1 | F36: 0 | G36: 0 | H36: 0 | I36: 0 | J36: 0 | K36: 0 | L36: 1 | M36: 35 | N36: 0 | O36: 0 | P36: 0 | Q36: 0 | R36: 0 | S36: 0 | T36: 0 | U36: 1 | V36: 35 | W36: 0 | X36: 63704.97 | Y36: 76448.95
A37: NAYARIT | B37: COBB670422T30 | C37: COBB670422MNTVBR06 | D37: BERTHA MA. E COVARRUBIAS BOBADILLA | E37: 1 | F37: 0 | G37: 0 | H37: 0 | I37: 1 | J37: 35 | K37: 0 | L37: 0 | M37: 0 | N37: 0 | O37: 0 | P37: 0 | Q37: 0 | R37: 0 | S37: 0 | T37: 0 | U37: 1 | V37: 35 | W37: 0 | X37: 65396.05 | Y37: 67744.08
A38: NAYARIT | B38: COCA8507147H6 | C38: COCA850714MNTNHL04 | D38: ALBA NYDIA CONTRERAS CHAVEZ | E38: 1 | F38: 0 | G38: 0 | H38: 0 | I38: 1 | J38: 35 | K38: 0 | L38: 0 | M38: 0 | N38: 0 | O38: 0 | P38: 0 | Q38: 0 | R38: 0 | S38: 0 | T38: 0 | U38: 1 | V38: 35 | W38: 0 | X38: 40272.67 | Y38: 49609.55
A39: NAYARIT | B39: COEL490226TK7 | C39: COEL490226MJCRSS07 | D39: MARIA LUISA CORDERO ESPINOSA | E39: 1 | F39: 0 | G39: 0 | H39: 0 | I39: 1 | J39: 35 | K39: 0 | L39: 0 | M39: 0 | N39: 0 | O39: 0 | P39: 0 | Q39: 0 | R39: 0 | S39: 0 | T39: 0 | U39: 1 | V39: 35 | W39: 0 | X39: 44930.85 | Y39: 59615
A40: NAYARIT | B40: COLI660821F10 | C40: COLI660821MNTNZR04 | D40: IRMA SOFIA CONTRERAS LOZA | E40: 1 | F40: 0 | G40: 0 | H40: 0 | I40: 0 | J40: 0 | K40: 0 | L40: 1 | M40: 35 | N40: 0 | O40: 0 | P40: 0 | Q40: 0 | R40: 0 | S40: 0 | T40: 0 | U40: 1 | V40: 35 | W40: 0 | X40: 11468.51 | Y40: 72079.03
A41: NAYARIT | B41: DUCF820323BD2 | C41: DUCF820323HNTRCL06 | D41: FELIPE DE JESUS DURAN COCA | E41: 1 | F41: 0 | G41: 0 | H41: 0 | I41: 0 | J41: 0 | K41: 0 | L41: 1 | M41: 35 | N41: 0 | O41: 0 | P41: 0 | Q41: 0 | R41: 0 | S41: 0 | T41: 0 | U41: 1 | V41: 35 | W41: 0 | X41: 58436.03 | Y41: 71644.62
A42: NAYARIT | B42: DUMB660930DT3 | C42: DUMV660930MNTRNR08 | D42: BERNARDA DURAN MONTES | E42: 1 | F42: 0 | G42: 0 | H42: 0 | I42: 0 | J42: 0 | K42: 0 | L42: 1 | M42: 35 | N42: 0 | O42: 0 | P42: 0 | Q42: 0 | R42: 0 | S42: 0 | T42: 0 | U42: 1 | V42: 35 | W42: 0 | X42: 63704.97 | Y42: 82104.89
A43: NAYARIT | B43: EACS700505U99 | C43: EACS700505MNTSSN06 | D43: MARIA SANTOS ESTRADA CASTILLO | E43: 1 | F43: 0 | G43: 0 | H43: 0 | I43: 0 | J43: 0 | K43: 0 | L43: 1 | M43: 35 | N43: 0 | O43: 0 | P43: 0 | Q43: 0 | R43: 0 | S43: 0 | T43: 0 | U43: 1 | V43: 35 | W43: 0 | X43: 58532.45 | Y43: 71062.78
A44: NAYARIT | B44: EAEJ780510HC8 | C44: EAEJ780510HNTSSM08 | D44: JAIME ESTRADA ESQUIVEL | E44: 1 | F44: 0 | G44: 0 | H44: 0 | I44: 0 | J44: 0 | K44: 0 | L44: 1 | M44: 35 | N44: 0 | O44: 0 | P44: 0 | Q44: 0 | R44: 0 | S44: 0 | T44: 0 | U44: 1 | V44: 40 | W44: 0 | X44: 59802.51 | Y44: 73883.23
A45: NAYARIT | B45: FOQA671014667 | C45: FOQA671014MNTLZG06 | D45: AGUSTINA FLORES QUEZADA | E45: 1 | F45: 0 | G45: 0 | H45: 0 | I45: 1 | J45: 35 | K45: 0 | L45: 0 | M45: 0 | N45: 0 | O45: 0 | P45: 0 | Q45: 0 | R45: 0 | S45: 0 | T45: 0 | U45: 1 | V45: 35 | W45: 0 | X45: 48291.53 | Y45: 62784.37
A46: NAYARIT | B46: GABP630915IG5 | C46: GABP630915MMCRNR01 | D46: PORFIRIA GARCIA BENITEZ | E46: 1 | F46: 0 | G46: 0 | H46: 0 | I46: 0 | J46: 0 | K46: 0 | L46: 1 | M46: 35 | N46: 0 | O46: 0 | P46: 0 | Q46: 0 | R46: 0 | S46: 0 | T46: 0 | U46: 1 | V46: 35 | W46: 0 | X46: 60866.85 | Y46: 75347.2
A47: NAYARIT | B47: GAFS8210199S8 | C47: GAFS821019HNTRRV01 | D47: SEVERO GARCIA FRANCO | E47: 1 | F47: 0 | G47: 0 | H47: 0 | I47: 1 | J47: 35 | K47: 0 | L47: 0 | M47: 0 | N47: 0 | O47: 0 | P47: 0 | Q47: 0 | R47: 0 | S47: 0 | T47: 0 | U47: 1 | V47: 35 | W47: 0 | X47: 51198.35 | Y47: 67672.89
A48: NAYARIT | B48: GARM740924JP4 | C48: GARM740924MNTLDR01 | D48: MARTHA ELBA GALEANA RODARTE | E48: 1 | F48: 0 | G48: 0 | H48: 0 | I48: 1 | J48: 35 | K48: 0 | L48: 0 | M48: 0 | N48: 0 | O48: 0 | P48: 0 | Q48: 0 | R48: 0 | S48: 0 | T48: 0 | U48: 1 | V48: 35 | W48: 0 | X48: 37789.44 | Y48: 51409.9
A49: NAYARIT | B49: GOEP741023DD0 | C49: GOEP741023HNTNSR02 | D49: PORFIRIO GONZALEZ ESPERICUETA | E49: 1 | F49: 0 | G49: 0 | H49: 0 | I49: 0 | J49: 0 | K49: 0 | L49: 1 | M49: 35 | N49: 0 | O49: 0 | P49: 0 | Q49: 0 | R49: 0 | S49: 0 | T49: 0 | U49: 1 | V49: 35 | W49: 0 | X49: 61489.65 | Y49: 80407.68
A50: NAYARIT | B50: GOMM660312R79 | C50: GOMM660312MNTMRR09 | D50: MARISELA GOMEZ MARISCAL | E50: 1 | F50: 0 | G50: 0 | H50: 0 | I50: 0 | J50: 0 | K50: 0 | L50: 1 | M50: 35 | N50: 0 | O50: 0 | P50: 0 | Q50: 0 | R50: 0 | S50: 0 | T50: 0 | U50: 1 | V50: 35 | W50: 0 | X50: 63021.72 | Y50: 76154.6
A51: NAYARIT | B51: GOPE620111H24 | C51: GOPE620111HNTMRD03 | D51: EDUARDO GOMEZ PARRA | E51: 1 | F51: 0 | G51: 0 | H51: 0 | I51: 0 | J51: 0 | K51: 0 | L51: 1 | M51: 35 | N51: 0 | O51: 0 | P51: 0 | Q51: 0 | R51: 0 | S51: 0 | T51: 0 | U51: 1 | V51: 35 | W51: 0 | X51: 65089.89 | Y51: 78115.38
A52: NAYARIT | B52: GOPS651030PGA | C52: GOPS651030MNTNLF04 | D52: SOFIA GONZALEZ PLAZAS | E52: 1 | F52: 0 | G52: 0 | H52: 0 | I52: 0 | J52: 0 | K52: 0 | L52: 1 | M52: 35 | N52: 0 | O52: 0 | P52: 0 | Q52: 0 | R52: 0 | S52: 0 | T52: 0 | U52: 1 | V52: 35 | W52: 0 | X52: 60744.79 | Y52: 73093.7
A53: NAYARIT | B53: GULM700812JK2 | C53: GULM700812MNTZPR00 | D53: MARTHA ISABEL GUZMAN LOPEZ | E53: 1 | F53: 0 | G53: 0 | H53: 0 | I53: 1 | J53: 35 | K53: 0 | L53: 0 | M53: 0 | N53: 0 | O53: 0 | P53: 0 | Q53: 0 | R53: 0 | S53: 0 | T53: 0 | U53: 1 | V53: 35 | W53: 0 | X53: 50236.68 | Y53: 19871.63
A54: NAYARIT | B54: GUOJ58032768A | C54: GUOJ580327HNTTCM09 | D54: JAIME GUTIERREZ OCAMPO | E54: 1 | F54: 0 | G54: 0 | H54: 0 | I54: 0 | J54: 0 | K54: 0 | L54: 1 | M54: 35 | N54: 0 | O54: 0 | P54: 0 | Q54: 0 | R54: 0 | S54: 0 | T54: 0 | U54: 1 | V54: 35 | W54: 0 | X54: 60927.51 | Y54: 73928.95
A55: NAYARIT | B55: HERO590224IY6 | C55: HEXR590224MNTRXS07 | D55: ROSA MARIA HERNANDEZ | E55: 1 | F55: 0 | G55: 0 | H55: 0 | I55: 0 | J55: 0 | K55: 0 | L55: 1 | M55: 35 | N55: 0 | O55: 0 | P55: 0 | Q55: 0 | R55: 0 | S55: 0 | T55: 0 | U55: 1 | V55: 35 | W55: 0 | X55: 56952.25 | Y55: 70199.91
A56: NAYARIT | B56: HESR4910091U6 | C56: HESR491009MNTRNS00 | D56: MARIA DEL ROSARIO HERNANDEZ SANCHEZ | E56: 1 | F56: 0 | G56: 0 | H56: 0 | I56: 1 | J56: 35 | K56: 0 | L56: 0 | M56: 0 | N56: 0 | O56: 0 | P56: 0 | Q56: 0 | R56: 0 | S56: 0 | T56: 0 | U56: 1 | V56: 35 | W56: 0 | X56: 61060.82 | Y56: 75457.45
A57: NAYARIT | B57: IAHL680714P45 | C57: IAHL680714MNTBRR00 | D57: LORENIA CARINA IBARRA HERMOSILLO | E57: 1 | F57: 0 | G57: 0 | H57: 0 | I57: 0 | J57: 0 | K57: 0 | L57: 1 | M57: 35 | N57: 0 | O57: 0 | P57: 0 | Q57: 0 | R57: 0 | S57: 0 | T57: 0 | U57: 1 | V57: 35 | W57: 0 | X57: 58532.45 | Y57: 75557.44
A58: NAYARIT | B58: IAMF731113NH2 | C58: IAMF731113HNTNNR04 | D58: FRANCISCO JAVIER INDA MONTEON | E58: 1 | F58: 0 | G58: 0 | H58: 0 | I58: 0 | J58: 0 | K58: 0 | L58: 1 | M58: 35 | N58: 0 | O58: 0 | P58: 0 | Q58: 0 | R58: 0 | S58: 0 | T58: 0 | U58: 1 | V58: 35 | W58: 0 | X58: 60630.33 | Y58: 73549.66
A59: NAYARIT | B59: ROIK8103229H4 | C59: ROIK810322MNTJXR05 | D59: KARINA LIZETH ROJAS IÑIGUEZ | E59: 1 | F59: 0 | G59: 0 | H59: 0 | I59: 0 | J59: 0 | K59: 0 | L59: 1 | M59: 35 | N59: 0 | O59: 0 | P59: 0 | Q59: 0 | R59: 0 | S59: 0 | T59: 0 | U59: 1 | V59: 35 | W59: 0 | X59: 45265.98 | Y59: 44544.62
A60: NAYARIT | B60: JAPA7508062F4 | C60: JAPA750806HNTCRL05 | D60: ALVARO JACOBO PEREZ | E60: 1 | F60: 0 | G60: 0 | H60: 0 | I60: 0 | J60: 0 | K60: 0 | L60: 1 | M60: 35 | N60: 0 | O60: 0 | P60: 0 | Q60: 0 | R60: 0 | S60: 0 | T60: 0 | U60: 1 | V60: 35 | W60: 0 | X60: 56952.25 | Y60: 69184.93
A61: NAYARIT | B61: LEFE851111AZ8 | C61: LEFE851111HDFYLM03 | D61: EMMANUEL EDUARDO LEY FLORES | E61: 1 | F61: 0 | G61: 0 | H61: 0 | I61: 1 | J61: 35 | K61: 0 | L61: 0 | M61: 0 | N61: 0 | O61: 0 | P61: 0 | Q61: 0 | R61: 0 | S61: 0 | T61: 0 | U61: 1 | V61: 35 | W61: 0 | X61: 49946.64 | Y61: 59262.36
A62: NAYARIT | B62: LOCL770926EZ7 | C62: LOCL770926HNTPNN00 | D62: LEONARDO LOPEZ CENICEROS | E62: 1 | F62: 0 | G62: 0 | H62: 0 | I62: 0 | J62: 0 | K62: 0 | L62: 1 | M62: 35 | N62: 0 | O62: 0 | P62: 0 | Q62: 0 | R62: 0 | S62: 0 | T62: 0 | U62: 1 | V62: 35 | W62: 0 | X62: 56636.18 | Y62: 69066.95
A63: NAYARIT | B63: LOMJ690324HB6 | C63: LOMJ690324MNTZDS04 | D63: JOSEFINA LOZANO MEDINA | E63: 1 | F63: 0 | G63: 0 | H63: 0 | I63: 1 | J63: 35 | K63: 0 | L63: 0 | M63: 0 | N63: 0 | O63: 0 | P63: 0 | Q63: 0 | R63: 0 | S63: 0 | T63: 0 | U63: 1 | V63: 35 | W63: 0 | X63: 51936.09 | Y63: 68230.4
A64: NAYARIT | B64: PARC930711PQ3 | C64: PARC930711HNTTBS05 | D64: CESAR IVAN PATIÑO ROBLES | E64: 1 | F64: 0 | G64: 0 | H64: 0 | I64: 1 | J64: 35 | K64: 0 | L64: 0 | M64: 0 | N64: 0 | O64: 0 | P64: 0 | Q64: 0 | R64: 0 | S64: 0 | T64: 0 | U64: 1 | V64: 35 | W64: 0 | X64: 49466.64
A65: NAYARIT | B65: LOPO870308TGA | C65: LOPO870308HNTPRS02 | D65: OSCAR JESUS LOPEZ PERALTA | E65: 1 | F65: 0 | G65: 0 | H65: 0 | I65: 1 | J65: 35 | K65: 0 | L65: 0 | M65: 0 | N65: 0 | O65: 0 | P65: 0 | Q65: 0 | R65: 0 | S65: 0 | T65: 0 | U65: 1 | V65: 35 | W65: 0 | X65: 38740.64 | Y65: 53662.82
A66: NAYARIT | B66: LORE550827E17 | C66: LORE550827MNTPDM08 | D66: MA. EMMA LOPEZ RODRIGUEZ | E66: 1 | F66: 0 | G66: 0 | H66: 0 | I66: 1 | J66: 35 | K66: 0 | L66: 0 | M66: 0 | N66: 0 | O66: 0 | P66: 0 | Q66: 0 | R66: 0 | S66: 0 | T66: 0 | U66: 1 | V66: 35 | W66: 0 | X66: 49320.47 | Y66: 64485.43
A67: NAYARIT | B67: LOVM650308KP7 | C67: LOVM650308HNTPLR06 | D67: MARCELINO LOPEZ VILLANUEVA | E67: 1 | F67: 0 | G67: 0 | H67: 0 | I67: 1 | J67: 35 | K67: 0 | L67: 0 | M67: 0 | N67: 0 | O67: 0 | P67: 0 | Q67: 0 | R67: 0 | S67: 0 | T67: 0 | U67: 1 | V67: 35 | W67: 0 | X67: 62106.18 | Y67: 78153.31
A68: NAYARIT | B68: MAFH700414PQ9 | C68: MAFH700414HNTGRC06 | D68: HECTOR JOEL MAGDALENO FRIAS | E68: 1 | F68: 0 | G68: 0 | H68: 0 | I68: 0 | J68: 0 | K68: 0 | L68: 1 | M68: 35 | N68: 0 | O68: 0 | P68: 0 | Q68: 0 | R68: 0 | S68: 0 | T68: 0 | U68: 1 | V68: 35 | W68: 0 | X68: 59164.59 | Y68: 71271.13
A69: NAYARIT | B69: MAIC860620U74 | C69: MAIC860620HNTCBH08 | D69: CHRISTOPHER EMMANUEL MACHUCA IBARRA | E69: 1 | F69: 0 | G69: 0 | H69: 0 | I69: 0 | J69: 0 | K69: 0 | L69: 1 | M69: 35 | N69: 0 | O69: 0 | P69: 0 | Q69: 0 | R69: 0 | S69: 0 | T69: 0 | U69: 1 | V69: 35 | W69: 0 | X69: 52991.15 | Y69: 66197.5
A70: NAYARIT | B70: MALL770125190 | C70: MALL770125HNTYPZ04 | D70: LAZARO MAYORQUIN LOPEZ | E70: 1 | F70: 0 | G70: 0 | H70: 0 | I70: 0 | J70: 0 | K70: 0 | L70: 1 | M70: 35 | N70: 0 | O70: 0 | P70: 0 | Q70: 0 | R70: 0 | S70: 0 | T70: 0 | U70: 1 | V70: 35 | W70: 0 | X70: 61208.49 | Y70: 75134.09
A71: NAYARIT | B71: MAMD710507CG4 | C71: MAMD710507MNTRRL06 | D71: DALIA CARMINA MARES MORA | E71: 1 | F71: 0 | G71: 0 | H71: 0 | I71: 1 | J71: 35 | K71: 0 | L71: 0 | M71: 0 | N71: 0 | O71: 0 | P71: 0 | Q71: 0 | R71: 0 | S71: 0 | T71: 0 | U71: 1 | V71: 35 | W71: 0 | X71: 61420.82 | Y71: 77440.78
A72: NAYARIT | B72: MAPL820106F29 | C72: MAPL820106HNTCNS04 | D72: LUIS RAMON MACIAS PINEDA | E72: 1 | F72: 0 | G72: 0 | H72: 0 | I72: 1 | J72: 35 | K72: 0 | L72: 0 | M72: 0 | N72: 0 | O72: 0 | P72: 0 | Q72: 0 | R72: 0 | S72: 0 | T72: 0 | U72: 1 | V72: 35 | W72: 0 | X72: 37594.08 | Y72: 53269.9
A73: NAYARIT | B73: MAPR700819TA9 | C73: MAPR700819MPLCNQ04 | D73: RAQUEL MACIAS PINEDA | E73: 1 | F73: 0 | G73: 0 | H73: 0 | I73: 1 | J73: 35 | K73: 0 | L73: 0 | M73: 0 | N73: 0 | O73: 0 | P73: 0 | Q73: 0 | R73: 0 | S73: 0 | T73: 0 | U73: 1 | V73: 35 | W73: 0 | X73: 49896.22 | Y73: 65301.64
A74: NAYARIT | B74: MEFC661214GH5 | C74: MEFC661214MNTDNR06 | D74: CRESCENCIA MEDINA FONSECA | E74: 1 | F74: 0 | G74: 0 | H74: 0 | I74: 0 | J74: 0 | K74: 0 | L74: 1 | M74: 35 | N74: 0 | O74: 0 | P74: 0 | Q74: 0 | R74: 0 | S74: 0 | T74: 0 | U74: 1 | V74: 35 | W74: 0 | X74: 65308.05 | Y74: 76055.27
A75: NAYARIT | B75: MEOG810220E52 | C75: MEOG810220MNTNCB06 | D75: GABRIELA MENDOZA OCHOA | E75: 1 | F75: 0 | G75: 0 | H75: 0 | I75: 1 | J75: 35 | K75: 0 | L75: 0 | M75: 0 | N75: 0 | O75: 0 | P75: 0 | Q75: 0 | R75: 0 | S75: 0 | T75: 0 | U75: 1 | V75: 35 | W75: 0 | X75: 46927.97 | Y75: 59404.3
A76: NAYARIT | B76: MIGG8210293G3 | C76: MIGG821029MNTRRS05 | D76: GISELL MIRAMONTES GARCIA | E76: 1 | F76: 0 | G76: 0 | H76: 0 | I76: 1 | J76: 35 | K76: 0 | L76: 0 | M76: 0 | N76: 0 | O76: 0 | P76: 0 | Q76: 0 | R76: 0 | S76: 0 | T76: 0 | U76: 1 | V76: 35 | W76: 0 | X76: 56788.77 | Y76: 55825.23
A77: NAYARIT | B77: MOFM611228SA9 | C77: MOFM611228MNTNLG02 | D77: MAGDALENA MONTERO FLORES | E77: 1 | F77: 0 | G77: 0 | H77: 0 | I77: 0 | J77: 0 | K77: 0 | L77: 1 | M77: 35 | N77: 0 | O77: 0 | P77: 0 | Q77: 0 | R77: 0 | S77: 0 | T77: 0 | U77: 1 | V77: 35 | W77: 0 | X77: 62233.38 | Y77: 77050.52
A78: NAYARIT | B78: MOHM550119BM8 | C78: MOHI550119MNTNRD07 | D78: MA. IDELISA MONTAÑO HERNANDEZ | E78: 1 | F78: 0 | G78: 0 | H78: 0 | I78: 1 | J78: 35 | K78: 0 | L78: 0 | M78: 0 | N78: 0 | O78: 0 | P78: 0 | Q78: 0 | R78: 0 | S78: 0 | T78: 0 | U78: 1 | V78: 35 | W78: 0 | X78: 54730.14 | Y78: 70195.98
A79: NAYARIT | B79: MUAC7409192N3 | C79: MUAC740919MNTRNL05 | D79: CLEOPATRA MURILLO ANGELES | E79: 1 | F79: 0 | G79: 0 | H79: 0 | I79: 0 | J79: 0 | K79: 0 | L79: 1 | M79: 35 | N79: 0 | O79: 0 | P79: 0 | Q79: 0 | R79: 0 | S79: 0 | T79: 0 | U79: 1 | V79: 35 | W79: 0 | X79: 57171.07 | Y79: 68834.93
A80: NAYARIT | B80: MUCF710407RG9 | C80: MUCF710407HNTRRR09 | D80: FRANCISCO MURILLO CORTEZ | E80: 1 | F80: 0 | G80: 0 | H80: 0 | I80: 1 | J80: 35 | K80: 0 | L80: 0 | M80: 0 | N80: 0 | O80: 0 | P80: 0 | Q80: 0 | R80: 0 | S80: 0 | T80: 0 | U80: 1 | V80: 35 | W80: 0 | X80: 47524.79 | Y80: 61458.33
A81: NAYARIT | B81: MUPS800906NS7 | C81: MUPS800906MNTRRL09 | D81: SELENE LIZET MURILLO PORTILLO | E81: 1 | F81: 0 | G81: 0 | H81: 0 | I81: 1 | J81: 35 | K81: 0 | L81: 0 | M81: 0 | N81: 0 | O81: 0 | P81: 0 | Q81: 0 | R81: 0 | S81: 0 | T81: 0 | U81: 1 | V81: 35 | W81: 0 | X81: 52507.87 | Y81: 67415.51
A82: NAYARIT | B82: NARE7904024BA | C82: NARE790402MNTVVL03 | D82: ELVIA NELLY NAVARRETE RIVERA | E82: 1 | F82: 0 | G82: 0 | H82: 0 | I82: 1 | J82: 35 | K82: 0 | L82: 0 | M82: 0 | N82: 0 | O82: 0 | P82: 0 | Q82: 0 | R82: 0 | S82: 0 | T82: 0 | U82: 1 | V82: 35 | W82: 0 | X82: 41222.6 | Y82: 55490.66
A83: NAYARIT | B83: NUFA521129MX9 | C83: NUFA521129MNTXRR06 | D83: ARMIDA NUÑEZ FREGOSO | E83: 1 | F83: 0 | G83: 0 | H83: 0 | I83: 1 | J83: 35 | K83: 0 | L83: 0 | M83: 0 | N83: 0 | O83: 0 | P83: 0 | Q83: 0 | R83: 0 | S83: 0 | T83: 0 | U83: 1 | V83: 35 | W83: 0 | X83: 54730.14 | Y83: 60931.54
A84: NAYARIT | B84: OESL430826CG0 | C84: OESL430826HJCRNR09 | D84: LORENZO ORTEGA SANCHEZ | E84: 1 | F84: 0 | G84: 0 | H84: 0 | I84: 0 | J84: 0 | K84: 0 | L84: 1 | M84: 35 | N84: 0 | O84: 0 | P84: 0 | Q84: 0 | R84: 0 | S84: 0 | T84: 0 | U84: 1 | V84: 35 | W84: 0 | X84: 56988.72 | Y84: 68834.93
A85: NAYARIT | B85: OIAV660415J17 | C85: OIAV660415HNTRCC02 | D85: VICTORIANO ORTIZ ACOSTA | E85: 1 | F85: 0 | G85: 0 | H85: 0 | I85: 0 | J85: 0 | K85: 0 | L85: 1 | M85: 35 | N85: 0 | O85: 0 | P85: 0 | Q85: 0 | R85: 0 | S85: 0 | T85: 0 | U85: 1 | V85: 35 | W85: 0 | X85: 57171.07 | Y85: 68996.48
A86: NAYARIT | B86: OOGR6805238P4 | C86: OOGR680523MNTCRS03 | D86: ROSA ISELA OCHOA GARCIA | E86: 1 | F86: 0 | G86: 0 | H86: 0 | I86: 0 | J86: 0 | K86: 0 | L86: 1 | M86: 35 | N86: 0 | O86: 0 | P86: 0 | Q86: 0 | R86: 0 | S86: 0 | T86: 0 | U86: 1 | V86: 35 | W86: 0 | X86: 59869.59 | Y86: 71517.11
A87: NAYARIT | B87: PEHE701009N63 | C87: PEHE701009MNTRRD03 | D87: EDNA TERESA PEREZ HERNANDEZ | E87: 1 | F87: 0 | G87: 0 | H87: 0 | I87: 0 | J87: 0 | K87: 0 | L87: 1 | M87: 35 | N87: 0 | O87: 0 | P87: 0 | Q87: 0 | R87: 0 | S87: 0 | T87: 0 | U87: 1 | V87: 35 | W87: 0 | X87: 57098.13 | Y87: 66560.03
A88: NAYARIT | B88: PEHS760516B10 | C88: PEHS760516MNTRRL00 | D88: SILVIA CORAL PRECIADO HERNANDEZ | E88: 1 | F88: 0 | G88: 0 | H88: 0 | I88: 1 | J88: 35 | K88: 0 | L88: 0 | M88: 0 | N88: 0 | O88: 0 | P88: 0 | Q88: 0 | R88: 0 | S88: 0 | T88: 0 | U88: 1 | V88: 35 | W88: 0 | X88: 44391.55 | Y88: 56988.91
A89: NAYARIT | B89: OOGM580404LU3 | C89: OOGM580404MNTRMR06 | D89: MARTHA ELVA OROZCO GOMEZ | E89: 1 | F89: 0 | G89: 0 | H89: 0 | I89: 1 | J89: 35 | K89: 0 | L89: 0 | M89: 0 | N89: 0 | O89: 0 | P89: 0 | Q89: 0 | R89: 0 | S89: 0 | T89: 0 | U89: 1 | V89: 35 | W89: 0 | X89: 9819.81 | Y89: 71496.07
A90: NAYARIT | B90: PEMM710729AV0 | C90: PEMM710729MNTRNN05 | D90: MONICA BEATRIZ PEREZ MENDOZA | E90: 1 | F90: 0 | G90: 0 | H90: 0 | I90: 0 | J90: 0 | K90: 0 | L90: 1 | M90: 35 | N90: 0 | O90: 0 | P90: 0 | Q90: 0 | R90: 0 | S90: 0 | T90: 0 | U90: 1 | V90: 35 | W90: 0 | X90: 61852.31 | Y90: 74516.09
A91: NAYARIT | B91: PIRA771228QN7 | C91: PIRA771228MNTNYN02 | D91: ANA RAQUEL PINTADO REYMUNDO | E91: 1 | F91: 0 | G91: 0 | H91: 0 | I91: 0 | J91: 0 | K91: 0 | L91: 1 | M91: 35 | N91: 0 | O91: 0 | P91: 0 | Q91: 0 | R91: 0 | S91: 0 | T91: 0 | U91: 1 | V91: 35 | W91: 0 | X91: 56988.72 | Y91: 69534.93
A92: NAYARIT | B92: PORJ590620KP8 | C92: PORJ590620MNTLSS06 | D92: JOSEFINA POLANCO DE LA ROSA | E92: 1 | F92: 0 | G92: 0 | H92: 0 | I92: 0 | J92: 0 | K92: 0 | L92: 1 | M92: 35 | N92: 0 | O92: 0 | P92: 0 | Q92: 0 | R92: 0 | S92: 0 | T92: 0 | U92: 1 | V92: 35 | W92: 0 | X92: 65754.75 | Y92: 79026.07
A93: NAYARIT | B93: PUAI760901JL8 | C93: PUAI760901HMCNVS09 | D93: ISMAEL FABRICIO PUENTES AVILA | E93: 1 | F93: 0 | G93: 0 | H93: 0 | I93: 0 | J93: 0 | K93: 0 | L93: 1 | M93: 35 | N93: 0 | O93: 0 | P93: 0 | Q93: 0 | R93: 0 | S93: 0 | T93: 0 | U93: 1 | V93: 35 | W93: 0 | X93: 65532.03 | Y93: 77452.86
A94: NAYARIT | B94: RABL640324JWA | C94: RABL640324HNTNTN09 | D94: LEONARDO RANGEL BAUTISTA | E94: 1 | F94: 0 | G94: 0 | H94: 0 | I94: 0 | J94: 0 | K94: 0 | L94: 1 | M94: 35 | N94: 0 | O94: 0 | P94: 0 | Q94: 0 | R94: 0 | S94: 0 | T94: 0 | U94: 1 | V94: 35 | W94: 0 | X94: 61208.49 | Y94: 74815.28
A95: NAYARIT | B95: RAPM700411PL4 | C95: RAPM700411MNTMXR02 | D95: MA. MERCEDES RAMIREZ PEÑA | E95: 1 | F95: 0 | G95: 0 | H95: 0 | I95: 0 | J95: 0 | K95: 0 | L95: 1 | M95: 35 | N95: 0 | O95: 0 | P95: 0 | Q95: 0 | R95: 0 | S95: 0 | T95: 0 | U95: 1 | V95: 35 | W95: 0 | X95: 58216.46 | Y95: 71327.03
A96: NAYARIT | B96: RECJ660415BH6 | C96: RECJ660415MNTXHS08 | D96: MARIA DE JESUS REA CHAVEZ | E96: 1 | F96: 0 | G96: 0 | H96: 0 | I96: 0 | J96: 0 | K96: 0 | L96: 1 | M96: 35 | N96: 0 | O96: 0 | P96: 0 | Q96: 0 | R96: 0 | S96: 0 | T96: 0 | U96: 1 | V96: 35 | W96: 0 | X96: 45226.77 | Y96: 56711.07
A97: NAYARIT | B97: RERS631103S43 | C97: RERS631103MNTNJL01 | D97: SILVIA REINOSO ROJAS | E97: 1 | F97: 0 | G97: 0 | H97: 0 | I97: 0 | J97: 0 | K97: 0 | L97: 1 | M97: 35 | N97: 0 | O97: 0 | P97: 0 | Q97: 0 | R97: 0 | S97: 0 | T97: 0 | U97: 1 | V97: 35 | W97: 0 | X97: 60866.85 | Y97: 76499.68
A98: NAYARIT | B98: RIJV721019740 | C98: RIJV721019MNTVCR00 | D98: VERONICA MARIA RIVAS JACOBO | E98: 1 | F98: 0 | G98: 0 | H98: 0 | I98: 0 | J98: 0 | K98: 0 | L98: 1 | M98: 35 | N98: 0 | O98: 0 | P98: 0 | Q98: 0 | R98: 0 | S98: 0 | T98: 0 | U98: 1 | V98: 35 | W98: 0 | X98: 61655.22 | Y98: 75253.82
A99: NAYARIT | B99: ROCV411211256 | C99: ROCV411211HNTDVC01 | D99: VICENTE GUADALUPE RODRIGUEZ CUEVAS | E99: 1 | F99: 0 | G99: 0 | H99: 0 | I99: 0 | J99: 0 | K99: 0 | L99: 1 | M99: 35 | N99: 0 | O99: 0 | P99: 0 | Q99: 0 | R99: 0 | S99: 0 | T99: 0 | U99: 1 | V99: 35 | W99: 0 | X99: 58119.21 | Y99: 70750.23
A100: NAYARIT | B100: ROMR4701016U7 | C100: ROMR470101MJCSRS07 | D100: MARIA DEL ROSARIO ROSALES MARTINEZ | E100: 1 | F100: 0 | G100: 0 | H100: 0 | I100: 0 | J100: 0 | K100: 0 | L100: 1 | M100: 35 | N100: 0 | O100: 0 | P100: 0 | Q100: 0 | R100: 0 | S100: 0 | T100: 0 | U100: 1 | V100: 35 | W100: 0 | X100: 60007.71 | Y100: 71241.15
A101: NAYARIT | B101: RORJ670216PM6 | C101: RORJ670216MNTDMN08 | D101: JUANA RODRIGUEZ RAMIREZ | E101: 1 | F101: 0 | G101: 0 | H101: 0 | I101: 0 | J101: 0 | K101: 0 | L101: 1 | M101: 35 | N101: 0 | O101: 0 | P101: 0 | Q101: 0 | R101: 0 | S101: 0 | T101: 0 | U101: 1 | V101: 35 | W101: 0 | X101: 51817.86 | Y101: 64504.03
A102: NAYARIT | B102: SARF600924RF7 | C102: SARF600924MNTLDR08 | D102: FRANCISCA SALINAS RODRIGUEZ | E102: 1 | F102: 0 | G102: 0 | H102: 0 | I102: 0 | J102: 0 | K102: 0 | L102: 1 | M102: 35 | N102: 0 | O102: 0 | P102: 0 | Q102: 0 | R102: 0 | S102: 0 | T102: 0 | U102: 1 | V102: 35 | W102: 0 | X102: 60744.79 | Y102: 73701.21
A103: NAYARIT | B103: SAVR710307QB4 | C103: SAVR710307MNTNZS06 | D103: ROSA MARGARITA SANCHEZ VAZQUEZ | E103: 1 | F103: 0 | G103: 0 | H103: 0 | I103: 1 | J103: 35 | K103: 0 | L103: 0 | M103: 0 | N103: 0 | O103: 0 | P103: 0 | Q103: 0 | R103: 0 | S103: 0 | T103: 0 | U103: 1 | V103: 35 | W103: 0 | X103: 61158.04 | Y103: 76663.16
A104: NAYARIT | B104: SEMJ6202286DA | C104: SEMJ620228HNTTRS03 | D104: J. JESUS STHEPENS MARTINEZ | E104: 1 | F104: 0 | G104: 0 | H104: 0 | I104: 1 | J104: 35 | K104: 0 | L104: 0 | M104: 0 | N104: 0 | O104: 0 | P104: 0 | Q104: 0 | R104: 0 | S104: 0 | T104: 0 | U104: 1 | V104: 35 | W104: 0 | X104: 43899.78 | Y104: 57002.92
A105: NAYARIT | B105: SIMG650906SD7 | C105: SIMG650906MNTLDD05 | D105: MARIA GUADALUPE SILLAS MEDINA | E105: 1 | F105: 0 | G105: 0 | H105: 0 | I105: 0 | J105: 0 | K105: 0 | L105: 1 | M105: 35 | N105: 0 | O105: 0 | P105: 0 | Q105: 0 | R105: 0 | S105: 0 | T105: 0 | U105: 1 | V105: 35 | W105: 0 | X105: 60748.59 | Y105: 73549.66
A106: NAYARIT | B106: TARJ6211276C6 | C106: TARJ621127HNTPMN07 | D106: JUAN CARLOS TAPIA RAMOS | E106: 1 | F106: 0 | G106: 0 | H106: 0 | I106: 0 | J106: 0 | K106: 0 | L106: 1 | M106: 35 | N106: 0 | O106: 0 | P106: 0 | Q106: 0 | R106: 0 | S106: 0 | T106: 0 | U106: 1 | V106: 35 | W106: 0 | X106: 60183.57 | Y106: 73817.65
A107: NAYARIT | B107: UISA6804151H1 | C107: UISA680415MNTRNN07 | D107: ANASTASIA URIBE SANDOVAL | E107: 1 | F107: 0 | G107: 0 | H107: 0 | I107: 1 | J107: 35 | K107: 0 | L107: 0 | M107: 0 | N107: 0 | O107: 0 | P107: 0 | Q107: 0 | R107: 0 | S107: 0 | T107: 0 | U107: 1 | V107: 35 | W107: 0 | X107: 57266.23 | Y107: 72855.61
A108: NAYARIT | B108: VAFM600616B56 | C108: VAFM600616HNTLRN07 | D108: MANUEL VALDIVIA FRANCO | E108: 1 | F108: 0 | G108: 0 | H108: 0 | I108: 1 | J108: 35 | K108: 0 | L108: 0 | M108: 0 | N108: 0 | O108: 0 | P108: 0 | Q108: 0 | R108: 0 | S108: 0 | T108: 0 | U108: 1 | V108: 35 | W108: 0 | X108: 55615.82 | Y108: 70196.07
A109: NAYARIT | B109: VAIA770111PN8 | C109: VAIA770111MNTZRD09 | D109: ADRIANA VAZQUEZ IRIARTE | E109: 1 | F109: 0 | G109: 0 | H109: 0 | I109: 1 | J109: 35 | K109: 0 | L109: 0 | M109: 0 | N109: 0 | O109: 0 | P109: 0 | Q109: 0 | R109: 0 | S109: 0 | T109: 0 | U109: 1 | V109: 35 | W109: 0 | X109: 57997.66 | Y109: 69133
A110: NAYARIT | B110: VAPL6101108S1 | C110: VAPL610110MNTLLL06 | D110: LILIA ANGELICA VALENCIA PLASCENCIA | E110: 1 | F110: 0 | G110: 0 | H110: 0 | I110: 1 | J110: 35 | K110: 0 | L110: 0 | M110: 0 | N110: 0 | O110: 0 | P110: 0 | Q110: 0 | R110: 0 | S110: 0 | T110: 0 | U110: 1 | V110: 35 | W110: 0 | X110: 56528.73 | Y110: 72713.42
A111: NAYARIT | B111: VARE720715LZ0 | C111: VARE720715MNTRMN06 | D111: ENRIQUETA VARGAS ROMERO | E111: 1 | F111: 0 | G111: 0 | H111: 0 | I111: 0 | J111: 0 | K111: 0 | L111: 1 | M111: 35 | N111: 0 | O111: 0 | P111: 0 | Q111: 0 | R111: 0 | S111: 0 | T111: 0 | U111: 1 | V111: 35 | W111: 0 | X111: 63823.23 | Y111: 76448.95
A112: NAYARIT | B112: VIAB780203S93 | C112: VIAB780203HNTLLS09 | D112: BASILIO VILLASEÑOR ALCANTAR | E112: 1 | F112: 0 | G112: 0 | H112: 0 | I112: 0 | J112: 0 | K112: 0 | L112: 1 | M112: 35 | N112: 0 | O112: 0 | P112: 0 | Q112: 0 | R112: 0 | S112: 0 | T112: 0 | U112: 1 | V112: 35 | W112: 0 | X112: 60630.33 | Y112: 73549.66
A113: NAYARIT | B113: VIVB5403237M0 | C113: VIVB540323HCMLRL07 | D113: BALDOMERO VILLANUEVA VERDUZCO | E113: 1 | F113: 0 | G113: 0 | H113: 0 | I113: 0 | J113: 0 | K113: 0 | L113: 1 | M113: 35 | N113: 0 | O113: 0 | P113: 0 | Q113: 0 | R113: 0 | S113: 0 | T113: 0 | U113: 1 | V113: 35 | W113: 0 | X113: 62338.5 | Y113: 75898.08
A114: NAYARIT | B114: ZADS640611A57 | C114: ZADS640611MDFVRN00 | D114: MARIA SANDRA HADAID ZAVALA DUARTE | E114: 1 | F114: 0 | G114: 0 | H114: 0 | I114: 0 | J114: 0 | K114: 0 | L114: 1 | M114: 35 | N114: 0 | O114: 0 | P114: 0 | Q114: 0 | R114: 0 | S114: 0 | T114: 0 | U114: 1 | V114: 35 | W114: 0 | X114: 49484 | Y114: 65911.74
A115: NAYARIT | B115: ZULL580228GH3 | C115: ZULL580228MDFXNR03 | D115: MARIA DE LOURDES ZUÑIGA LEON | E115: 1 | F115: 0 | G115: 0 | H115: 0 | I115: 0 | J115: 0 | K115: 0 | L115: 1 | M115: 35 | N115: 0 | O115: 0 | P115: 0 | Q115: 0 | R115: 0 | S115: 0 | T115: 0 | U115: 1 | V115: 35 | W115: 0 | X115: 57134.6 | Y115: 68834.93
A116: NAYARIT | B116: BABM641012R5A | C116: BABM641012MNTRRR07 | D116: MERCEDES BARRAGAN BARRIGA | E116: 1 | F116: 0 | G116: 1 | H116: 35 | I116: 0 | J116: 0 | K116: 0 | L116: 0 | M116: 0 | N116: 0 | O116: 0 | P116: 0 | Q116: 0 | R116: 0 | S116: 0 | T116: 0 | U116: 1 | V116: 0 | W116: 1 | X116: 14344.74 | Y116: 20719.94
A117: NAYARIT | B117: LOPE790615FN1 | C117: LOPE790615HNTBNG03 | D117: EUGENIO LOBATOS PANCHO | E117: 1 | F117: 0 | G117: 1 | H117: 35 | I117: 0 | J117: 0 | K117: 0 | L117: 0 | M117: 0 | N117: 0 | O117: 0 | P117: 0 | Q117: 0 | R117: 0 | S117: 0 | T117: 0 | U117: 1 | V117: 0 | W117: 1 | X117: 14344.74 | Y117: 20719.94
A118: NAYARIT | B118: LOCL670621BR2 | C118: LOCL670621HNTPSS00 | D118: JOSE LUIS LOPEZ CASTAÑEDA | E118: 1 | F118: 0 | G118: 1 | H118: 35 | I118: 0 | J118: 0 | K118: 0 | L118: 0 | M118: 0 | N118: 0 | O118: 0 | P118: 0 | Q118: 0 | R118: 0 | S118: 0 | T118: 0 | U118: 1 | V118: 0 | W118: 1 | X118: 14344.74 | Y118: 20719.94
A119: NAYARIT | B119: DIFS890414J89 | C119: DIFS890414MNTSRN03 | D119: SANDY ELIZABETH DE DIOS FRANCO | E119: 1 | F119: 0 | G119: 1 | H119: 35 | I119: 0 | J119: 0 | K119: 0 | L119: 0 | M119: 0 | N119: 0 | O119: 0 | P119: 0 | Q119: 0 | R119: 0 | S119: 0 | T119: 0 | U119: 1 | V119: 0 | W119: 1 | X119: 14344.74 | Y119: 20719.94
A120: NAYARIT | B120: RAMM850120624 | C120: RAMM850120HNTMRN08 | D120: MANUEL ANTONIO RAMOS MARQUEZ | E120: 1 | F120: 0 | G120: 1 | H120: 35 | I120: 0 | J120: 0 | K120: 0 | L120: 0 | M120: 0 | N120: 0 | O120: 0 | P120: 0 | Q120: 0 | R120: 0 | S120: 0 | T120: 0 | U120: 1 | V120: 0 | W120: 1 | X120: 14344.74 | Y120: 20719.94
A121: NAYARIT | B121: FOMF8109082P0 | C121: FOMF810908HNTLRD09 | D121: FIDEL FLORES MARIN | E121: 1 | F121: 0 | G121: 1 | H121: 35 | I121: 0 | J121: 0 | K121: 0 | L121: 0 | M121: 0 | N121: 0 | O121: 0 | P121: 0 | Q121: 0 | R121: 0 | S121: 0 | T121: 0 | U121: 1 | V121: 0 | W121: 1 | X121: 14344.74 | Y121: 20719.94
A122: NAYARIT | B122: EABI6702174N9 | C122: EABI670217MCCSRR09 | D122: ESPAÑA BARRERA IRMA LETICIA | E122: 1 | F122: 0 | G122: 1 | H122: 35 | I122: 0 | J122: 0 | K122: 0 | L122: 0 | M122: 0 | N122: 0 | O122: 0 | P122: 0 | Q122: 0 | R122: 0 | S122: 0 | T122: 0 | U122: 1 | V122: 0 | W122: 1 | X122: 14344.74 | Y122: 20719.94
A123: NAYARIT | B123: PEGI6704051N2 | C123: PEGI670405HNTRNS08 | D123: PEREZ GONZALEZ MARIA ISABEL | E123: 1 | F123: 0 | G123: 1 | H123: 35 | I123: 0 | J123: 0 | K123: 0 | L123: 0 | M123: 0 | N123: 0 | O123: 0 | P123: 0 | Q123: 0 | R123: 0 | S123: 0 | T123: 0 | U123: 1 | V123: 0 | W123: 1 | X123: 14344.74 | Y123: 20719.94
A124: NAYARIT | B124: MUAA760211IC0 | C124: MUAA760211HNTRCM09 | D124: MURILLO ACOSTA AMPELIO | E124: 1 | F124: 0 | G124: 1 | H124: 35 | I124: 0 | J124: 0 | K124: 0 | L124: 0 | M124: 0 | N124: 0 | O124: 0 | P124: 0 | Q124: 0 | R124: 0 | S124: 0 | T124: 0 | U124: 1 | V124: 0 | W124: 1 | X124: 14344.74 | Y124: 20719.94
A125: NAYARIT | B125: CAPR660904LW1 | C125: CAPR660904MNTRRS05 | D125: CARRILLO PARTIDA ROSA MARIA | E125: 1 | F125: 0 | G125: 1 | H125: 35 | I125: 0 | J125: 0 | K125: 0 | L125: 0 | M125: 0 | N125: 0 | O125: 0 | P125: 0 | Q125: 0 | R125: 0 | S125: 0 | T125: 0 | U125: 1 | V125: 0 | W125: 1 | X125: 9563.16 | Y125: 20719.94
A126: NAYARIT | B126: MEFJ900623F24 | C126: MEFJ900623HNTDNN09 | D126: MEDINA FONSECA JUAN CARLOS | E126: 1 | F126: 0 | G126: 1 | H126: 35 | I126: 0 | J126: 0 | K126: 0 | L126: 0 | M126: 0 | N126: 0 | O126: 0 | P126: 0 | Q126: 0 | R126: 0 | S126: 0 | T126: 0 | U126: 1 | V126: 0 | W126: 1 | X126: 14344.74
A127: NAYARIT | B127: RAAM930425JH3 | C127: RAAM930425MNTMVR03 | D127: MARISOL ANAHI RAMIREZ AVILA | E127: 1 | F127: 0 | G127: 1 | H127: 35 | I127: 0 | J127: 0 | K127: 0 | L127: 0 | M127: 0 | N127: 0 | O127: 0 | P127: 0 | Q127: 0 | R127: 0 | S127: 0 | T127: 0 | U127: 1 | V127: 0 | W127: 1 | X127: 14344.74
A128: NAYARIT | B128: TOVY831104BU5 | C128: TOVY831104MNTRZR03 | D128: YURIDIA TORRES VAZQUEZ | E128: 1 | F128: 0 | G128: 1 | H128: 35 | I128: 0 | J128: 0 | K128: 0 | L128: 0 | M128: 0 | N128: 0 | O128: 0 | P128: 0 | Q128: 0 | R128: 0 | S128: 0 | T128: 0 | U128: 1 | V128: 0 | W128: 1 | X128: 4781.58
A129: NAYARIT | B129: MAOE820709BC1 | C129: MAOE820709MNTRRL06 | D129: ELVA LORENA MARQUEZ OROZCO | E129: 1 | F129: 0 | G129: 0 | H129: 0 | I129: 0 | J129: 0 | K129: 0 | L129: 0 | M129: 0 | N129: 0 | O129: 0 | P129: 0 | Q129: 0 | R129: 1 | S129: 40 | T129: 0 | U129: 1 | V129: 35 | W129: 0 | X129: 55320.39 | Y129: 46295.02
A130: NAYARIT | B130: SAMA9504119YA | C130: SAMA950411HNTLRL05 | D130: ALAN EDUARDO SALINAS MARTINEZ | E130: 1 | F130: 0 | G130: 0 | H130: 0 | I130: 1 | J130: 40 | K130: 0 | L130: 0 | M130: 0 | N130: 0 | O130: 0 | P130: 0 | Q130: 0 | R130: 0 | S130: 0 | T130: 0 | U130: 1 | V130: 35 | W130: 0 | X130: 23048.88
A131: NAYARIT | B131: OEGH8909064U9 | C131: OEGH890906HNTRZC02 | D131: HECTOR ALBERTO ORTEGA GUZMAN | E131: 1 | F131: 0 | G131: 0 | H131: 0 | I131: 1 | J131: 35 | K131: 0 | L131: 0 | M131: 0 | N131: 0 | O131: 0 | P131: 0 | Q131: 0 | R131: 0 | S131: 0 | T131: 0 | U131: 1 | V131: 35 | W131: 0 | X131: 40557.04 | Y131: 55042.37
A132: NAYARIT | B132: FALN810731E5A | C132: FALN810731MDFRNR05 | D132: NORA EDITH FRANCO LUNA | E132: 1 | F132: 0 | G132: 0 | H132: 0 | I132: 1 | J132: 35 | K132: 0 | L132: 0 | M132: 0 | N132: 0 | O132: 0 | P132: 0 | Q132: 0 | R132: 0 | S132: 0 | T132: 0 | U132: 1 | V132: 35 | W132: 0 | X132: 43914.89 | Y132: 57471.82
A133: NAYARIT | B133: PAOK860904PU2 | C133: PAOK860904MNTRCR08 | D133: KAREN LISSETTE PARDO OCHOA | E133: 1 | F133: 0 | G133: 0 | H133: 0 | I133: 1 | J133: 35 | K133: 0 | L133: 0 | M133: 0 | N133: 0 | O133: 0 | P133: 0 | Q133: 0 | R133: 0 | S133: 0 | T133: 0 | U133: 1 | V133: 35 | W133: 0 | X133: 40296.56 | Y133: 53019.87
A134: NAYARIT | B134: IAAA790420LG8 | C134: IAAA790420HNTBLN02 | D134: ANTONIO IBARRA ALMARAZ | E134: 1 | F134: 0 | G134: 0 | H134: 0 | I134: 1 | J134: 35 | K134: 0 | L134: 0 | M134: 0 | N134: 0 | O134: 0 | P134: 0 | Q134: 0 | R134: 0 | S134: 0 | T134: 0 | U134: 1 | V134: 35 | W134: 0 | X134: 40596.56 | Y134: 55632.37
A135: NAYARIT | B135: MOFG790213LUA | C135: MOFG790213MNTLD00 | D135: MARIA GUADALUPE MONTAÑEZ FLETES | E135: 1 | F135: 0 | G135: 0 | H135: 0 | I135: 1 | J135: 35 | K135: 0 | L135: 0 | M135: 0 | N135: 0 | O135: 0 | P135: 0 | Q135: 0 | R135: 0 | S135: 0 | T135: 0 | U135: 1 | V135: 35 | W135: 0 | X135: 34908.84 | Y135: 57509.03
A136: NAYARIT | B136: COHN840218I76 | C136: COHN840218HNTRRS08 | D136: NESTOR SIMITRO CORTES HERNANDEZ | E136: 1 | F136: 0 | G136: 0 | H136: 0 | I136: 1 | J136: 35 | K136: 0 | L136: 0 | M136: 0 | N136: 0 | O136: 0 | P136: 0 | Q136: 0 | R136: 0 | S136: 0 | T136: 0 | U136: 1 | V136: 35 | W136: 0 | X136: 39710.48 | Y136: 54286.13
A137: NAYARIT | B137: CAAY720710LWA | C137: CAAY720710MNTRVL00 | D137: CARRILLO AVALOS YOLANDA | E137: 1 | F137: 0 | G137: 0 | H137: 0 | I137: 1 | J137: 35 | K137: 0 | L137: 0 | M137: 0 | N137: 0 | O137: 0 | P137: 0 | Q137: 0 | R137: 0 | S137: 0 | T137: 0 | U137: 1 | V137: 35 | W137: 0 | X137: 49466.64 | Y137: 58875.69
A138: NAYARIT | B138: OOCM8808119H1 | C138: OOCM880811MNTRRN02 | D138: MONICA CLARISSA OROZCO CRUZ | E138: 1 | F138: 0 | G138: 0 | H138: 0 | I138: 1 | J138: 35 | K138: 0 | L138: 0 | M138: 0 | N138: 0 | O138: 0 | P138: 0 | Q138: 0 | R138: 0 | S138: 0 | T138: 0 | U138: 1 | V138: 35 | W138: 0 | X138: 44322.15 | Y138: 55487.73
A139: NAYARIT | B139: GANP690420GX5 | C139: GANP690420MNTRXT06 | D139: PATRICIA GARCIA NUÑEZ | E139: 1 | F139: 0 | G139: 0 | H139: 0 | I139: 0 | J139: 0 | K139: 0 | L139: 0 | M139: 0 | N139: 0 | O139: 1 | P139: 40 | Q139: 0 | R139: 0 | S139: 0 | T139: 0 | U139: 1 | V139: 40 | W139: 0 | X139: 200715.21 | Y139: 224195.03
A140: NAYARIT | B140: MARG741212515 | C140: MARG741212MNTRMD18 | D140: MARIA GUADALUPE MARTINEZ RAMOS | E140: 1 | F140: 0 | G140: 0 | H140: 0 | I140: 0 | J140: 0 | K140: 0 | L140: 0 | M140: 0 | N140: 0 | O140: 0 | P140: 0 | Q140: 0 | R140: 1 | S140: 40 | T140: 0 | U140: 1 | V140: 40 | W140: 0 | X140: 54840.39 | Y140: 59889.53
A141: NAYARIT | B141: AUGW800801IE7 | C141: AUGW800801MNTGRN05 | D141: WENDY ARLENNE AGUILAR GARAY | E141: 1 | F141: 0 | G141: 0 | H141: 0 | I141: 0 | J141: 0 | K141: 0 | L141: 1 | M141: 35 | N141: 0 | O141: 0 | P141: 0 | Q141: 0 | R141: 0 | S141: 0 | T141: 0 | U141: 1 | V141: 35 | W141: 0 | X141: 54158.06 | Y141: 46538.87
A142: NAYARIT | B142: DUOM651107SS4 | C142: DUOM651107MNTRRR01 | D142: MARTHA LORENA DURAN OROZCO | E142: 1 | F142: 0 | G142: 0 | H142: 0 | I142: 1 | J142: 35 | K142: 0 | L142: 0 | M142: 0 | N142: 0 | O142: 0 | P142: 0 | Q142: 0 | R142: 0 | S142: 0 | T142: 0 | U142: 1 | V142: 35 | W142: 0 | X142: 47867.52 | Y142: 41617.31
A143: NAYARIT | B143: AUZF900612KY1 | C143: AUZF900612MNTGPB08 | D143: FABIOLA AZUCENA AGUILAR ZEPEDA | E143: 1 | F143: 0 | G143: 0 | H143: 0 | I143: 1 | J143: 35 | K143: 0 | L143: 0 | M143: 0 | N143: 0 | O143: 0 | P143: 0 | Q143: 0 | R143: 0 | S143: 0 | T143: 0 | U143: 1 | V143: 35 | W143: 0 | X143: 42209.85 | Y143: 38385.09
A144: NAYARIT | B144: PAMK9402063H8 | C144: PAMK940206MNTRRR03 | D144: KAREN GRECIA ITZEL PARTIDA MARMOLEJO | E144: 1 | F144: 0 | G144: 0 | H144: 0 | I144: 1 | J144: 35 | K144: 0 | L144: 0 | M144: 0 | N144: 0 | O144: 0 | P144: 0 | Q144: 0 | R144: 0 | S144: 0 | T144: 0 | U144: 1 | V144: 35 | W144: 0 | X144: 39710.48 | Y144: 35802.04
A145: NAYARIT | B145: PEFG900607MC1 | C145: PEFG900607MNTRLR04 | D145: MARIA GRACIELA PEREZ FLORES | E145: 1 | F145: 0 | G145: 0 | H145: 0 | I145: 1 | J145: 35 | K145: 0 | L145: 0 | M145: 0 | N145: 0 | O145: 0 | P145: 0 | Q145: 0 | R145: 0 | S145: 0 | T145: 0 | U145: 1 | V145: 35 | W145: 0 | X145: 36465.33 | Y145: 36152.04
A146: NAYARIT | B146: GOHS820825LT2 | C146: GOHS820825MNTNRL02 | D146: GONZALEZ HERNANDEZ SOLEDAD | E146: 1 | F146: 0 | G146: 0 | H146: 0 | I146: 1 | J146: 35 | K146: 0 | L146: 0 | M146: 0 | N146: 0 | O146: 0 | P146: 0 | Q146: 0 | R146: 0 | S146: 0 | T146: 0 | U146: 1 | V146: 35 | W146: 0 | X146: 37477.62
A147: NAYARIT | B147: MIAC880412U2A | C147: MIAC880412MNTNGR00 | D147: MINJARES AGUILAR CARMEN EUGENIA | E147: 1 | F147: 0 | G147: 0 | H147: 0 | I147: 1 | J147: 35 | K147: 0 | L147: 0 | M147: 0 | N147: 0 | O147: 0 | P147: 0 | Q147: 0 | R147: 0 | S147: 0 | T147: 0 | U147: 1 | V147: 35 | W147: 0 | X147: 36465.33
A148: NAYARIT | B148: AATJ8211206T9 | C148: AATJ821120MNTLR01 | D148: ALDACO TORRES JANETH YAHAIRA | E148: 1 | F148: 0 | G148: 0 | H148: 0 | I148: 0 | J148: 0 | K148: 0 | L148: 1 | M148: 35 | N148: 0 | O148: 0 | P148: 0 | Q148: 0 | R148: 0 | S148: 0 | T148: 0 | U148: 1 | V148: 35 | W148: 0 | X148: 47196.61
A149: NAYARIT | B149: NUOL790816HL2 | C149: NUOL790816MNTXRZ00 | D149: LIZETH DEL ROCIO NUÑEZ ORTEGA | E149: 1 | F149: 0 | G149: 0 | H149: 0 | I149: 1 | J149: 0 | K149: 0 | L149: 0 | M149: 0 | N149: 0 | O149: 0 | P149: 0 | Q149: 0 | R149: 1 | S149: 40 | T149: 0 | U149: 1 | V149: 40 | W149: 0 | X149: 54840.39 | Y149: 59889.53
A150: NAYARIT | B150: OOGV931204UX8 | C150: OOGV931204HNTCRC09 | D150: VICENTE OCHOA GARCIA | E150: 1 | F150: 0 | G150: 0 | H150: 0 | I150: 1 | J150: 40 | K150: 0 | L150: 0 | M150: 0 | N150: 0 | O150: 0 | P150: 0 | Q150: 0 | R150: 0 | S150: 0 | T150: 0 | U150: 1 | V150: 35 | W150: 0 | X150: 16444.44
A151: NAYARIT | B151: MOOM870801V58 | C151: MOOM870801HNTNRR01 | D151: MARIANO ENRIQUE MONTERO ORTEGA | E151: 1 | F151: 0 | G151: 0 | H151: 0 | I151: 0 | J151: 0 | K151: 0 | L151: 0 | M151: 0 | N151: 0 | O151: 0 | P151: 0 | Q151: 0 | R151: 1 | S151: 40 | T151: 0 | U151: 1 | V151: 40 | W151: 0 | X151: 54840.39
A152: NAYARIT | B152: MEVA810103318 | C152: MEVA810103HNTZLB07 | D152: ABEL MEZA DEL VALLE | E152: 1 | F152: 0 | G152: 0 | H152: 0 | I152: 0 | J152: 0 | K152: 0 | L152: 0 | M152: 0 | N152: 0 | O152: 0 | P152: 0 | Q152: 0 | R152: 1 | S152: 40 | T152: 0 | U152: 1 | V152: 40 | W152: 0 | X152: 54840.45
A153: NAYARIT | B153: AAGD8310245TA | C153: AAGD831024HNTYRN07 | D153: DANIEL ENRIQUE AYALA GARCIA | E153: 1 | F153: 0 | G153: 0 | H153: 0 | I153: 0 | J153: 0 | K153: 0 | L153: 0 | M153: 0 | N153: 0 | O153: 0 | P153: 0 | Q153: 0 | R153: 1 | S153: 40 | T153: 0 | U153: 1 | V153: 40 | W153: 0 | X153: 54840.45
A154: NAYARIT | B154: GOMJ751008TZA | C154: GOMJ751008HNTNRL06 | D154: JULIO CESAR GONZALEZ MORENO | E154: 1 | F154: 0 | G154: 0 | H154: 0 | I154: 0 | J154: 0 | K154: 0 | L154: 0 | M154: 0 | N154: 0 | O154: 0 | P154: 0 | Q154: 0 | R154: 1 | S154: 40 | T154: 0 | U154: 1 | V154: 40 | W154: 0 | X154: 54840.45 | Y154: 58465.01
A155: NAYARIT | B155: CEGY820421KN7 | C155: CEGY820421MNTJRS03 | D155: YESENIA YANETH CEJA GARCIA | E155: 1 | F155: 0 | G155: 0 | H155: 0 | I155: 0 | J155: 0 | K155: 0 | L155: 0 | M155: 0 | N155: 0 | O155: 0 | P155: 0 | Q155: 0 | R155: 1 | S155: 40 | T155: 0 | U155: 1 | V155: 40 | W155: 0 | X155: 54840.45 | Y155: 39421.68
A156: NAYARIT | B156: MAOA780907LV5 | C156: MAOA780907HNTCRL08 | D156: JOSE ALBERTO MACEDO ORTEGA | E156: 1 | F156: 0 | G156: 0 | H156: 0 | I156: 0 | J156: 0 | K156: 0 | L156: 0 | M156: 0 | N156: 0 | O156: 0 | P156: 0 | Q156: 0 | R156: 1 | S156: 40 | T156: 0 | U156: 1 | V156: 40 | W156: 0 | X156: 1046.67 | Y156: 39421.64
A157: NAYARIT | B157: GALA860819222 | C157: GALA860819MJCRRN05 | D157: ANGELICA MARIA GUADALUPE GARCIA LOERA | E157: 1 | F157: 0 | G157: 0 | H157: 0 | I157: 1 | J157: 40 | K157: 0 | L157: 0 | M157: 0 | N157: 0 | O157: 0 | P157: 0 | Q157: 0 | R157: 0 | S157: 0 | T157: 0 | U157: 1 | V157: 35 | W157: 0 | X157: 49466.64
A158: NAYARIT | B158: SESN8801138H9 | C158: SESN880113MNTPNN09 | D158: SEPULVEDA SANDOVAL NANCY THALIA | E158: 1 | F158: 0 | G158: 0 | H158: 0 | I158: 1 | J158: 35 | K158: 0 | L158: 0 | M158: 0 | N158: 0 | O158: 0 | P158: 0 | Q158: 0 | R158: 0 | S158: 0 | T158: 0 | U158: 1 | V158: 35 | W158: 0 | X158: 44376.38
A159: NAYARIT | B159: CAGS9102045J1 | C159: CAGS910204MNTRNT07 | D159: CARRILLO GONZALEZ STEPHANIE | E159: 1 | F159: 0 | G159: 0 | H159: 0 | I159: 1 | J159: 35 | K159: 0 | L159: 0 | M159: 0 | N159: 0 | O159: 0 | P159: 0 | Q159: 0 | R159: 0 | S159: 0 | T159: 0 | U159: 1 | V159: 35 | W159: 0 | X159: 35509.71
A160: NAYARIT | B160: GUBJ8403153GA | C160: GUBJ840315MNTTRS06 | D160: GUTIERREZ BERNAL JOSELIN DEL CARMEN | E160: 1 | F160: 0 | G160: 0 | H160: 0 | I160: 1 | J160: 40 | K160: 0 | L160: 0 | M160: 0 | N160: 0 | O160: 0 | P160: 0 | Q160: 0 | R160: 0 | S160: 0 | T160: 0 | U160: 1 | V160: 40 | W160: 0 | X160: 54797.53
A161: NAYARIT | B161: SAPC9205035G0 | C161: SAPC920503MNTNLN03 | D161: SANTANA POLANCO CINTHIA DANIELA | E161: 1 | F161: 0 | G161: 0 | H161: 0 | I161: 1 | J161: 40 | K161: 0 | L161: 0 | M161: 0 | N161: 0 | O161: 0 | P161: 0 | Q161: 0 | R161: 0 | S161: 0 | T161: 0 | U161: 1 | V161: 40 | W161: 0 | X161: 42875.38
A162: NAYARIT | B162: ROCO870109C61 | C162: ROCO870109HNTBRS08 | D162: ROBLES CORDERO OSCAR HUMBERTO | E162: 1 | F162: 0 | G162: 0 | H162: 0 | I162: 1 | J162: 35 | K162: 0 | L162: 0 | M162: 0 | N162: 0 | O162: 0 | P162: 0 | Q162: 0 | R162: 0 | S162: 0 | T162: 0 | U162: 1 | V162: 35 | W162: 0 | X162: 35509.71
A163: NAYARIT | B163: CAFJ920621U84 | C163: CAFJ920621MNTRLL08 | D163: CARRILLO FLORES JULIA DEL CARMEN | E163: 1 | F163: 0 | G163: 0 | H163: 0 | I163: 1 | J163: 35 | K163: 0 | L163: 0 | M163: 0 | N163: 0 | O163: 0 | P163: 0 | Q163: 0 | R163: 0 | S163: 0 | T163: 0 | U163: 1 | V163: 35 | W163: 0 | X163: 35509.71
A164: NAYARIT | B164: BUBA831109E36 | C164: BUBA831109MNTSRN01 | D164: BUSTAMANTE BORRAYO ANA RUTH | E164: 1 | F164: 0 | G164: 0 | H164: 0 | I164: 1 | J164: 40 | K164: 0 | L164: 0 | M164: 0 | N164: 0 | O164: 0 | P164: 0 | Q164: 0 | R164: 0 | S164: 0 | T164: 0 | U164: 1 | V164: 40 | W164: 0 | X164: 40536.38
A165: NAYARIT | B165: JIRK960721P84 | C165: JIRK960721MBCMZT05 | D165: JIMENEZ RUIZ KATIA FERNANDA | E165: 1 | F165: 0 | G165: 0 | H165: 0 | I165: 1 | J165: 35 | K165: 0 | L165: 0 | M165: 0 | N165: 0 | O165: 0 | P165: 0 | Q165: 0 | R165: 0 | S165: 0 | T165: 0 | U165: 1 | V165: 35 | W165: 0 | X165: 35509.71
A166: NAYARIT | B166: UIIL750709IJ9 | C166: UIIL750709MNTRBV05 | D166: URIBE IBARRA LIVIER | E166: 1 | F166: 0 | G166: 0 | H166: 0 | I166: 1 | J166: 40 | K166: 0 | L166: 0 | M166: 0 | N166: 0 | O166: 0 | P166: 0 | Q166: 0 | R166: 0 | S166: 0 | T166: 0 | U166: 1 | V166: 40 | W166: 0 | X166: 54407.39
A167: NAYARIT | B167: QUNL8911244Q6 | C167: QUNL891124MNTRXS06 | D167: QUIROGA NUÑEZ LESLIE GABRIELA | E167: 1 | F167: 0 | G167: 0 | H167: 0 | I167: 1 | J167: 35 | K167: 0 | L167: 0 | M167: 0 | N167: 0 | O167: 0 | P167: 0 | Q167: 0 | R167: 0 | S167: 0 | T167: 0 | U167: 1 | V167: 35 | W167: 0 | X167: 37173.18
A168: NAYARIT | B168: MAML0011014V6 | C168: MAML001101HNTYDZA3 | D168: MAYORQUIN MEDINA LAZARO JOSEHANGEL | E168: 1 | F168: 0 | G168: 0 | H168: 0 | I168: 0 | J168: 35 | K168: 0 | L168: 0 | M168: 0 | N168: 0 | O168: 0 | P168: 0 | Q168: 0 | R168: 0 | S168: 0 | T168: 0 | U168: 1 | V168: 35 | W168: 0 | X168: 35287.41
A169: NAYARIT | B169: BAMJ921231AL0 | C169: BAMJ921231HNTRRS04 | D169: BARRIOS MORA JESUS ARMANDO | E169: 1 | F169: 0 | G169: 0 | H169: 0 | I169: 0 | J169: 35 | K169: 0 | L169: 0 | M169: 0 | N169: 0 | O169: 0 | P169: 0 | Q169: 0 | R169: 0 | S169: 0 | T169: 0 | U169: 1 | V169: 35 | W169: 0 | X169: 33134.19
A170: NAYARIT | B170: LOZY811228DK1 | C170: LOZY811228MNTPVD01 | D170: LOPEZ ZAVALA YADIRA ALEJANDRA | E170: 1 | F170: 0 | G170: 0 | H170: 0 | I170: 0 | J170: 35 | K170: 0 | L170: 0 | M170: 0 | N170: 0 | O170: 0 | P170: 0 | Q170: 0 | R170: 0 | S170: 0 | T170: 0 | U170: 1 | V170: 35 | W170: 0 | X170: 33134.19
A171: NAYARIT | B171: AAUB980612QV5 | C171: AAUB980612MNTVRR02 | D171: AVALOS URIBE BRISA ALEJANDRA | E171: 1 | F171: 0 | G171: 0 | H171: 0 | I171: 1 | J171: 35 | K171: 0 | L171: 0 | M171: 0 | N171: 0 | O171: 0 | P171: 0 | Q171: 0 | R171: 0 | S171: 0 | T171: 0 | U171: 1 | V171: 35 | W171: 0 | X171: 39561.64
A172: NAYARIT | B172: MAAK930122C18 | C172: MAAK930122MNTRLR05 | D172: MARTINEZ ALMEJO KAREN ABIGAIL | E172: 1 | F172: 0 | G172: 0 | H172: 0 | I172: 0 | J172: 35 | K172: 0 | L172: 0 | M172: 0 | N172: 0 | O172: 0 | P172: 0 | Q172: 0 | R172: 0 | S172: 0 | T172: 0 | U172: 1 | V172: 35 | W172: 0 | X172: 33134.19
A173: NAYARIT | B173: RATV791021AJ6 | C173: RATV791021HNTMPC03 | D173: RAMIREZ TOPETE VICTOR JAVIER | E173: 1 | F173: 0 | G173: 0 | H173: 0 | I173: 0 | J173: 35 | K173: 0 | L173: 0 | M173: 0 | N173: 0 | O173: 0 | P173: 0 | Q173: 0 | R173: 0 | S173: 0 | T173: 0 | U173: 1 | V173: 35 | W173: 0 | X173: 54143.57
A174: NAYARIT | B174: DEPE9006239M6 | C174: DEPE900623HNTLXN06 | D174: DELGADO PEÑA ENRIQUE | E174: 1 | F174: 0 | G174: 0 | H174: 0 | I174: 0 | J174: 40 | K174: 0 | L174: 0 | M174: 0 | N174: 0 | O174: 0 | P174: 0 | Q174: 0 | R174: 0 | S174: 0 | T174: 0 | U174: 1 | V174: 40 | W174: 0 | X174: 33022.2
A175: NAYARIT | B175: FAMM9508109Q2 | C175: FAMM950810MNTRNY05 | D175: FRANCO MONROY MIRIAM ANGELICA | E175: 1 | F175: 0 | G175: 0 | H175: 0 | I175: 0 | J175: 40 | K175: 0 | L175: 0 | M175: 0 | N175: 0 | O175: 0 | P175: 0 | Q175: 0 | R175: 0 | S175: 0 | T175: 0 | U175: 1 | V175: 40 | W175: 0 | X175: 26417.76
A176: NAYARIT | B176: HIEL8602266Y1 | C176: HIEL860226HNTDSS08 | D176: HIDALGO ESCOBAR LUIS ALBERTO | E176: 1 | F176: 0 | G176: 0 | H176: 0 | I176: 0 | J176: 35 | K176: 0 | L176: 0 | M176: 0 | N176: 0 | O176: 0 | P176: 0 | Q176: 0 | R176: 0 | S176: 0 | T176: 0 | U176: 1 | V176: 35 | W176: 0 | X176: 5617.51
X177: =SUM(X18:X176) -> 7672029.08
A179: Total Personas : | B179: 159 | U179: Total Recursos Ejercidos:
A181: Fuente : Información proporcionada por las Entidades Federativas.

Sheet II C y 1_
A8: Formato: Personal Federalizado por Registro Federal de Contribuyentes
A9: =IF('Caratula Resumen'!D22="Elige el Periodo…","",'Caratula Resumen'!D22) -> Fondo de Aportaciones para la Educación Tecnológica y de Adultos/Instituto Nacional para la Educación de los Adultos (FAETA/INEA) | T9: =IF('Caratula Resumen'!D23="Elige el Periodo…","",'Caratula Resumen'!D23) -> 1er. Trimestre
A12: Entidad Federativa | B12: Clave CT | C12: Turno | D12: RFC | E12: CURP | F12: Nombre | G12: Funcion Real | H12: Horas que labora en el Centro de Trabajo | I12: Clave Presupuestal | P12: Tipo de Categoría | Q12: Identificador de Contrato de Honorarios | R12: Periodo de efecto de pago en el trimestre | T12: Percepciones pagadas en el Periodo de Comisión con Presupuesto Federal* | U12: Percepciones pagadas en el Periodo de Comisión con Presupuesto de otra fuente*
I13: Partida Presupuestal | J13: Código de Pago | K13: Clave de Unidad | L13: Clave de Sub Unidad | M13: Clave de Categoría | N13: Horas Semana Mes | O13: Número de Plaza | R13: Inicial | S13: Termino
A15: Entidad Federativa | B15: Clave CT | C15: Turno | D15: RFC | E15: CURP | F15: Nombre | G15: Funcion Real | H15: Horas que labora en el Centro de Trabajo | I15: Partida Presupuestal | J15: Código de Pago | K15: Clave de Unidad | L15: Clave de Sub Unidad | M15: Clave de Categoría | N15: Horas semana mes | O15: Número de plaza | P15: Tipo de Categoría | Q15: Identificador de Contrato de Honorarios | R15: Periodo de efecto de pago en el trimestre Inicial | S15: Periodo de efecto de pago en el trimestre Termino | T15: Percepciones pagadas en el Periodo de Comisión con Presupuesto Federal* | U15: Percepciones pagadas en el Periodo de Comisión con Presupuesto de otra fuente*
A16: NAYARIT | B16: 18FIA0001J | C16: 100 | D16: AABE6103292X4 | E16: AABE610329MNTNRL06 | F16: ELIA ANDRADE BARAJAS | G16: TECNICO MEDIO | H16: 35 | I16: 83101 | J16: 1 | K16: 9 | L16: 36 | M16: T03803 | N16: 0 | O16: 35 | P16: 2 | R16: 20200101 | S16: 20200331 | T16: 47329.43
A17: NAYARIT | B17: 18FIA0001J | C17: 100 | D17: AAMG630419R1A | E17: AAMG630419MNTRRD02 | F17: MARIA GUADALUPE ARAGON MURILLO | G17: JEFE DE OFICINA | H17: 35 | I17: 83101 | J17: 1 | K17: 2 | L17: 5 | M17: A01807 | N17: 0 | O17: 49 | P17: 5 | R17: 20200101 | S17: 20200331 | T17: 61376.85
A18: NAYARIT | B18: 18FIA0001J | C18: 100 | D18: AEAE670823T58 | E18: AEAE670823HNTRLF06 | F18: EFRAIN ARELLANO ALATORRE | G18: TECNICO DOCENTE | H18: 35 | I18: 83101 | J18: 1 | K18: 7 | L18: 17 | M18: T03820 | N18: 0 | O18: 101 | P18: 7 | R18: 20200101 | S18: 20200331 | T18: 63599.88
A19: NAYARIT | B19: 18FIA0001J | C19: 100 | D19: AEMC660716HS4 | E19: AEMC660716MNTRNR04 | F19: CARMEN JULIA ARCE MONTIEL | G19: TECNICO DOCENTE | H19: 35 | I19: 83101 | J19: 1 | K19: 7 | L19: 12 | M19: T03820 | N19: 0 | O19: 69 | P19: 7 | R19: 20200101 | S19: 20200331 | T19: 63599.88
A20: NAYARIT | B20: 18FIA0001J | C20: 100 | D20: AEMF710709245 | E20: AEMF710709MNTLRB09 | F20: FABIOLA ALMEJO MORENO | G20: TECNICO SUPERIOR | H20: 35 | I20: 83101 | J20: 1 | K20: 3 | L20: 8 | M20: T03823 | N20: 0 | O20: 52 | P20: 7 | R20: 20200101 | S20: 20200331 | T20: 61060.82
A21: NAYARIT | B21: 18FIA0001J | C21: 100 | D21: AERL490315IT8 | E21: AERL490315HNTRDS02 | F21: LUIS DANIEL ARREOLA RODRIGUEZ | G21: ADMINISTRATIVO ESPECIALIZADOS | H21: 35 | I21: 83101 | J21: 1 | K21: 9 | L21: 35 | M21: A01803 | N21: 0 | O21: 18 | P21: 2 | R21: 20200101 | S21: 20200331 | T21: 47329.43
A22: NAYARIT | B22: 18FIA0001J | C22: 100 | D22: AESA660613253 | E22: AESA660613HNTRNN05 | F22: ANTONIO ARELIZ SANDOVAL | G22: TECNICO MEDIO | H22: 35 | I22: 83101 | J22: 1 | K22: 9 | L22: 36 | M22: T03803 | N22: 0 | O22: 17 | P22: 2 | R22: 20200101 | S22: 20200331 | T22: 50698.14
A23: NAYARIT | B23: 18FIA0001J | C23: 100 | D23: AIAM561122BX1 | E23: AIAM561122HNTVVN01 | F23: MANUEL AVILA AVILA | G23: TECNICO MEDIO | H23: 35 | I23: 83101 | J23: 1 | K23: 9 | L23: 35 | M23: T03803 | N23: 0 | O23: 19 | P23: 2 | R23: 20200101 | S23: 20200331 | T23: 44431.59
A24: NAYARIT | B24: 18FIA0001J | C24: 100 | D24: AIOP920903RY1 | E24: AIOP920903MNTVRL04 | F24: PALOMA LIZETH AVILA OROZCO | G24: JEFA DE OFICINA | H24: 35 | I24: 83101 | J24: 1 | K24: 2 | L24: 6 | M24: A01806 | N24: 0 | O24: 262 | P24: 3 | R24: 20200101 | S24: 20200331 | T24: 45836.9
A25: NAYARIT | B25: 18FIA0001J | C25: 100 | D25: AISG630112LU9 | E25: AISG630112MNTMND00 | F25: MARIA GUADALUPE AMBRIZ SANDOVAL | G25: TECNICO DOCENTE | H25: 35 | I25: 83101 | J25: 1 | K25: 7 | L25: 14 | M25: T03820 | N25: 0 | O25: 100 | P25: 7 | R25: 20200101 | S25: 20200331 | T25: 60428.71
A26: NAYARIT | B26: 18FIA0001J | C26: 100 | D26: AISJ700621BC9 | E26: AISJ700621MNTRMS00 | F26: JOSEFINA ARIAS SIMENTAL | G26: JEFE DE OFICINA | H26: 35 | I26: 83101 | J26: 1 | K26: 2 | L26: 6 | M26: A01807 | N26: 0 | O26: 28 | P26: 5 | R26: 20200101 | S26: 20200331 | T26: 52497.61
A27: NAYARIT | B27: 18FIA0001J | C27: 100 | D27: AUAP690629Q72 | E27: AUAP690629HNTGLD05 | F27: PEDRO AGUILAR ALVAREZ | G27: SECRETARIA C | H27: 35 | I27: 83101 | J27: 1 | K27: 7 | L27: 13 | M27: A03804 | N27: 0 | O27: 79 | P27: 2 | R27: 20200101 | S27: 20200331 | T27: 53202.64
A28: NAYARIT | B28: 18FIA0001J | C28: 100 | D28: AUHT670720B63 | E28: AUHT670720MNTQRR01 | F28: TERESA AQUINO HERNANDEZ | G28: TECNICO DOCENTE | H28: 35 | I28: 83101 | J28: 1 | K28: 7 | L28: 16 | M28: T03820 | N28: 0 | O28: 132 | P28: 7 | R28: 20200101 | S28: 20200331 | T28: 64046.61
A29: NAYARIT | B29: 18FIA0001J | C29: 100 | D29: SANI8907293UA | E29: SANI890729HNTLVR09 | F29: IRAN JAIR SALAZAR NAVARRO | G29: COORD. DE SERVICIOS ESP. | H29: 35 | I29: 83101 | J29: 1 | K29: 3 | L29: 9 | M29: CF33849 | N29: 0 | O29: 365 | P29: 8 | R29: 20200101 | S29: 20200331 | T29: 49466.64
A30: NAYARIT | B30: 18FIA0001J | C30: 100 | D30: BARC731208RP3 | E30: BARC731208MNTRNN03 | F30: MARIA CONCEPCION BARRERA RENTERIA | G30: TECNICO SUPERIOR | H30: 35 | I30: 83101 | J30: 1 | K30: 4 | L30: 11 | M30: T03823 | N30: 0 | O30: 29 | P30: 7 | R30: 20200101 | S30: 20200331 | T30: 60209.91
A31: NAYARIT | B31: 18FIA0001J | C31: 100 | D31: CABA5502259D5 | E31: CABA550225HNTSRB09 | F31: ABEL CASTRO BERNAL | G31: TECNICO DOCENTE | H31: 35 | I31: 83101 | J31: 1 | K31: 7 | L31: 14 | M31: T03820 | N31: 0 | O31: 102 | P31: 7 | R31: 20200101 | S31: 20200331 | T31: 60331.49
A32: NAYARIT | B32: 18FIA0001J | C32: 100 | D32: CAGC700411BP6 | E32: CAGC700411MNTRNL05 | F32: MARIA CELINA CARRILLO GONZALEZ | G32: TECNICO SUPERIOR | H32: 35 | I32: 83101 | J32: 1 | K32: 8 | L32: 29 | M32: T03823 | N32: 0 | O32: 41 | P32: 7 | R32: 20200101 | S32: 20200331 | T32: 61943.53
A33: NAYARIT | B33: 18FIA0001J | C33: 100 | D33: CALM7004265UA | E33: CALM700426HNTHMR08 | F33: MARCELINO CHAVEZ LAMAS | G33: TECNICO DOCENTE | H33: 35 | I33: 83101 | J33: 1 | K33: 7 | L33: 13 | M33: T03820 | N33: 0 | O33: 174 | P33: 7 | R33: 20200101 | S33: 20200331 | T33: 52583.65
A34: NAYARIT | B34: 18FIA0001J | C34: 100 | D34: CEHA720829FX5 | E34: CEHA720829MNTRRN03 | F34: ANGELICA MARIA CERVANTES HERNANDEZ | G34: TECNICO DOCENTE | H34: 35 | I34: 83101 | J34: 1 | K34: 7 | L34: 13 | M34: T03820 | N34: 0 | O34: 83 | P34: 7 | R34: 20200101 | S34: 20200331 | T34: 63704.97
A35: NAYARIT | B35: 18FIA0001J | C35: 100 | D35: COBB670422T30 | E35: COBB670422MNTVBR06 | F35: BERTHA MA. E COVARRUBIAS BOBADILLA | G35: TECNICO SUPERIOR | H35: 35 | I35: 83101 | J35: 1 | K35: 8 | L35: 29 | M35: A01807 | N35: 0 | O35: 36 | P35: 5 | R35: 20200101 | S35: 20200331 | T35: 65396.05
A36: NAYARIT | B36: 18FIA0001J | C36: 100 | D36: COCA8507147H6 | E36: COCA850714MNTNHL04 | F36: ALBA NYDIA CONTRERAS CHAVEZ | G36: JEFE D E OFICINA | H36: 35 | I36: 83101 | J36: 1 | K36: 2 | L36: 4 | M36: A01807 | N36: 0 | O36: 261 | P36: 5 | R36: 20200101 | S36: 20200331 | T36: 40272.67
A37: NAYARIT | B37: 18FIA0001J | C37: 100 | D37: COEL490226TK7 | E37: COEL490226MJCRSS07 | F37: MARIA LUISA CORDERO ESPINOSA | G37: SECRETARIA C | H37: 35 | I37: 83101 | J37: 1 | K37: 2 | L37: 6 | M37: A03804 | N37: 0 | O37: 54 | P37: 2 | R37: 20200101 | S37: 20200331 | T37: 44930.85
A38: NAYARIT | B38: 18FIA0001J | C38: 100 | D38: COLI660821F10 | E38: COLI660821MNTNZR04 | F38: IRMA SOFIA CONTRERAS LOZA | G38: TECNICO DOCENTE | H38: 35 | I38: 83101 | J38: 1 | K38: 7 | L38: 14 | M38: T03820 | N38: 0 | O38: 105 | P38: 7 | R38: 20191231 | S38: 20191231 | T38: 11468.51
A39: NAYARIT | B39: 18FIA0001J | C39: 100 | D39: DUCF820323BD2 | E39: DUCF820323HNTRCL06 | F39: FELIPE DE JESUS DURAN COCA | G39: TECNICO DOCENTE | H39: 35 | I39: 83101 | J39: 1 | K39: 7 | L39: 14 | M39: T03820 | N39: 0 | O39: 241 | P39: 7 | R39: 20200101 | S39: 20200331 | T39: 58436.03
A40: NAYARIT | B40: 18FIA0001J | C40: 100 | D40: DUMB660930DT3 | E40: DUMV660930MNTRNR08 | F40: BERNARDA DURAN MONTES | G40: TECNICO DOCENTE | H40: 35 | I40: 83101 | J40: 1 | K40: 7 | L40: 17 | M40: T03820 | N40: 0 | O40: 144 | P40: 7 | R40: 20200101 | S40: 20200331 | T40: 63704.97
A41: NAYARIT | B41: 18FIA0001J | C41: 100 | D41: EACS700505U99 | E41: EACS700505MNTSSN06 | F41: MARIA SANTOS ESTRADA CASTILLO | G41: TECNICO DOCENTE | H41: 35 | I41: 83101 | J41: 1 | K41: 7 | L41: 13 | M41: T03820 | N41: 0 | O41: 84 | P41: 7 | R41: 20200101 | S41: 20200331 | T41: 58532.45
A42: NAYARIT | B42: 18FIA0001J | C42: 100 | D42: EAEJ780510HC8 | E42: EAEJ780510HNTSSM08 | F42: JAIME ESTRADA ESQUIVEL | G42: TECNICO DOCENTE | H42: 35 | I42: 83101 | J42: 1 | K42: 7 | L42: 13 | M42: T03820 | N42: 0 | O42: 191 | P42: 7 | R42: 20200101 | S42: 20200331 | T42: 59802.51
A43: NAYARIT | B43: 18FIA0001J | C43: 100 | D43: FOQA671014667 | E43: FOQA671014MNTLZG06 | F43: AGUSTINA FLORES QUEZADA | G43: ANALISTA ADMINISTRATIVO | H43: 35 | I43: 83101 | J43: 1 | K43: 7 | L43: 14 | M43: A01806 | N43: 0 | O43: 107 | P43: 3 | R43: 20200101 | S43: 20200331 | T43: 48291.53
A44: NAYARIT | B44: 18FIA0001J | C44: 100 | D44: GABP630915IG5 | E44: GABP630915MMCRNR01 | F44: PORFIRIA GARCIA BENITEZ | G44: TECNICO DOCENTE | H44: 35 | I44: 83101 | J44: 1 | K44: 7 | L44: 15 | M44: T03820 | N44: 0 | O44: 163 | P44: 7 | R44: 20200101 | S44: 20200331 | T44: 60866.85
A45: NAYARIT | B45: 18FIA0001J | C45: 100 | D45: GAFS8210199S8 | E45: GAFS821019HNTRRV01 | F45: SEVERO GARCIA FRANCO | G45: ADMINISTRATIVO ESPECIALIZADOS | H45: 35 | I45: 83101 | J45: 1 | K45: 8 | L45: 28 | M45: A01803 | N45: 0 | O45: 172 | P45: 2 | R45: 20200101 | S45: 20200331 | T45: 51198.35
A46: NAYARIT | B46: 18FIA0001J | C46: 100 | D46: GARM740924JP4 | E46: GARM740924MNTLDR01 | F46: MARTHA ELBA GALEANA RODARTE | G46: SECRETARIA C | H46: 35 | I46: 83101 | J46: 1 | K46: 9 | L46: 35 | M46: A03804 | N46: 0 | O46: 293 | P46: 2 | R46: 20200101 | S46: 20200331 | T46: 37789.44
A47: NAYARIT | B47: 18FIA0001J | C47: 100 | D47: GOEP741023DD0 | E47: GOEP741023HNTNSR02 | F47: PORFIRIO GONZALEZ ESPERICUETA | G47: TECNICO DOCENTE | H47: 35 | I47: 83101 | J47: 1 | K47: 7 | L47: 17 | M47: T03820 | N47: 0 | O47: 145 | P47: 7 | R47: 20200101 | S47: 20200331 | T47: 61489.65
A48: NAYARIT | B48: 18FIA0001J | C48: 100 | D48: GOMM660312R79 | E48: GOMM660312MNTMRR09 | F48: MARISELA GOMEZ MARISCAL | G48: TECNICO DOCENTE | H48: 35 | I48: 83101 | J48: 1 | K48: 7 | L48: 13 | M48: T03820 | N48: 0 | O48: 86 | P48: 7 | R48: 20200101 | S48: 20200331 | T48: 63021.72
A49: NAYARIT | B49: 18FIA0001J | C49: 100 | D49: GOPE620111H24 | E49: GOPE620111HNTMRD03 | F49: EDUARDO GOMEZ PARRA | G49: TECNICO DOCENTE | H49: 35 | I49: 83101 | J49: 1 | K49: 7 | L49: 15 | M49: T03820 | N49: 0 | O49: 121 | P49: 7 | R49: 20200101 | S49: 20200331 | T49: 65089.89
A50: NAYARIT | B50: 18FIA0001J | C50: 100 | D50: GOPS651030PGA | E50: GOPS651030MNTNLF04 | F50: SOFIA GONZALEZ PLAZAS | G50: TECNICO DOCENTE | H50: 35 | I50: 83101 | J50: 1 | K50: 7 | L50: 13 | M50: T03820 | N50: 0 | O50: 87 | P50: 7 | R50: 20200101 | S50: 20200331 | T50: 60744.79
A51: NAYARIT | B51: 18FIA0001J | C51: 100 | D51: GULM700812JK2 | E51: GULM700812MNTZPR00 | F51: MARTHA ISABEL GUZMAN LOPEZ | G51: ANALISTA ADMINISTRATIVO | H51: 35 | I51: 83101 | J51: 1 | K51: 8 | L51: 27 | M51: A01806 | N51: 0 | O51: 42 | P51: 3 | R51: 20200101 | S51: 20200331 | T51: 50236.68
A52: NAYARIT | B52: 18FIA0001J | C52: 100 | D52: GUOJ58032768A | E52: GUOJ580327HNTTCM09 | F52: JAIME GUTIERREZ OCAMPO | G52: TECNICO DOCENTE | H52: 35 | I52: 83101 | J52: 1 | K52: 7 | L52: 14 | M52: T03820 | N52: 0 | O52: 109 | P52: 7 | R52: 20200101 | S52: 20200331 | T52: 60927.51
A53: NAYARIT | B53: 18FIA0001J | C53: 100 | D53: HERO590224IY6 | E53: HEXR590224MNTRXS07 | F53: ROSA MARIA HERNANDEZ | G53: TECNICO DOCENTE | H53: 35 | I53: 83101 | J53: 1 | K53: 7 | L53: 13 | M53: T03820 | N53: 0 | O53: 154 | P53: 7 | R53: 20200101 | S53: 20200331 | T53: 56952.25
A54: NAYARIT | B54: 18FIA0001J | C54: 100 | D54: HESR4910091U6 | E54: HESR491009MNTRNS00 | F54: MARIA DEL ROSARIO HERNANDEZ SANCHEZ | G54: TECNICO SUPERIOR | H54: 35 | I54: 83101 | J54: 1 | K54: 3 | L54: 9 | M54: T03823 | N54: 0 | O54: 63 | P54: 7 | R54: 20200101 | S54: 20200331 | T54: 61060.82
A55: NAYARIT | B55: 18FIA0001J | C55: 100 | D55: IAHL680714P45 | E55: IAHL680714MNTBRR00 | F55: LORENIA CARINA IBARRA HERMOSILLO | G55: TECNICO DOCENTE | H55: 35 | I55: 83101 | J55: 1 | K55: 7 | L55: 16 | M55: T03820 | N55: 0 | O55: 31 | P55: 7 | R55: 20200101 | S55: 20200331 | T55: 58532.45
A56: NAYARIT | B56: 18FIA0001J | C56: 100 | D56: IAMF731113NH2 | E56: IAMF731113HNTNNR04 | F56: FRANCISCO JAVIER INDA MONTEON | G56: TECNICO DOCENTE | H56: 35 | I56: 83101 | J56: 1 | K56: 7 | L56: 15 | M56: T03820 | N56: 0 | O56: 171 | P56: 7 | R56: 20200101 | S56: 20200331 | T56: 60630.33
A57: NAYARIT | B57: 18FIA0001J | C57: 100 | D57: ROIK8103229H4 | E57: ROIK810322MNTJXR05 | F57: KARINA LIZETH ROJAS IÑIGUEZ | G57: TECNICO DOCENTE | H57: 35 | I57: 83101 | J57: 1 | K57: 7 | L57: 14 | M57: T03820 | N57: 0 | O57: 304 | P57: 7 | R57: 20200101 | S57: 20200331 | T57: 45265.98
A58: NAYARIT | B58: 18FIA0001J | C58: 100 | D58: JAPA7508062F4 | E58: JAPA750806HNTCRL05 | F58: ALVARO JACOBO PEREZ | G58: TECNICO DOCENTE | H58: 35 | I58: 83101 | J58: 1 | K58: 7 | L58: 16 | M58: T03820 | N58: 0 | O58: 157 | P58: 7 | R58: 20200101 | S58: 20200331 | T58: 56952.25
A59: NAYARIT | B59: 18FIA0001J | C59: 100 | D59: LEFE851111AZ8 | E59: LEFE851111HDFYLM03 | F59: EMMANUEL EDUARDO LEY FLORES | G59: COORDINADOR DE SERV. ESP. | H59: 35 | I59: 83101 | J59: 1 | K59: 8 | L59: 32 | M59: CF33849 | N59: 0 | O59: 292 | P59: 8 | R59: 20200101 | S59: 20200331 | T59: 49946.64
A60: NAYARIT | B60: 18FIA0001J | C60: 100 | D60: LOCL770926EZ7 | E60: LICL900704MJCMRR03 | F60: LEONARDO LOPEZ CENICEROS | G60: TECNICO DOCENTE | H60: 35 | I60: 83101 | J60: 1 | K60: 7 | L60: 13 | M60: T03820 | N60: 0 | O60: 175 | P60: 7 | R60: 20200101 | S60: 20200331 | T60: 56636.18
A61: NAYARIT | B61: 18FIA0001J | C61: 100 | D61: LOMJ690324HB6 | E61: LOMJ690324MNTZDS04 | F61: JOSEFINA LOZANO MEDINA | G61: ANALISTA ADMINISTRATIVO | H61: 35 | I61: 83101 | J61: 1 | K61: 7 | L61: 12 | M61: A01806 | N61: 0 | O61: 72 | P61: 3 | R61: 20200101 | S61: 20200331 | T61: 51936.09
A62: NAYARIT | B62: 18FIA0001J | C62: 100 | D62: PARC930711PQ3 | E62: PARC930711HNTTBS05 | F62: CESAR IVAN PATIÑO ROBLES | G62: COORDINADOR DE SERV. ESP. | H62: 35 | I62: 83101 | J62: 1 | K62: 2 | L62: 5 | M62: CF33849 | N62: 0 | O62: 360 | P62: 8 | R62: 20200101 | S62: 20200331 | T62: 49466.64
A63: NAYARIT | B63: 18FIA0001J | C63: 100 | D63: LOPO870308TGA | E63: LOPO870308HNTPRS02 | F63: OSCAR JESUS LOPEZ PERALTA | G63: OFICIAL DE SERV. Y MANTENIMIENTO | H63: 35 | I63: 83101 | J63: 1 | K63: 9 | L63: 35 | M63: S01803 | N63: 0 | O63: 260 | P63: 2 | R63: 20200101 | S63: 20200331 | T63: 38740.64
A64: NAYARIT | B64: 18FIA0001J | C64: 100 | D64: LORE550827E17 | E64: LORE550827MNTPDM08 | F64: MA. EMMA LOPEZ RODRIGUEZ | G64: JEFE DE OFICINA | H64: 35 | I64: 83101 | J64: 1 | K64: 2 | L64: 4 | M64: A01807 | N64: 0 | O64: 1 | P64: 5 | R64: 20200101 | S64: 20200331 | T64: 49320.47
A65: NAYARIT | B65: 18FIA0001J | C65: 100 | D65: LOVM650308KP7 | E65: LOVM650308HNTPLR06 | F65: MARCELINO LOPEZ VILLANUEVA | G65: TECNICO SUPERIOR | H65: 35 | I65: 83101 | J65: 1 | K65: 9 | L65: 34 | M65: T03823 | N65: 0 | O65: 51 | P65: 7 | R65: 20200101 | S65: 20200331 | T65: 62106.18
A66: NAYARIT | B66: 18FIA0001J | C66: 100 | D66: MAFH700414PQ9 | E66: MAFH700414HNTGRC06 | F66: HECTOR JOEL MAGDALENO FRIAS | G66: TECNICO DOCENTE | H66: 35 | I66: 83101 | J66: 1 | K66: 7 | L66: 13 | M66: T03820 | N66: 0 | O66: 91 | P66: 7 | R66: 20200101 | S66: 20200331 | T66: 59164.59
A67: NAYARIT | B67: 18FIA0001J | C67: 100 | D67: MAIC860620U74 | E67: MAIC860620HNTCBH08 | F67: CHRISTOPHER EMMANUEL MACHUCA IBARRA | G67: TECNICO DOCENTE | H67: 35 | I67: 83101 | J67: 1 | K67: 7 | L67: 15 | M67: T03820 | N67: 0 | O67: 279 | P67: 7 | R67: 20200101 | S67: 20200331 | T67: 52991.15
A68: NAYARIT | B68: 18FIA0001J | C68: 100 | D68: MALL770125190 | E68: MALL770125HNTYPZ04 | F68: LAZARO MAYORQUIN LOPEZ | G68: TECNICO DOCENTE | H68: 35 | I68: 83101 | J68: 1 | K68: 7 | L68: 12 | M68: T03820 | N68: 0 | O68: 111 | P68: 7 | R68: 20200101 | S68: 20200331 | T68: 61208.49
A69: NAYARIT | B69: 18FIA0001J | C69: 100 | D69: MAMD710507CG4 | E69: MAMD710507MNTRRL06 | F69: DALIA CARMINA MARES MORA | G69: TECNICO SUPERIOR | H69: 35 | I69: 83101 | J69: 1 | K69: 8 | L69: 28 | M69: T03823 | N69: 0 | O69: 55 | P69: 7 | R69: 20200101 | S69: 20200331 | T69: 61420.82
A70: NAYARIT | B70: 18FIA0001J | C70: 100 | D70: MAPL820106F29 | E70: MAPL820106HNTCNS04 | F70: LUIS RAMON MACIAS PINEDA | G70: SECRETARIA C | H70: 35 | I70: 83101 | J70: 1 | K70: 9 | L70: 35 | M70: A03804 | N70: 0 | O70: 296 | P70: 2 | R70: 20200101 | S70: 20200331 | T70: 37594.08
A71: NAYARIT | B71: 18FIA0001J | C71: 100 | D71: MAPR700819TA9 | E71: MAPR700819MPLCNQ04 | F71: RAQUEL MACIAS PINEDA | G71: JEFE DE OFICINA | H71: 35 | I71: 83101 | J71: 1 | K71: 9 | L71: 35 | M71: A01807 | N71: 0 | O71: 9 | P71: 5 | R71: 20200101 | S71: 20200331 | T71: 49896.22
A72: NAYARIT | B72: 18FIA0001J | C72: 100 | D72: MEFC661214GH5 | E72: MEFC661214MNTDNR06 | F72: CRESCENCIA MEDINA FONSECA | G72: TECNICO DOCENTE | H72: 35 | I72: 83101 | J72: 1 | K72: 7 | L72: 12 | M72: T03820 | N72: 0 | O72: 73 | P72: 2 | R72: 20200101 | S72: 20200331 | T72: 65308.05
A73: NAYARIT | B73: 18FIA0001J | C73: 100 | D73: MEOG810220E52 | E73: MEOG810220MNTNCB06 | F73: GABRIELA MENDOZA OCHOA | G73: TECNICO MEDIO | H73: 35 | I73: 83101 | J73: 1 | K73: 9 | L73: 34 | M73: T03803 | N73: 0 | O73: 294 | P73: 2 | R73: 20200101 | S73: 20200331 | T73: 46927.97
A74: NAYARIT | B74: 18FIA0001J | C74: 100 | D74: MIGG8210293G3 | E74: MIGG821029MNTRRS05 | F74: GISELL MIRAMONTES GARCIA | G74: TECNICO SUPERIOR | H74: 35 | I74: 83101 | J74: 1 | K74: 8 | L74: 31 | M74: T03823 | N74: 0 | O74: 6 | P74: 7 | R74: 20200101 | S74: 20200331 | T74: 56788.77
A75: NAYARIT | B75: 18FIA0001J | C75: 100 | D75: MOFM611228SA9 | E75: MOFM611228MNTNLG02 | F75: MAGDALENA MONTERO FLORES | G75: TECNICO DOCENTE | H75: 35 | I75: 83101 | J75: 1 | K75: 7 | L75: 16 | M75: T03820 | N75: 0 | O75: 137 | P75: 7 | R75: 20200101 | S75: 20200331 | T75: 62233.38
A76: NAYARIT | B76: 18FIA0001J | C76: 100 | D76: MOHM550119BM8 | E76: MOHI550119MNTNRD07 | F76: MA. IDELISA MONTAÑO HERNANDEZ | G76: JEFE DE OFICINA | H76: 35 | I76: 83101 | J76: 1 | K76: 2 | L76: 6 | M76: A01807 | N76: 0 | O76: 56 | P76: 5 | R76: 20200101 | S76: 20200331 | T76: 54730.14
A77: NAYARIT | B77: 18FIA0001J | C77: 100 | D77: MUAC7409192N3 | E77: MUAC740919MNTRNL05 | F77: CLEOPATRA MURILLO ANGELES | G77: TECNICO DOCENTE | H77: 35 | I77: 83101 | J77: 1 | K77: 7 | L77: 13 | M77: T03820 | N77: 0 | O77: 92 | P77: 7 | R77: 20200101 | S77: 20200331 | T77: 57171.07
A78: NAYARIT | B78: 18FIA0001J | C78: 100 | D78: MUCF710407RG9 | E78: MUCF710407HNTRRR09 | F78: FRANCISCO MURILLO CORTEZ | G78: ESPECIALISTA EN PROYECTOS | H78: 35 | I78: 83101 | J78: 1 | K78: 9 | L78: 34 | M78: T03810 | N78: 0 | O78: 14 | P78: 2 | R78: 20200101 | S78: 20200331 | T78: 47524.79
A79: NAYARIT | B79: 18FIA0001J | C79: 100 | D79: MUPS800906NS7 | E79: MUPS800906MNTRRL09 | F79: SELENE LIZET MURILLO PORTILLO | G79: TECNICO DOCENTE | H79: 35 | I79: 83101 | J79: 1 | K79: 9 | L79: 36 | M79: A01807 | N79: 0 | O79: 23 | P79: 7 | R79: 20200101 | S79: 20200331 | T79: 52507.87
A80: NAYARIT | B80: 18FIA0001J | C80: 100 | D80: NARE7904024BA | E80: NARE790402MNTVVL03 | F80: ELVIA NELLY NAVARRETE RIVERA | G80: ANALISTA ADMINISTRATIVO | H80: 35 | I80: 83101 | J80: 1 | K80: 9 | L80: 35 | M80: A01805 | N80: 0 | O80: 283 | P80: 3 | R80: 20200101 | S80: 20200331 | T80: 41222.6
A81: NAYARIT | B81: 18FIA0001J | C81: 100 | D81: NUFA521129MX9 | E81: NUFA521129MNTXRR06 | F81: ARMIDA NUÑEZ FREGOSO | G81: JEFE DE OFICINA | H81: 35 | I81: 83101 | J81: 1 | K81: 3 | L81: 10 | M81: A01807 | N81: 0 | O81: 68 | P81: 5 | R81: 20200101 | S81: 20200331 | T81: 54730.14
A82: NAYARIT | B82: 18FIA0001J | C82: 100 | D82: OESL430826CG0 | E82: OESL430826HJCRNR09 | F82: LORENZO ORTEGA SANCHEZ | G82: TECNICO DOCENTE | H82: 35 | I82: 83101 | J82: 1 | K82: 7 | L82: 14 | M82: T03820 | N82: 0 | O82: 150 | P82: 7 | R82: 20200101 | S82: 20200331 | T82: 56988.72
A83: NAYARIT | B83: 18FIA0001J | C83: 100 | D83: OIAV660415J17 | E83: OIAV660415HNTRCC02 | F83: VICTORIANO ORTIZ ACOSTA | G83: TECNICO DOCENTE | H83: 35 | I83: 83101 | J83: 1 | K83: 7 | L83: 14 | M83: T03820 | N83: 0 | O83: 114 | P83: 7 | R83: 20200101 | S83: 20200331 | T83: 57171.07
A84: NAYARIT | B84: 18FIA0001J | C84: 100 | D84: OOGR6805238P4 | E84: OOGR680523MNTCRS03 | F84: ROSA ISELA OCHOA GARCIA | G84: TECNICO DOCENTE | H84: 35 | I84: 83101 | J84: 1 | K84: 7 | L84: 14 | M84: T03820 | N84: 0 | O84: 15 | P84: 7 | R84: 20200101 | S84: 20200331 | T84: 59869.59
A85: NAYARIT | B85: 18FIA0001J | C85: 100 | D85: PEHE701009N63 | E85: PEHE701009MNTRRD03 | F85: EDNA TERESA PEREZ HERNANDEZ | G85: TECNICO DOCENTE | H85: 35 | I85: 83101 | J85: 1 | K85: 7 | L85: 13 | M85: T03820 | N85: 0 | O85: 93 | P85: 7 | R85: 20200101 | S85: 20200331 | T85: 57098.13
A86: NAYARIT | B86: 18FIA0001J | C86: 100 | D86: PEHS760516B10 | E86: PEHS760516MNTRRL00 | F86: SILVIA CORAL PRECIADO HERNANDEZ | G86: SECRETARIA C | H86: 35 | I86: 83101 | J86: 1 | K86: 8 | L86: 28 | M86: A03804 | N86: 0 | O86: 244 | P86: 2 | R86: 20200101 | S86: 20200331 | T86: 44391.55
A87: NAYARIT | B87: 18FIA0001J | C87: 100 | D87: OOGM580404LU3 | E87: OOGM580404MNTRMR06 | F87: MARTHA ELVA OROZCO GOMEZ | G87: JEFE DE OFICINA | H87: 35 | I87: 83101 | J87: 1 | K87: 9 | L87: 36 | M87: A01807 | N87: 0 | O87: 32 | P87: 5 | R87: 20191231 | S87: 20191231 | T87: 9819.81
A88: NAYARIT | B88: 18FIA0001J | C88: 100 | D88: PEMM710729AV0 | E88: PEMM710729MNTRNN05 | F88: MONICA BEATRIZ PEREZ MENDOZA | G88: TECNICO DOCENTE | H88: 35 | I88: 83101 | J88: 1 | K88: 7 | L88: 15 | M88: T03820 | N88: 0 | O88: 75 | P88: 7 | R88: 20200101 | S88: 20200331 | T88: 61852.31
A89: NAYARIT | B89: 18FIA0001J | C89: 100 | D89: PIRA771228QN7 | E89: PIRA771228MNTNYN02 | F89: ANA RAQUEL PINTADO REYMUNDO | G89: TECNICO DOCENTE | H89: 35 | I89: 83101 | J89: 1 | K89: 7 | L89: 14 | M89: T03820 | N89: 0 | O89: 149 | P89: 7 | R89: 20200101 | S89: 20200331 | T89: 56988.72
A90: NAYARIT | B90: 18FIA0001J | C90: 100 | D90: PORJ590620KP8 | E90: PORJ590620MNTLSS06 | F90: JOSEFINA POLANCO DE LA ROSA | G90: TECNICO DOCENTE | H90: 35 | I90: 83101 | J90: 1 | K90: 7 | L90: 14 | M90: T03820 | N90: 0 | O90: 39 | P90: 7 | R90: 20200101 | S90: 20200331 | T90: 65754.75
A91: NAYARIT | B91: 18FIA0001J | C91: 100 | D91: PUAI760901JL8 | E91: PUAI760901HMCNVS09 | F91: ISMAEL FABRICIO PUENTES AVILA | G91: TECNICO DOCENTE | H91: 35 | I91: 83101 | J91: 1 | K91: 7 | L91: 15 | M91: T03820 | N91: 0 | O91: 161 | P91: 7 | R91: 20200101 | S91: 20200331 | T91: 65532.03
A92: NAYARIT | B92: 18FIA0001J | C92: 100 | D92: RABL640324JWA | E92: RABL640324HNTNTN09 | F92: LEONARDO RANGEL BAUTISTA | G92: TECNICO DOCENTE | H92: 35 | I92: 83101 | J92: 1 | K92: 7 | L92: 16 | M92: T03820 | N92: 0 | O92: 139 | P92: 7 | R92: 20200101 | S92: 20200331 | T92: 61208.49
A93: NAYARIT | B93: 18FIA0001J | C93: 100 | D93: RAPM700411PL4 | E93: RAPM700411MNTMXR02 | F93: MA. MERCEDES RAMIREZ PEÑA | G93: TECNICO DOCENTE | H93: 35 | I93: 83101 | J93: 1 | K93: 7 | L93: 15 | M93: T03820 | N93: 0 | O93: 129 | P93: 7 | R93: 20200101 | S93: 20200331 | T93: 58216.46
A94: NAYARIT | B94: 18FIA0001J | C94: 100 | D94: RECJ660415BH6 | E94: RECJ660415MNTXHS08 | F94: MARIA DE JESUS REA CHAVEZ | G94: TECNICO DOCENTE | H94: 35 | I94: 83101 | J94: 1 | K94: 7 | L94: 13 | M94: T03820 | N94: 0 | O94: 330 | P94: 7 | R94: 20200101 | S94: 20200331 | T94: 45226.77
A95: NAYARIT | B95: 18FIA0001J | C95: 100 | D95: RERS631103S43 | E95: RERS631103MNTNJL01 | F95: SILVIA REINOSO ROJAS | G95: TECNICO DOCENTE | H95: 35 | I95: 83101 | J95: 1 | K95: 7 | L95: 14 | M95: T03820 | N95: 0 | O95: 165 | P95: 7 | R95: 20200101 | S95: 20200331 | T95: 60866.85
A96: NAYARIT | B96: 18FIA0001J | C96: 100 | D96: RIJV721019740 | E96: RIJV721019MNTVCR00 | F96: VERONICA MARIA RIVAS JACOBO | G96: TECNICO DOCENTE | H96: 35 | I96: 83101 | J96: 1 | K96: 7 | L96: 16 | M96: T03820 | N96: 0 | O96: 147 | P96: 7 | R96: 20200101 | S96: 20200331 | T96: 61655.22
A97: NAYARIT | B97: 18FIA0001J | C97: 100 | D97: ROCV411211256 | E97: ROCV411211HNTDVC01 | F97: VICENTE GUADALUPE RODRIGUEZ CUEVAS | G97: TECNICO DOCENTE | H97: 35 | I97: 83101 | J97: 1 | K97: 7 | L97: 14 | M97: T03820 | N97: 0 | O97: 76 | P97: 7 | R97: 20200101 | S97: 20200331 | T97: 58119.21
A98: NAYARIT | B98: 18FIA0001J | C98: 100 | D98: ROMR4701016U7 | E98: ROMR470101MJCSRS07 | F98: MARIA DEL ROSARIO ROSALES MARTINEZ | G98: TECNICO DOCENTE | H98: 35 | I98: 83101 | J98: 1 | K98: 7 | L98: 14 | M98: T03820 | N98: 0 | O98: 116 | P98: 7 | R98: 20200101 | S98: 20200331 | T98: 60007.71
A99: NAYARIT | B99: 18FIA0001J | C99: 100 | D99: RORJ670216PM6 | E99: RORJ670216MNTDMN08 | F99: JUANA RODRIGUEZ RAMIREZ | G99: TECNICO DOCENTE | H99: 35 | I99: 83101 | J99: 1 | K99: 7 | L99: 15 | M99: T03820 | N99: 0 | O99: 186 | P99: 7 | R99: 20200101 | S99: 20200331 | T99: 51817.86
A100: NAYARIT | B100: 18FIA0001J | C100: 100 | D100: SARF600924RF7 | E100: SARF600924MNTLDR08 | F100: FRANCISCA SALINAS RODRIGUEZ | G100: TECNICO DOCENTE | H100: 35 | I100: 83101 | J100: 1 | K100: 7 | L100: 14 | M100: T03820 | N100: 0 | O100: 117 | P100: 7 | R100: 20200101 | S100: 20200331 | T100: 60744.79
A101: NAYARIT | B101: 18FIA0001J | C101: 100 | D101: SAVR710307QB4 | E101: SAVR710307MNTNZS06 | F101: ROSA MARGARITA SANCHEZ VAZQUEZ | G101: TECNICO SUPERIOR | H101: 35 | I101: 83101 | J101: 1 | K101: 3 | L101: 7 | M101: T03823 | N101: 0 | O101: 47 | P101: 7 | R101: 20200101 | S101: 20200331 | T101: 61158.04
A102: NAYARIT | B102: 18FIA0001J | C102: 100 | D102: SEMJ6202286DA | E102: SEMJ620228HNTTRS03 | F102: J. JESUS STEPHENS MARTINEZ | G102: OFICINA DE SERVICIOS Y MANTENIMIENTO | H102: 35 | I102: 83101 | J102: 1 | K102: 9 | L102: 35 | M102: S01803 | N102: 0 | O102: 26 | P102: 2 | R102: 20200101 | S102: 20200331 | T102: 43899.78
A103: NAYARIT | B103: 18FIA0001J | C103: 100 | D103: SIMG650906SD7 | E103: SIMG650906MNTLDD05 | F103: MARIA GUADALUPE SILLAS MEDINA | G103: TECNICO DOCENTE | H103: 35 | I103: 83101 | J103: 1 | K103: 7 | L103: 17 | M103: T03820 | N103: 0 | O103: 168 | P103: 7 | R103: 20200101 | S103: 20200331 | T103: 60748.59
A104: NAYARIT | B104: 18FIA0001J | C104: 100 | D104: TARJ6211276C6 | E104: TARJ621127HNTPMN07 | F104: JUAN CARLOS TAPIA RAMOS | G104: TECNICO DOCENTE | H104: 35 | I104: 83101 | J104: 1 | K104: 7 | L104: 12 | M104: T03820 | N104: 0 | O104: 184 | P104: 7 | R104: 20200101 | S104: 20200331 | T104: 60183.57
A105: NAYARIT | B105: 18FIA0001J | C105: 100 | D105: UISA6804151H1 | E105: UISA680415MNTRNN07 | F105: ANASTASIA URIBE SANDOVAL | G105: ANALISTA ADMINISTRATIVO | H105: 35 | I105: 83101 | J105: 1 | K105: 7 | L105: 16 | M105: A01806 | N105: 0 | O105: 140 | P105: 3 | R105: 20200101 | S105: 20200331 | T105: 57266.23
A106: NAYARIT | B106: 18FIA0001J | C106: 100 | D106: VAFM600616B56 | E106: VAFM600616HNTLRN07 | F106: MANUEL VALDIVIA FRANCO | G106: TECNICO SUPERIOR | H106: 35 | I106: 83101 | J106: 1 | K106: 8 | L106: 28 | M106: A01807 | N106: 0 | O106: 40 | P106: 7 | R106: 20200101 | S106: 20200331 | T106: 55615.82
A107: NAYARIT | B107: 18FIA0001J | C107: 100 | D107: VAIA770111PN8 | E107: VAIA770111MNTZRD09 | F107: ADRIANA VAZQUEZ IRIARTE | G107: TECNICO SUPERIOR | H107: 35 | I107: 83101 | J107: 1 | K107: 4 | L107: 11 | M107: T03823 | N107: 0 | O107: 58 | P107: 7 | R107: 20200101 | S107: 20200331 | T107: 57997.66
A108: NAYARIT | B108: 18FIA0001J | C108: 100 | D108: VAPL6101108S1 | E108: VAPL610110MNTLLL06 | F108: LILIA ANGELICA VALENCIA PLASCENCIA | G108: ANALISTA ADMINISTRATIVO | H108: 35 | I108: 83101 | J108: 1 | K108: 1 | L108: 1 | M108: A01806 | N108: 0 | O108: 4 | P108: 3 | R108: 20200101 | S108: 20200331 | T108: 56528.73
A109: NAYARIT | B109: 18FIA0001J | C109: 100 | D109: VARE720715LZ0 | E109: VARE720715MNTRMN06 | F109: ENRIQUETA VARGAS ROMERO | G109: TECNICO DOCENTE | H109: 35 | I109: 83101 | J109: 1 | K109: 7 | L109: 14 | M109: T03820 | N109: 0 | O109: 130 | P109: 7 | R109: 20200101 | S109: 20200331 | T109: 63823.23
A110: NAYARIT | B110: 18FIA0001J | C110: 100 | D110: VIAB780203S93 | E110: VIAB780203HNTLLS09 | F110: BASILIO VILLASEÑOR ALCANTAR | G110: TECNICO DOCENTE | H110: 35 | I110: 83101 | J110: 1 | K110: 7 | L110: 15 | M110: T03820 | N110: 0 | O110: 170 | P110: 7 | R110: 20200101 | S110: 20200331 | T110: 60630.33
A111: NAYARIT | B111: 18FIA0001J | C111: 100 | D111: VIVB5403237M0 | E111: VIVB540323HCMLRL07 | F111: BALDOMERO VILLANUEVA VERDUZCO | G111: TECNICO DOCENTE | H111: 35 | I111: 83101 | J111: 1 | K111: 7 | L111: 17 | M111: T03820 | N111: 0 | O111: 78 | P111: 7 | R111: 20200101 | S111: 20200331 | T111: 62338.5
A112: NAYARIT | B112: 18FIA0001J | C112: 100 | D112: ZADS640611A57 | E112: ZADS640611MDFVRN00 | F112: MARIA SANDRA HADAID ZAVALA DUARTE | G112: TECNICO DOCENTE | H112: 35 | I112: 83101 | J112: 1 | K112: 7 | L112: 14 | M112: T03820 | N112: 0 | O112: 62 | P112: 7 | R112: 20200101 | S112: 20200331 | T112: 49484
A113: NAYARIT | B113: 18FIA0001J | C113: 100 | D113: ZULL580228GH3 | E113: ZULL580228MDFXNR03 | F113: MARIA DE LOURDES ZUÑIGA LEON | G113: TECNICO DOCENTE | H113: 35 | I113: 83101 | J113: 1 | K113: 7 | L113: 14 | M113: T03820 | N113: 0 | O113: 118 | P113: 7 | R113: 20200101 | S113: 20200331 | T113: 57134.6
A114: NAYARIT | B114: 18FIA0001J | C114: 100 | D114: BABM641012R5A | E114: BABM641012MNTRRR07 | F114: MERCEDES BARRAGAN BARRIGA | G114: TECNICO OPERATIVO | H114: 35 | I114: 83101 | J114: 0 | K114: 0 | L114: 0 | M114: 0 | N114: 0 | O114: 0 | P114: 0 | R114: 20200101 | S114: 20200331 | T114: 14344.74
A115: NAYARIT | B115: 18FIA0001J | C115: 100 | D115: LOPE790615FN1 | E115: LOPE790615HNTBNG03 | F115: EUGENIO LOBATOS PANCHO | G115: TECNICO OPERATIVO | H115: 35 | I115: 83101 | J115: 0 | K115: 0 | L115: 0 | M115: 0 | N115: 0 | O115: 0 | P115: 0 | R115: 20200101 | S115: 20200331 | T115: 14344.74
A116: NAYARIT | B116: 18FIA0001J | C116: 100 | D116: LOCL670621BR2 | E116: LOCL670621HNTPSS00 | F116: JOSE LUIS LOPEZ CASTAÑEDA | G116: TECNICO OPERATIVO | H116: 35 | I116: 83101 | J116: 0 | K116: 0 | L116: 0 | M116: 0 | N116: 0 | O116: 0 | P116: 0 | R116: 20200101 | S116: 20200331 | T116: 14344.74
A117: NAYARIT | B117: 18FIA0001J | C117: 100 | D117: DIFS890414J89 | E117: DIFS890414MNTSRN03 | F117: SANDY ELIZABETH DE DIOS FRANCO | G117: TECNICO OPERATIVO | H117: 35 | I117: 83101 | J117: 0 | K117: 0 | L117: 0 | M117: 0 | N117: 0 | O117: 0 | P117: 0 | R117: 20200101 | S117: 20200331 | T117: 14344.74
A118: NAYARIT | B118: 18FIA0001J | C118: 100 | D118: RAMM850120624 | E118: RAMM850120HNTMR08 | F118: MANUEL ANTONIO RAMOS MARQUEZ | G118: TECNICO OPERATIVO | H118: 35 | I118: 83101 | J118: 0 | K118: 0 | L118: 0 | M118: 0 | N118: 0 | O118: 0 | P118: 0 | R118: 20200101 | S118: 20200331 | T118: 14344.74
A119: NAYARIT | B119: 18FIA0001J | C119: 100 | D119: FOMF8109082P0 | E119: FOMF810908HNTLRD09 | F119: FIDEL FLORES MARIN | G119: TECNICO OPERATIVO | H119: 35 | I119: 83101 | J119: 0 | K119: 0 | L119: 0 | M119: 0 | N119: 0 | O119: 0 | P119: 0 | R119: 20200101 | S119: 20200331 | T119: 14344.74
A120: NAYARIT | B120: 18FIA0001J | C120: 100 | D120: EABI6702174N9 | E120: EABI670217MCCSRR09 | F120: ESPAÑA BARRERA IRMA LETICIA | G120: TECNICO OPERATIVO | H120: 35 | I120: 83101 | J120: 0 | K120: 0 | L120: 0 | M120: 0 | N120: 0 | O120: 0 | P120: 0 | R120: 20200101 | S120: 20200331 | T120: 14344.74
A121: NAYARIT | B121: 18FIA0001J | C121: 100 | D121: PEGI6704051N2 | E121: PEGI670405HNTRNS08 | F121: PEREZ GONZALEZ MARIA ISABEL | G121: TECNICO OPERATIVO | H121: 35 | I121: 83101 | J121: 0 | K121: 0 | L121: 0 | M121: 0 | N121: 0 | O121: 0 | P121: 0 | R121: 20200101 | S121: 20200331 | T121: 14344.74
A122: NAYARIT | B122: 18FIA0001J | C122: 100 | D122: MUAA760211IC0 | E122: MUAA760211HNTRCM09 | F122: MURILLO ACOSTA AMPELIO | G122: TECNICO OPERATIVO | H122: 35 | I122: 83101 | J122: 0 | K122: 0 | L122: 0 | M122: 0 | N122: 0 | O122: 0 | P122: 0 | R122: 20200101 | S122: 20200331 | T122: 14344.74
A123: NAYARIT | B123: 18FIA0001J | C123: 100 | D123: CAPR660904LW1 | E123: CAPR660904MNTRRS05 | F123: CARRILLO PARTIDA ROSA MARIA | G123: TECNICO OPERATIVO | H123: 35 | I123: 83101 | J123: 0 | K123: 0 | L123: 0 | M123: 0 | N123: 0 | O123: 0 | P123: 0 | R123: 20200101 | S123: 20200229 | T123: 9563.16
A124: NAYARIT | B124: 18FIA0001J | C124: 100 | D124: MEFJ900623F24 | E124: MEFJ900623HNTDNN09 | F124: MEDINA FONSECA JUAN CARLOS | G124: TECNICO OPERATIVO | H124: 35 | I124: 83101 | J124: 0 | K124: 0 | L124: 0 | M124: 0 | N124: 0 | O124: 0 | P124: 0 | R124: 20191001 | S124: 20200331 | T124: 14344.74
A125: NAYARIT | B125: 18FIA0001J | C125: 100 | D125: RAAM930425JH3 | E125: RAAM930425MNTMVR03 | F125: MARISOL ANAHI RAMIREZ AVILA | G125: TECNICO OPERATIVO | H125: 35 | I125: 83101 | J125: 0 | K125: 0 | L125: 0 | M125: 0 | N125: 0 | O125: 0 | P125: 0 | R125: 20200101 | S125: 20200331 | T125: 14344.74
A126: NAYARIT | B126: 18FIA0001J | C126: 100 | D126: TOVY831104BU5 | E126: TOVY831104MNTRZR03 | F126: YURIDIA TORRES VAZQUEZ | G126: TECNICO OPERATIVO | H126: 35 | I126: 83101 | J126: 0 | K126: 0 | L126: 0 | M126: 0 | N126: 0 | O126: 0 | P126: 0 | R126: 20200301 | S126: 20200331 | T126: 4781.58
A127: NAYARIT | B127: 18FIA0001J | C127: 100 | D127: MAOE820709BC1 | E127: MAOE820709MNTRRL06 | F127: ELVA LORENA MARQUEZ OROZCO | G127: JEFA DE DEPARTAMENTO | H127: 35 | I127: 83101 | J127: 1 | K127: 3 | L127: 7 | M127: CF01059 | N127: 0 | O127: 302 | P127: OA1 | R127: 20200101 | S127: 20200331 | T127: 55320.39
A128: NAYARIT | B128: 18FIA0001J | C128: 100 | D128: SAMA9504119YA | E128: SAMA950411HNTLRL05 | F128: ALAN EDUARDO MARTINEZ SALINAS | G128: COORDINADOR DE SERV. ESP. | H128: 35 | I128: 83101 | J128: 1 | K128: 9 | L128: 36 | M128: CF33849 | N128: 0 | O128: 354 | P128: 8 | R128: 20200101 | S128: 20200229 | T128: 23048.88
A129: NAYARIT | B129: 18FIA0001J | C129: 100 | D129: OEGH8909064U9 | E129: OEGH890906HNTRZC02 | F129: HECTOR ALBERTO ORTEGA GUZMAN | G129: ESPECIALISTA EN PROYECTOS | H129: 35 | I129: 83101 | J129: 1 | K129: 7 | L129: 14 | M129: T03810 | N129: 0 | O129: 308 | P129: 2 | R129: 20200101 | S129: 20200331 | T129: 40557.04
A130: NAYARIT | B130: 18FIA0001J | C130: 100 | D130: FALN810731E5A | E130: FALN810731MDFRNR05 | F130: NORA EDITH FRANCO LUNA | G130: SECRETARIA C | H130: 35 | I130: 83101 | J130: 1 | K130: 8 | L130: 28 | M130: A03804 | N130: 0 | O130: 286 | P130: 2 | R130: 20200101 | S130: 20200331 | T130: 43914.89
A131: NAYARIT | B131: 18FIA0001J | C131: 100 | D131: PAOK860904PU2 | E131: PAOK860904MNTRCR08 | F131: KAREN LISSETTE PARDO OCHOA | G131: ESPECIALISTA EN PROYECTOS | H131: 35 | I131: 83101 | J131: 1 | K131: 7 | L131: 14 | M131: T03810 | N131: 0 | O131: 313 | P131: 2 | R131: 20200101 | S131: 20200331 | T131: 40296.56
A132: NAYARIT | B132: 18FIA0001J | C132: 100 | D132: IAAA790420LG8 | E132: IAAA790420HNTBLN02 | F132: ANTONIO IBARRA ALMARAZ | G132: OFICINA DE SERVICIOS Y MANTENIMIENTO | H132: 35 | I132: 83101 | J132: 1 | K132: 9 | L132: 35 | M132: S01803 | N132: 0 | O132: 314 | P132: 2 | R132: 20200101 | S132: 20200331 | T132: 40596.56
A133: NAYARIT | B133: 18FIA0001J | C133: 100 | D133: MOFG790213LUA | E133: MOFG790213MNTLD00 | F133: MARIA GUADALUPE MONTAÑEZ FLETES | G133: SECRETARIA C | H133: 35 | I133: 83101 | J133: 1 | K133: 9 | L133: 36 | M133: A03804 | N133: 0 | O133: 319 | P133: 2 | R133: 20200101 | S133: 20200331 | T133: 34908.84
A134: NAYARIT | B134: 18FIA0001J | C134: 100 | D134: COHN840218I76 | E134: COHN840218HNTRRS08 | F134: NESTOR SIMITRO CORTES HERNANDEZ | G134: TECNICO MEDIO | H134: 35 | I134: 83101 | J134: 1 | K134: 2 | L134: 4 | M134: T03803 | N134: 0 | O134: 321 | P134: 2 | R134: 20200101 | S134: 20200331 | T134: 39710.48
A135: NAYARIT | B135: 18FIA0001J | C135: 100 | D135: CAAY720710LWA | E135: CAAY720710MNTRVL00 | F135: CARRILLO AVALOS YOLANDA | G135: COORD. DE SERVICIOS ESP. | H135: 35 | I135: 83101 | J135: 1 | K135: 3 | L135: 8 | M135: CF33849 | N135: 0 | O135: 326 | P135: 8 | R135: 20200101 | S135: 20200331 | T135: 49466.64
A136: NAYARIT | B136: 18FIA0001J | C136: 100 | D136: OOCM8808119H1 | E136: OOCM880811MNTRRN02 | F136: OROZCO CRUZ MONICA CLARISSA | G136: TECNICO MEDIO | H136: 35 | I136: 83101 | J136: 1 | K136: 4 | L136: 11 | M136: T03803 | N136: 0 | O136: 325 | P136: 2 | R136: 20200101 | S136: 20200331 | T136: 44322.15
A137: NAYARIT | B137: 18FIA0001J | C137: 100 | D137: GANP690420GX5 | E137: GANP690420MNTRXT06 | F137: GARCIA NUÑEZ PATRICIA | G137: DIRECTOR GENERAL | H137: 35 | I137: 83101 | J137: 1 | K137: 1 | L137: 1 | M137: CF14070 | N137: 0 | O137: 339 | P137: MB2 | R137: 20200101 | S137: 20200331 | T137: 200715.21
A138: NAYARIT | B138: 18FIA0001J | C138: 100 | D138: MARG741212515 | E138: MARG741212MNTRMD18 | F138: MARTINEZ RAMOS MARIA GUADALUPE | G138: JEFE DE DEPARTAMENTO | H138: 35 | I138: 83101 | J138: 1 | K138: 3 | L138: 7 | M138: CF01059 | N138: 0 | O138: 341 | P138: OA1 | R138: 20200101 | S138: 20200331 | T138: 54840.39
A139: NAYARIT | B139: 18FIA0001J | C139: 100 | D139: AUGW800801IE7 | E139: AUGW800801MNTGRN05 | F139: AGUILAR GARAY WENDY ARLENNE | G139: TECNICO DOCENTE | H139: 35 | I139: 83101 | J139: 1 | K139: 7 | L139: 12 | M139: T03820 | N139: 0 | O139: 335 | P139: 7 | R139: 20200101 | S139: 20200331 | T139: 54158.06
A140: NAYARIT | B140: 18FIA0001J | C140: 100 | D140: DUOM651107SS4 | E140: DUOM651107MNTRRR01 | F140: DURAN OROZCO MARTHA LORENA | G140: JEFE DE OFICINA | H140: 35 | I140: 83101 | J140: 1 | K140: 7 | L140: 15 | M140: A01807 | N140: 0 | O140: 119 | P140: 5 | R140: 20200101 | S140: 20200331 | T140: 47867.52
A141: NAYARIT | B141: 18FIA0001J | C141: 100 | D141: AUZF900612KY1 | E141: AUZF900612MNTGPB08 | F141: AGUILAR ZEPEDA FABIOLA AZUCENA | G141: ESPECIALISTA EN PROYECTOS | H141: 35 | I141: 83101 | J141: 1 | K141: 7 | L141: 16 | M141: T03810 | N141: 0 | O141: 336 | P141: 2 | R141: 20200101 | S141: 20200331 | T141: 42209.85
A142: NAYARIT | B142: 18FIA0001J | C142: 100 | D142: PAMK9402063H8 | E142: PAMK940206MNTRRR03 | F142: PARTIDA MARMOLEJO KAREN GRECIA ITZEL | G142: ESPECIALISTA EN PROYECTOS | H142: 35 | I142: 83101 | J142: 1 | K142: 7 | L142: 16 | M142: T03810 | N142: 0 | O142: 338 | P142: 2 | R142: 20200101 | S142: 20200331 | T142: 39710.48
A143: NAYARIT | B143: 18FIA0001J | C143: 100 | D143: PEFG900607MC1 | E143: PEFG900607MNTRLR04 | F143: PEREZ FLORES MARIA GRACIELA | G143: TECNICO MEDIO | H143: 35 | I143: 83101 | J143: 1 | K143: 8 | L143: 29 | M143: T03803 | N143: 0 | O143: 337 | P143: 2 | R143: 20200101 | S143: 20200331 | T143: 36465.33
A144: NAYARIT | B144: 18FIA0001J | C144: 100 | D144: GOHS820825LT2 | E144: GOHS820825MNTNRL02 | F144: GONZALEZ HERNANDEZ SOLEDAD | G144: SECRETARIA C | H144: 35 | I144: 83101 | J144: 1 | K144: 9 | L144: 35 | M144: A03804 | N144: 0 | O144: 368 | P144: 2 | R144: 20200101 | S144: 20200331 | T144: 37477.62
A145: NAYARIT | B145: 18FIA0001J | C145: 100 | D145: MIAC880412U2A | E145: MIAC880412MNTNGR00 | F145: MINJARES AGUILAR CARMEN EUGENIA | G145: ESPECIALISTA EN PROYECTOS | H145: 35 | I145: 83101 | J145: 1 | K145: 2 | L145: 6 | M145: T03810 | N145: 0 | O145: 369 | P145: 2 | R145: 20200101 | S145: 20200331 | T145: 36465.33
A146: NAYARIT | B146: 18FIA0001J | C146: 100 | D146: AATJ8211206T9 | E146: AATJ821120MNTLR01 | F146: ALDACO TORRES JANETH YAHAIRA | G146: TECNICO DOCENTE | H146: 35 | I146: 83101 | J146: 1 | K146: 7 | L146: 16 | M146: T03820 | N146: 0 | O146: 366 | P146: 7 | R146: 20200101 | S146: 20200331 | T146: 47196.61
A147: NAYARIT | B147: 18FIA0001J | C147: 100 | D147: NUOL790816HL2 | E147: NUOL790816MNTXRZ00 | F147: NUÑEZ ORTEGA LIZETH DEL ROCIO | G147: JEFE DE DEPARTAMENTO | H147: 35 | I147: 83101 | J147: 1 | K147: 9 | L147: 33 | M147: CF01059 | N147: 0 | O147: 342 | P147: OA1 | R147: 20200101 | S147: 20200331 | T147: 54840.39
A148: NAYARIT | B148: 18FIA0001J | C148: 100 | D148: OOGV931204UX8 | E148: OOGV931204HNTCRC09 | F148: VICENTE OCHOA GARCIA | G148: COORDINADOR DE SERV. ESP. | H148: 35 | I148: 83101 | J148: 1 | K148: 3 | L148: 8 | M148: CF33849 | N148: 0 | O148: 370 | P148: 8 | R148: 20200101 | S148: 20200115 | T148: 16444.44
A149: NAYARIT | B149: 18FIA0001J | C149: 100 | D149: MOOM870801V58 | E149: MOOM870801HNTNRR01 | F149: MARIANO ENRIQUE MONTERO ORTEGA | G149: COORDINADOR REGIONAL | H149: 35 | I149: 83101 | J149: 1 | K149: 1 | L149: 2 | M149: CF36014 | N149: 0 | O149: 364 | P149: OA1 | R149: 20200101 | S149: 20200331 | T149: 54840.39
A150: NAYARIT | B150: 18FIA0001J | C150: 100 | D150: MEVA810103318 | E150: MEVA810103HNTZLB07 | F150: ABEL MEZA DEL VALLE | G150: COORDINADOR DE ZONA | H150: 35 | I150: 83101 | J150: 1 | K150: 7 | L150: 12 | M150: CF36014 | N150: 0 | O150: 367 | P150: OA1 | R150: 20200101 | S150: 20200331 | T150: 54840.45
A151: NAYARIT | B151: 18FIA0001J | C151: 100 | D151: AAGD8310245TA | E151: AAGD831024HNTYRN07 | F151: DANIEL ENRIQUE AYALA GARCIA | G151: COORDINADOR DE ZONA | H151: 35 | I151: 83101 | J151: 1 | K151: 7 | L151: 12 | M151: CF36014 | N151: 0 | O151: 363 | P151: OA1 | R151: 20200101 | S151: 20200331 | T151: 54840.45
A152: NAYARIT | B152: 18FIA0001J | C152: 100 | D152: GOMJ751008TZA | E152: GOMJ751008HNTNRL06 | F152: JULIO CESAR GONZALEZ MORENO | G152: CORDINADOR DE ZONA | H152: 35 | I152: 83101 | J152: 1 | K152: 7 | L152: 12 | M152: CF36014 | N152: 0 | O152: 343 | P152: OA1 | R152: 20200101 | S152: 20200331 | T152: 54840.45
A153: NAYARIT | B153: 18FIA0001J | C153: 100 | D153: CEGY820421KN7 | E153: CEGY820421MNTJRS03 | F153: YESENIA YANETH CEJA GARCIA | G153: COORDINADOR DE ZONA | H153: 35 | I153: 83101 | J153: 1 | K153: 7 | L153: 12 | M153: CF36014 | N153: 0 | O153: 352 | P153: OA1 | R153: 20200101 | S153: 20191231 | T153: 54840.45
A154: NAYARIT | B154: 18FIA0001J | C154: 100 | D154: MAOA780907LV5 | E154: MAOA780907HNTCRL08 | F154: JOSE ALBERTO MACEDO ORTEGA | G154: JEFE DE DEPARTAMENTO | H154: 35 | I154: 83101 | J154: 1 | K154: 8 | L154: 30 | M154: CF01059 | N154: 0 | O154: 353 | P154: OA1 | R154: 20190831 | S154: 20190831 | T154: 1046.67
A155: NAYARIT | B155: 18FIA0001J | C155: 100 | D155: GALA860819222 | E155: GALA860819MJCRRN05 | F155: ANGELICA MARIA GUADALUPE GARCIA LOERA | G155: COORDINADOR DE UNIDAD | H155: 35 | I155: 83101 | J155: 1 | K155: 2 | L155: 5 | M155: CF33849 | N155: 0 | O155: 356 | P155: 8 | R155: 20200101 | S155: 20200331 | T155: 49466.64
A156: NAYARIT | B156: 18FIA0001J | C156: 100 | D156: SESN8801138H9 | E156: SESN880113MNTPNN09 | F156: SEPULVEDA SANDOVAL NANCY THALIA | G156: SECRETARIA EJECUTIVA B | H156: 35 | I156: 83101 | J156: 1 | K156: 9 | L156: 34 | M156: C26162 | N156: 0 | O156: 372 | P156: 6 | R156: 20200101 | S156: 20200331 | T156: 44376.38
A157: NAYARIT | B157: 18FIA0001J | C157: 100 | D157: CAGS9102045J1 | E157: CAGS910204MNTRNT07 | F157: CARRILLO GONZALEZ STEPHANIE | G157: SECRETARIA C | H157: 35 | I157: 83101 | J157: 1 | K157: 8 | L157: 28 | M157: B24322 | N157: 0 | O157: 375 | P157: 2 | R157: 20200101 | S157: 20200331 | T157: 35509.71
A158: NAYARIT | B158: 18FIA0001J | C158: 100 | D158: GUBJ8403153GA | E158: GUBJ840315MNTTRS06 | F158: GUTIERREZ BERNAL JOSELIN DEL CARMEN | G158: COORDINADOR DE ZONA | H158: 35 | I158: 83101 | J158: 1 | K158: 7 | L158: 12 | M158: C292OA2 | N158: 0 | O158: 373 | P158: OA1 | R158: 20200101 | S158: 20200331 | T158: 54797.53
A159: NAYARIT | B159: 18FIA0001J | C159: 100 | D159: SAPC9205035G0 | E159: SAPC920503MNTNLN03 | F159: SANTANA POLANCO CINTHIA DANIELA | G159: TECNICO DOCENTE | H159: 35 | I159: 83101 | J159: 1 | K159: 7 | L159: 14 | M159: B28272 | N159: 0 | O159: 379 | P159: 7 | R159: 20200101 | S159: 20200331 | T159: 42875.38
A160: NAYARIT | B160: 18FIA0001J | C160: 100 | D160: ROCO870109C61 | E160: ROCO870109HNTBRS08 | F160: ROBLES CORDERO OSCAR HUMBERTO | G160: SECRETARIA C | H160: 35 | I160: 83101 | J160: 1 | K160: 8 | L160: 29 | M160: B24322 | N160: 0 | O160: 378 | P160: 2 | R160: 20200101 | S160: 20200331 | T160: 35509.71
A161: NAYARIT | B161: 18FIA0001J | C161: 100 | D161: CAFJ920621U84 | E161: CAFJ920621MNTRLL08 | F161: CARRILLO FLORES JULIA DEL CARMEN | G161: SECRETARIA C | H161: 35 | I161: 83101 | J161: 1 | K161: 8 | L161: 29 | M161: B24322 | N161: 0 | O161: 374 | P161: 2 | R161: 20200101 | S161: 20200331 | T161: 35509.71
A162: NAYARIT | B162: 18FIA0001J | C162: 100 | D162: BUBA831109E36 | E162: BUBA831109MNTSRN01 | F162: BUSTAMANTE BORRAYO ANA RUTH | G162: ANALISTA ADMINISTRATIVO | H162: 35 | I162: 83101 | J162: 1 | K162: 8 | L162: 27 | M162: C27032 | N162: 0 | O162: 371 | P162: 3 | R162: 20200101 | S162: 20200331 | T162: 40536.38
A163: NAYARIT | B163: 18FIA0001J | C163: 100 | D163: JIRK960721P84 | E163: JIRK960721MBCMZT05 | F163: JIMENEZ RUIZ KATIA FERNANDA | G163: ESPECIALISTA EN PROYECTOS TECNICOS | H163: 35 | I163: 83101 | J163: 1 | K163: 9 | L163: 34 | M163: B25922 | N163: 0 | O163: 376 | P163: 2 | R163: 20200101 | S163: 20200331 | T163: 35509.71
A164: NAYARIT | B164: 18FIA0001J | C164: 100 | D164: UIIL750709IJ9 | E164: UIIL750709MNTRBV05 | F164: URIBE IBARRA LIVIER | G164: COORDINADOR DE ZONA | H164: 35 | I164: 83101 | J164: 1 | K164: 7 | L164: 12 | M164: C392OA2 | N164: 0 | O164: 380 | P164: OA1 | R164: 20200101 | S164: 20200331 | T164: 54407.39
A165: NAYARIT | B165: 18FIA0001J | C165: 100 | D165: QUNL8911244Q6 | E165: QUNL891124MNTRXS06 | F165: QUIROGA NUÑEZ LESLIE GABRIELA | G165: ESPECIALISTA EN PROYECTOS TECNICOS | H165: 35 | I165: 83101 | J165: 1 | K165: 9 | L165: 34 | M165: B25922 | N165: 0 | O165: 377 | P165: 2 | R165: 20200101 | S165: 20200331 | T165: 37173.18
A166: NAYARIT | B166: 18FIA0001J | C166: 100 | D166: MAML0011014V6 | E166: MAML001101HNTYDZA3 | F166: MAYORQUIN MEDINA LAZARO JOSEHANGEL | G166: ESPECIALISTA EN PROYECTOS TECNICOS | H166: 35 | I166: 83101 | J166: 1 | K166: 7 | L166: 12 | M166: T03810 | N166: 0 | O166: 387 | P166: 2 | R166: 20200101 | S166: 20200331 | T166: 35287.41
A167: NAYARIT | B167: 18FIA0001J | C167: 100 | D167: BAMJ921231AL0 | E167: BAMJ921231HNTRRS04 | F167: BARRIOS MORA JESUS ARMANDO | G167: ESPECIALISTA EN PROYECTOS TECNICOS | H167: 35 | I167: 83101 | J167: 1 | K167: 7 | L167: 13 | M167: T03810 | N167: 0 | O167: 384 | P167: 2 | R167: 20200101 | S167: 20200331 | T167: 33134.19
A168: NAYARIT | B168: 18FIA0001J | C168: 100 | D168: LOZY811228DK1 | E168: LOZY811228MNTPVD01 | F168: LOPEZ ZAVALA YADIRA ALEJANDRA | G168: SECRETARIA C | H168: 35 | I168: 83101 | J168: 1 | K168: 7 | L168: 13 | M168: A03804 | N168: 0 | O168: 385 | P168: 2 | R168: 20200101 | S168: 20200331 | T168: 33134.19
A169: NAYARIT | B169: 18FIA0001J | C169: 100 | D169: AAUB980612QV5 | E169: AAUB980612MNTVRR02 | F169: AVALOS URIBE BRISA ALEJANDRA | G169: TECNICO DOCENTE | H169: 35 | I169: 83101 | J169: 1 | K169: 7 | L169: 16 | M169: T03820 | N169: 0 | O169: 383 | P169: 7 | R169: 20200101 | S169: 20200331 | T169: 39561.64
A170: NAYARIT | B170: 18FIA0001J | C170: 100 | D170: MAAK930122C18 | E170: MAAK930122MNTRLR05 | F170: MARTINEZ ALMEJO KAREN ABIGAIL | G170: ESPECIALISTA EN PROYECTOS TECNICOS | H170: 35 | I170: 83101 | J170: 1 | K170: 9 | L170: 34 | M170: T03810 | N170: 0 | O170: 386 | P170: 2 | R170: 20200101 | S170: 20200331 | T170: 33134.19
A171: NAYARIT | B171: 18FIA0001J | C171: 100 | D171: RATV791021AJ6 | E171: RATV791021HNTMPC03 | F171: RAMIREZ TOPETE VICTOR JAVIER | G171: JEFE DE DEPARTMENTO | H171: 35 | I171: 83101 | J171: 1 | K171: 9 | L171: 34 | M171: CF01059 | N171: 0 | O171: 382 | P171: 0A1 | R171: 20200101 | S171: 20200331 | T171: 54143.57
A172: NAYARIT | B172: 18FIA0001J | C172: 100 | D172: DEPE9006239M6 | E172: DEPE900623HNTLXN06 | F172: DELGADO PEÑA ENRIQUE | G172: COORDINADOR DE SERV. ESP. | H172: 35 | I172: 83101 | J172: 1 | K172: 3 | L172: 8 | M172: CF33849 | N172: 0 | O172: 388 | P172: 8 | R172: 20200116 | S172: 20200331 | T172: 33022.2 | U172: =SUM(U16:U165) -> 0
A173: NAYARIT | B173: 18FIA0001J | C173: 100 | D173: FAMM9508109Q2 | E173: FAMM950810MNTRNY05 | F173: FRANCO MONROY MIRIAM ANGELICA | G173: COORDINADOR DE SERV. ESP. | H173: 35 | I173: 83101 | J173: 1 | K173: 9 | L173: 36 | M173: CF33849 | N173: 0 | O173: 389 | P173: 8 | R173: 20200201 | S173: 20200331 | T173: 26417.76
A174: NAYARIT | B174: 18FIA0001J | C174: 100 | D174: HIEL8602266Y1 | E174: HIEL860226HNTDSS08 | F174: HIDALGO ESCOBAR LUIS ALBERTO | G174: ANALISTA ADMINISTRATIVO | H174: 35 | I174: 83101 | J174: 1 | K174: 7 | L174: 15 | M174: A01806 | N174: 0 | O174: 288 | P174: 3 | R174: 20200101 | S174: 20200115 | T174: 5617.51
T175: =SUM(T16:T174) -> 7672029.08
R176: Total Ppto. Otras Fuentes:
A177: *Total de Percepciones reportadas por la Entidad Federativa como pagadas al trabajador durante la comisión.
A178: Fuente : Información proporcionada por las Entidades Federativas

Sheet II D) 2
B8: Formato: Movimientos de Plazas
B9: =IF('Caratula Resumen'!D22="Elige el Periodo…","",'Caratula Resumen'!D22) -> Fondo de Aportaciones para la Educación Tecnológica y de Adultos/Instituto Nacional para la Educación de los Adultos (FAETA/INEA) | R9: =IF('Caratula Resumen'!D23="Elige el Periodo…","",'Caratula Resumen'!D23) -> 1er. Trimestre
B12: Entidad Federativa | C12: RFC | D12: CURP | E12: Nombre | F12: Origen Presupuestal de la plazas | G12: Clave Presupuestal | N12: Clave de nivel de puesto | O12: Clave de nivel de sueldo | P12: Zona Económica | Q12: Tipo de movimiento | R12: Quincena Inicial | S12: Quincena Final
G13: Partida Presupuestal | H13: Código de Pago | I13: Clave de Unidad | J13: Clave de Sub Unidad | K13: Clave de Categoría | L13: Horas Semana Mes | M13: Número de Plaza
B15: Entidad Federativa | C15: RFC | D15: CURP | E15: Nombbre | F15: Origen Presupuestal de la plazas | G15: Partida Presupuestal | H15: Código de Pago | I15: Clave de Unidad | J15: Clave de Sub Unidad | K15: Clave de Categoría | L15: Horas semana mes | M15: Número de plaza | N15: Clave de nivel de puesto | O15: Clave de nivel de sueldo | P15: Zona Económica | Q15: Tipo de movimiento | R15: Quincena Inicial | S15: Quincena Final
B16: NAYARIT | C16: DEPE9006239M6 | D16: DEPE900623HNTLXN06 | E16: DELGADO PEÑA ENRIQUE | H16: 1 | I16: 3 | J16: 8 | K16: CF33849 | L16: 0 | M16: 388 | N16: 8 | O16: OA1 | P16: B | Q16: 1 | R16: 202002
B17: NAYARIT | C17: FAMM9508109Q2 | D17: FAMM950810MNTRNY05 | E17: FRANCO MONROY MIRIAM ANGELICA | H17: 1 | I17: 9 | J17: 36 | K17: CF33849 | L17: 0 | M17: 389 | N17: 8 | O17: OA1 | P17: B | Q17: 1 | R17: 202003
B18: NAYARIT | C18: SAMA9504119YA | D18: SAMA950411HNTLRL05 | E18: ALAN EDUARDO MARTINEZ SALINAS | H18: 1 | I18: 9 | J18: 36 | K18: CF33849 | L18: 0 | M18: 354 | N18: 8 | O18: OA2 | P18: B | Q18: 2 | R18: 201801 | S18: 202002
B19: NAYARIT | C19: OOGV931204UX8 | D19: OOGV931204HNTCRC09 | E19: VICENTE OCHOA GARCIA | H19: 1 | I19: 3 | J19: 8 | K19: CF33849 | L19: 0 | M19: 370 | N19: 8 | O19: OA3 | P19: B | Q19: 2 | R19: 201812 | S19: 202001
E20: HIDALGO ESCOBAR LUIS ALBERTO | H20: 1 | I20: 7 | J20: 15 | K20: A01806 | L20: 0 | M20: 288 | N20: 3 | O20: 3 | P20: C | Q20: 2 | R20: 201215 | S20: 202001
B24: Fuente : Información proporcionada por las Entidades Federativas

Sheet II D) 4
B9: Formato: Trabajadores Jubilados en el Periodo
B10: =IF('Caratula Resumen'!D22="Elige el Periodo…","",'Caratula Resumen'!D22) -> Fondo de Aportaciones para la Educación Tecnológica y de Adultos/Instituto Nacional para la Educación de los Adultos (FAETA/INEA) | P10: =IF('Caratula Resumen'!D23="Elige el Periodo…","",'Caratula Resumen'!D23) -> 1er. Trimestre
B13: Entidad Federativa | C13: R.F.C. | D13: CURP | E13: NOMBRE | F13: Clave CT | G13: Última(s) ó Penultima(s) Plaza(s) Ocupada(s) (*) | H13: Clave Presupuestal de la Jubilación | O13: Periodo ocupado | Q13: Quincena de inicio de jubilación
H14: Partida Presupuestal | I14: Código de Pago | J14: Clave de Unidad | K14: Clave de Sub Unidad | L14: Clave de Categoría | M14: Horas Semana Mes | N14: Número de Plaza | O14: Inicio | P14: Conclusión
B16: Entidad Federativa | C16: R.F.C. | D16: CURP | E16: NOMBRE | F16: Clave Centro de Trabajo | G16: Última(s) ó Penultima(s) Plaza(s) Ocupada(s) (*) | H16: Partida Presupuestal | I16: Código de Pago | J16: Clave de Unidad | K16: Clave de Sub Unidad | L16: Clave de Categoría | M16: Horas Semana Mes | N16: Número de Plaza | O16: Periodo ocupado Inicio | P16: Periodo ocupado Conclusión | Q16: Quincena de inicio de jubilación
B23: Total Personas : | C23: 2 | L23: Total Plazas : | N23: 2
B27: Fuente : Información proporcionada por las Entidades Federativas
B28: (*) Si el trabajador se jubila con más de una clave presupuestal, por cada plaza se debe llenar un registro hasta que se haya informado acerca de todas las plazas del trabajador.

Sheet II D) 4 A
B9: Formato: Trabajadores que Tramitaron Licencia Prejubilatoria en el Periodo
B10: =IF('Caratula Resumen'!D22="Elige el Periodo…","",'Caratula Resumen'!D22) -> Fondo de Aportaciones para la Educación Tecnológica y de Adultos/Instituto Nacional para la Educación de los Adultos (FAETA/INEA) | R10: =IF('Caratula Resumen'!D23="Elige el Periodo…","",'Caratula Resumen'!D23) -> 1er. Trimestre
B13: Entidad Federativa | C13: R.F.C. | D13: CURP | E13: NOMBRE | F13: Clave integrada | G13: Clave Presupuestal | N13: Periodo Licencia | P13: Percepciones pagadas con Presupuesto Federal en el Periodo reportado* | Q13: Percepciones pagadas con Presupuesto de otra Fuente en el Periodo reportado* | R13: Clave CT Origen
G14: Partida Presupuestal | H14: Código de Pago | I14: Clave de Unidad | J14: Clave de Sub Unidad | K14: Clave de Categoría | L14: Horas Semana Mes | M14: Número de Plaza | N14: Inicio | O14: Conclusión
B16: Entidad Federativa | C16: R.F.C. | D16: CURP | E16: NOMBRE | F16: Clave integrada | G16: Partida Presupuestal | H16: Código de Pago | I16: Clave de Unidad | J16: Clave de Sub Unidad | K16: Clave de Categoría | L16: Horas Semana Mes | M16: Número de Plaza | N16: Periodo Licencia Inicio | O16: Periodo Licencia Conclusión | P16: Percepciones pagadas con Presupuesto Federal en el Periodo reportado* | Q16: Percepciones pagadas con Presupuesto de otra Fuente en el Periodo reportado* | R16: Clave CT Origen
B17: NAYARIT | C17: PORJ590620KP8 | D17: PORJ590620MNTLSS06 | E17: JOSEFINA POLANCO DE LA ROSA | F17: 8310101714T0382000.0397 | G17: 83101 | H17: 1 | I17: 7 | J17: 14 | K17: T03820 | L17: 0 | M17: 39 | N17: 20200101 | O17: 20200331 | P17: 65754.75
B18: NAYARIT | C18: ROMR4701016U7 | D18: ROMR470101MJCSRS07 | E18: MARIA DEL ROSARIO MARTINEZ ROSALES | F18: 8310101714T0382000.01167 | G18: 83101 | H18: 1 | I18: 7 | J18: 14 | K18: T03820 | L18: 0 | M18: 116 | N18: 20200101 | O18: 20200331 | P18: 60007.71
B19: NAYARIT | C19: GUOJ58032768A | D19: GUOJ580327HNTTCM09 | E19: JAIME GUTIERREZ OCAMPO | F19: 8310101714T0382000.01097 | G19: 83101 | H19: 1 | I19: 7 | J19: 14 | K19: T03820 | L19: 0 | M19: 109 | N19: 20200116 | O19: 20200416 | P19: 60927.51
C20: Total Personas : | D20: 3 | K20: Total Plazas : | M20: 3 | N20: Total Pto. Federal | P20: =SUM(P17:P19) -> 186689.97
N22: Total Ppto. Otras Fuentes
B24: *Total de Percepciones reportadas por la Entidad Federativa como pagadas en el periodo
B25: Fuente : Información proporcionada por las Entidades Federativas

Sheet II D) 6
B10: Formato: Trabajadores Contratados por Honorarios en el Periodo
B11: =IF('Caratula Resumen'!D22="Elige el Periodo…","",'Caratula Resumen'!D22) -> Fondo de Aportaciones para la Educación Tecnológica y de Adultos/Instituto Nacional para la Educación de los Adultos (FAETA/INEA) | M11: =IF('Caratula Resumen'!D23="Elige el Periodo…","",'Caratula Resumen'!D23) -> 1er. Trimestre
B14: Entidad Federativa | C14: Clave Centro de Trabajo | D14: R.F.C. | E14: CURP | F14: Nombre | G14: Identificador del Contrato | H14: Equivalencia | J14: Periodo de Contratación | L14: Función | M14: Percepciones pagadas dentro del periodo reportado
H15: Clave de Categoría | I15: Horas Semana Mes | J15: Inicio | K15: Conclusión
B17: Entidad Federativa | C17: Clave Centro de Trabajo | D17: R.F.C. | E17: CURP | F17: Nombre | G17: Identificador del Contrato | H17: Clave de Categoría | I17: Horas Semana Mes | J17: Periodo de Contratación Inicio | K17: Periodo de Contratación Conclusión | L17: Función | M17: Percepciones pagadas dentro del periodo reportado
B18: NAYARIT | C18: 18FIA0001J | D18: BABM641012R56 | E18: BABM641012MNTRRR07 | F18: MERCEDES BARRAGAN BARRIGA | G18: BABM641012R5A | H18: 0 | I18: 00.0 | J18: 20200101 | K18: 20200331 | L18: asistencia educativa | M18: 14344.74
B19: NAYARIT | C19: 18FIA0001J | D19: LOCL670621AF9 | E19: LOCL670621HNTPSS00 | F19: JOSE LUIS LOPEZ CASTAÑEDA | G19: LOCL670621BR2 | H19: 0 | I19: 00.0 | J19: 20200101 | K19: 20200331 | L19: asistencia educativa | M19: 14344.74
B20: NAYARIT | C20: 18FIA0001J | D20: DIFS890414J89 | E20: DIFS890414MNTSRN03 | F20: SANDY ELIZABETH DE DIOS FRANCO | G20: DIFS890414J89 | H20: 0 | I20: 00.0 | J20: 20200101 | K20: 20200331 | L20: asistencia educativa | M20: 14344.74
B21: NAYARIT | C21: 18FIA0001J | D21: FOMF8109082P0 | E21: FOMF810908HNTLRD09 | F21: FIDEL MARIN FLORES | G21: FOMF8109082P0 | H21: 0 | I21: 00.0 | J21: 20200101 | K21: 20200331 | L21: asistencia educativa | M21: 14344.74
B22: NAYARIT | C22: 18FIA0001J | D22: EABI6702173C1 | E22: EABI670217MCCSRR09 | F22: IRMA LETICIA ESPAÑA BARRERA | G22: EABI6702174N9 | H22: 0 | I22: 00.0 | J22: 20200101 | K22: 20200331 | L22: asistencia educativa | M22: 14344.74
B23: NAYARIT | C23: 18FIA0001J | D23: PEGI6704051N2 | E23: PEGI670405HNTRNS08 | F23: MARIA ISABEL PEREZ GONZALEZ | G23: PEGI6704051N2 | H23: 0 | I23: 00.0 | J23: 20200101 | K23: 20200331 | L23: asistencia educativa | M23: 14344.74
B24: NAYARIT | C24: 18FIA0001J | D24: RAAM930425JH3 | E24: RAAM930425MNTMVR03 | F24: MARISOL ANAHI RAMIREZ AVILA | G24: RAAM930425JH3 | H24: 0 | I24: 00.0 | J24: 20200101 | K24: 20200331 | L24: asistencia educativa | M24: 14344.74
B25: NAYARIT | C25: 18FIA0001J | D25: MUAA760211IC0 | E25: MUAA760211HNTRCM09 | F25: AMPELIO MURILLO ACOSTA | G25: MUAA760211IC0 | H25: 0 | I25: 00.0 | J25: 20200101 | K25: 20200331 | L25: asistencia educativa | M25: 14344.74
B26: NAYARIT | C26: 18FIA0001J | D26: LOPE790615FN1 | E26: LOPE790615HNTBNG03 | F26: EUGENIO LOBATOS PANCHO | G26: LOPE790615FN1 | H26: 0 | I26: 00.0 | J26: 20200101 | K26: 20200331 | L26: asistencia educativa | M26: 14344.74
B27: NAYARIT | C27: 18FIA0001J | D27: CAPR660904LW1 | E27: CAPR660904MNTRRS05 | F27: ROSA MARIA CARILLO PARTIDA | G27: CAPR660904LW1 | H27: 0 | I27: 00.0 | J27: 20200101 | K27: 20200229 | L27: asistencia educativa | M27: 9563.16
B28: NAYARIT | C28: 18FIA0001J | D28: MEFJ900623F24 | E28: MEFJ900623HNTDNN09 | F28: MEDINA FONSECA JUAN CARLOS | G28: MEFJ900623F24 | H28: 0 | I28: 00.0 | J28: 20200101 | K28: 20200331 | L28: asistencia educativa | M28: 14344.74
B29: NAYARIT | C29: 18FIA0001J | D29: RAMM850120624 | E29: RAMM850120HNTMRN08 | F29: RAMOS MARQUEZ MANUEL ANTONIO | G29: RAMM850120624 | H29: 0 | I29: 00.0 | J29: 20200101 | K29: 20200331 | L29: asistencia educativa | M29: 14,344.74
F30: YURIDIA TORRES VAZQUEZ | G30: TOVY831104BU5 | H30: 0 | I30: 00.0 | J30: 20200301 | K30: 20200331 | L30: asistencia educativa | M30: 4781.58
B31: Total Entidad Federativa Personas : | D31: 12 | L31: Subtotal Monto Pagado en el Periodo: | M31: =SUM(M18:M30) -> 157792.14
J34: Total Percepciones :
B36: Fuente : Información proporcionada por las Entidades Federativas

Sheet II D) 7 1
B9: Formato: Analítico de Categorías / Plazas Autorizadas con su Tabulador | Q9: Entidad Federativa: | R9: =IF('Caratula Resumen'!D21="Elige el Periodo…","",'Caratula Resumen'!D21) -> NAYARIT
B10: =IF('Caratula Resumen'!D22="Elige el Periodo…","",'Caratula Resumen'!D22) -> Fondo de Aportaciones para la Educación Tecnológica y de Adultos/Instituto Nacional para la Educación de los Adultos (FAETA/INEA) | S10: =IF('Caratula Resumen'!D23="Elige el Periodo…","",'Caratula Resumen'!D23) -> 1er. Trimestre
B13: Clave Tipo educativo | C13: Clave Nivel educativo | D13: Clave Subnivel educativo | E13: Descripción Nivel / Subnivel | F13: Tipo Financiamiento | G13: Partida Presupuestal | H13: CATEGORIA | K13: Zona Económica | L13: Nivel Puesto | M13: Nivel Sueldo | N13: Tipo Contratación | O13: Monto mensual por plaza jornada | P13: Monto mensual Por Plaza HSM | Q13: Número de Plazas Jornada | R13: Número de Plazas HSM | S13: Monto total autorizado
H14: Tipo de Categoría | I14: Categoría | J14: Descripción
B16: Clave Tipo educativo | C16: Clave Nivel educativo | D16: Clave Subnivel educativo | E16: Descripción Nivel / Subnivel | F16: Tipo Financiamiento | G16: Partida Presupestal | H16: Tipo de Categoría | I16: Categoría | J16: Descripción | K16: Zona Económica | L16: Nivel Puesto | M16: Nivel Sueldo | N16: Tipo Contratación | O16: Monto mensual por plaza jornada | P16: Monto mensual Por Plaza HSM | Q16: Número de Plazas Jornada | R16: Número de Plazas HSM | S16: Monto total autorizado
B17: 6 | C17: 61 | D17: 64 | E17: PRIMARIA, SECUNDARIA Y CAPACITACION PARA EL TRABAJO | F17: FEDERAL | G17: 83101 | H17: 2 | I17: A01803 | J17: ADMINISTRATIVO ESPECIALIZADO | K17: B | L17: 29 | M17: 2 | N17: P | O17: 6093.65 | P17: 0 | Q17: 1 | R17: 0 | S17: =Tabla15[[#This Row],[Monto mensual por plaza jornada]]*Tabla15[[#This Row],[Número de Plazas Jornada]] -> 6093.65
B18: 6 | C18: 61 | D18: 64 | E18: PRIMARIA, SECUNDARIA Y CAPACITACION PARA EL TRABAJO | F18: FEDERAL | G18: 83101 | H18: 2 | I18: S01803 | J18: OFICIAL DE SERVICIOS Y MANTENIMIENTO | K18: B | L18: 21 | M18: 2 | N18: P | O18: 6093.65 | P18: 0 | Q18: 3 | R18: 0 | S18: =Tabla15[[#This Row],[Monto mensual por plaza jornada]]*Tabla15[[#This Row],[Número de Plazas Jornada]] -> 18280.95
B19: 6 | C19: 61 | D19: 64 | E19: PRIMARIA, SECUNDARIA Y CAPACITACION PARA EL TRABAJO | F19: FEDERAL | G19: 83101 | H19: 2 | I19: A01805 | J19: AUXILIAR DE ADMINISTRADOR | K19: B | L19: 46 | M19: 2 | N19: P | O19: 6093.65 | P19: 0 | Q19: 1 | R19: 0 | S19: =Tabla15[[#This Row],[Monto mensual por plaza jornada]]*Tabla15[[#This Row],[Número de Plazas Jornada]] -> 6093.65
B20: 6 | C20: 61 | D20: 64 | E20: PRIMARIA, SECUNDARIA Y CAPACITACION PARA EL TRABAJO | F20: FEDERAL | G20: 83101 | H20: 2 | I20: T03803 | J20: TECNICO MEDIO | K20: B | L20: 47 | M20: 2 | N20: P | O20: 6093.65 | P20: 0 | Q20: 7 | R20: 0 | S20: =Tabla15[[#This Row],[Monto mensual por plaza jornada]]*Tabla15[[#This Row],[Número de Plazas Jornada]] -> 42655.55
B21: 6 | C21: 61 | D21: 64 | E21: PRIMARIA, SECUNDARIA Y CAPACITACION PARA EL TRABAJO | F21: FEDERAL | G21: 83101 | H21: 2 | I21: A03804 | J21: SECRETARIA "C" | K21: B | L21: 43 | M21: 2 | N21: P | O21: 6093.65 | P21: 0 | Q21: 11 | R21: 0 | S21: =Tabla15[[#This Row],[Monto mensual por plaza jornada]]*Tabla15[[#This Row],[Número de Plazas Jornada]] -> 67030.15
B22: 6 | C22: 61 | D22: 64 | E22: PRIMARIA, SECUNDARIA Y CAPACITACION PARA EL TRABAJO | F22: FEDERAL | G22: 83101 | H22: 2 | I22: T03810 | J22: ESPECIALISTA EN PROYECTOS TECNICOS | K22: B | L22: 59 | M22: 2 | N22: P | O22: 6093.65 | P22: 0 | Q22: 9 | R22: 0 | S22: =Tabla15[[#This Row],[Monto mensual por plaza jornada]]*Tabla15[[#This Row],[Número de Plazas Jornada]] -> 54842.85
B23: 6 | C23: 61 | D23: 64 | E23: PRIMARIA, SECUNDARIA Y CAPACITACION PARA EL TRABAJO | F23: FEDERAL | G23: 83101 | H23: 3 | I23: A01806 | J23: ANALISTA ADMINISTRATIVO | K23: B | L23: 70 | M23: 3 | N23: P | O23: 6256.25 | P23: 0 | Q23: 5 | R23: 0 | S23: =Tabla15[[#This Row],[Monto mensual por plaza jornada]]*Tabla15[[#This Row],[Número de Plazas Jornada]] -> 31281.25
B24: 6 | C24: 61 | D24: 64 | E24: PRIMARIA, SECUNDARIA Y CAPACITACION PARA EL TRABAJO | F24: FEDERAL | G24: 83101 | H24: 5 | I24: A01807 | J24: JEFE DE OFICINA | K24: B | L24: 81 | M24: 5 | N24: P | O24: 6597.4 | P24: 0 | Q24: 12 | R24: 0 | S24: =Tabla15[[#This Row],[Monto mensual por plaza jornada]]*Tabla15[[#This Row],[Número de Plazas Jornada]] -> 79168.8
B25: 6 | C25: 61 | D25: 64 | E25: PRIMARIA, SECUNDARIA Y CAPACITACION PARA EL TRABAJO | F25: FEDERAL | G25: 83101 | H25: 7 | I25: T03820 | J25: TECNICO DOCENTE | K25: B | L25: 82 | M25: 7 | N25: P | O25: 6824.9 | P25: 0 | Q25: 29 | R25: 0 | S25: =Tabla15[[#This Row],[Monto mensual por plaza jornada]]*Tabla15[[#This Row],[Número de Plazas Jornada]] -> 197922.1
B26: 6 | C26: 61 | D26: 64 | E26: PRIMARIA, SECUNDARIA Y CAPACITACION PARA EL TRABAJO | F26: FEDERAL | G26: 83101 | H26: 7 | I26: T03823 | J26: TECNICO SUPERIOR | K26: B | L26: 85 | M26: 7 | N26: P | O26: 6824.9 | P26: 0 | Q26: 9 | R26: 0 | S26: =Tabla15[[#This Row],[Monto mensual por plaza jornada]]*Tabla15[[#This Row],[Número de Plazas Jornada]] -> 61424.1
B27: 6 | C27: 61 | D27: 64 | E27: PRIMARIA, SECUNDARIA Y CAPACITACION PARA EL TRABAJO | F27: FEDERAL | G27: 83101 | H27: 2 | I27: A01803 | J27: ADMINISTRATIVO ESPECIALIZADO | K27: C | L27: 29 | M27: 2 | N27: P | O27: 6743.65 | P27: 0 | Q27: 1 | R27: 0 | S27: =Tabla15[[#This Row],[Monto mensual por plaza jornada]]*Tabla15[[#This Row],[Número de Plazas Jornada]] -> 6743.65
B28: 6 | C28: 61 | D28: 64 | E28: PRIMARIA, SECUNDARIA Y CAPACITACION PARA EL TRABAJO | F28: FEDERAL | G28: 83101 | H28: 2 | I28: T03810 | J28: ESPECIALISTA EN PROYECTOS TECNICOS | K28: C | L28: 59 | M28: 2 | N28: P | O28: 6743.65 | P28: 0 | Q28: 2 | R28: 0 | S28: =Tabla15[[#This Row],[Monto mensual por plaza jornada]]*Tabla15[[#This Row],[Número de Plazas Jornada]] -> 13487.3
B29: 6 | C29: 61 | D29: 64 | E29: PRIMARIA, SECUNDARIA Y CAPACITACION PARA EL TRABAJO | F29: FEDERAL | G29: 83101 | H29: 3 | I29: A01806 | J29: ANALISTA ADMINISTRATIVO | K29: C | L29: 70 | M29: 3 | N29: P | O29: 6906 | P29: 0 | Q29: 4 | R29: 0 | S29: =Tabla15[[#This Row],[Monto mensual por plaza jornada]]*Tabla15[[#This Row],[Número de Plazas Jornada]] -> 27624
B30: 6 | C30: 61 | D30: 64 | E30: PRIMARIA, SECUNDARIA Y CAPACITACION PARA EL TRABAJO | F30: FEDERAL | G30: 83101 | H30: 5 | I30: A01807 | J30: JEFE DE OFICINA | K30: C | L30: 81 | M30: 5 | N30: P | O30: 7239.25 | P30: 0 | Q30: 1 | R30: 0 | S30: =Tabla15[[#This Row],[Monto mensual por plaza jornada]]*Tabla15[[#This Row],[Número de Plazas Jornada]] -> 7239.25
B31: 6 | C31: 61 | D31: 64 | E31: PRIMARIA, SECUNDARIA Y CAPACITACION PARA EL TRABAJO | F31: FEDERAL | G31: 83101 | H31: 7 | I31: T03820 | J31: TECNICO DOCENTE | K31: C | L31: 82 | M31: 7 | N31: P | O31: 7377.35 | P31: 0 | Q31: 31 | R31: 0 | S31: =Tabla15[[#This Row],[Monto mensual por plaza jornada]]*Tabla15[[#This Row],[Número de Plazas Jornada]] -> 228697.85
B32: 6 | C32: 61 | D32: 64 | E32: PRIMARIA, SECUNDARIA Y CAPACITACION PARA EL TRABAJO | F32: FEDERAL | G32: 83101 | H32: 7 | I32: T03823 | J32: TECNICO SUPERIOR | K32: C | L32: 85 | M32: 7 | N32: P | O32: 7377.35 | P32: 0 | Q32: 1 | R32: 0 | S32: =Tabla15[[#This Row],[Monto mensual por plaza jornada]]*Tabla15[[#This Row],[Número de Plazas Jornada]] -> 7377.35
B33: 6 | C33: 61 | D33: 64 | E33: PRIMARIA, SECUNDARIA Y CAPACITACION PARA EL TRABAJO | F33: FEDERAL | G33: 83101 | H33: 3 | I33: CF34810 | J33: ANALISTA ADMINISTRATIVO | K33: B | L33: 70 | M33: 3 | N33: P | O33: 6069.3 | P33: 0 | Q33: 1 | R33: 0 | S33: =Tabla15[[#This Row],[Monto mensual por plaza jornada]]*Tabla15[[#This Row],[Número de Plazas Jornada]] -> 6069.3
B34: 6 | C34: 61 | D34: 64 | E34: PRIMARIA, SECUNDARIA Y CAPACITACION PARA EL TRABAJO | F34: FEDERAL | G34: 83101 | H34: 6 | I34: CF04807 | J34: SECRETARIA EJECUTIVA "B" | K34: B | L34: 61 | M34: 6 | N34: P | O34: 6510.6 | P34: 0 | Q34: 1 | R34: 0 | S34: =Tabla15[[#This Row],[Monto mensual por plaza jornada]]*Tabla15[[#This Row],[Número de Plazas Jornada]] -> 6510.6
B35: 6 | C35: 61 | D35: 64 | E35: PRIMARIA, SECUNDARIA Y CAPACITACION PARA EL TRABAJO | F35: FEDERAL | G35: 83101 | H35: 8 | I35: CF33849 | J35: COORDINADOR DE UNIDAD DE SERVS. ESPECIALIZADOS | K35: B | L35: 88 | M35: 8 | N35: P | O35: 6699.65 | P35: 0 | Q35: 7 | R35: 0 | S35: =Tabla15[[#This Row],[Monto mensual por plaza jornada]]*Tabla15[[#This Row],[Número de Plazas Jornada]] -> 46897.55
B36: 6 | C36: 61 | D36: 64 | E36: PRIMARIA, SECUNDARIA Y CAPACITACION PARA EL TRABAJO | F36: FEDERAL | G36: 83101 | H36: MB2 | I36: CF14070 | J36: DIRECTOR DE INEA/DELEGADO | K36: A | L36: 97 | M36: MB2 | N36: P | O36: 14611.06 | P36: 0 | Q36: 1 | R36: 0 | S36: =Tabla15[[#This Row],[Monto mensual por plaza jornada]]*Tabla15[[#This Row],[Número de Plazas Jornada]] -> 14611.06
B37: 6 | C37: 61 | D37: 64 | E37: PRIMARIA, SECUNDARIA Y CAPACITACION PARA EL TRABAJO | F37: FEDERAL | G37: 83101 | H37: OA1 | I37: CF36014 | J37: COORDINADOR REGIONAL ZONA I | K37: A | L37: 95 | M37: OA1 | N37: P | O37: 5164.5 | P37: 0 | Q37: 1 | R37: 0 | S37: =Tabla15[[#This Row],[Monto mensual por plaza jornada]]*Tabla15[[#This Row],[Número de Plazas Jornada]] -> 5164.5
B38: 6 | C38: 61 | D38: 64 | E38: PRIMARIA, SECUNDARIA Y CAPACITACION PARA EL TRABAJO | F38: FEDERAL | G38: 83101 | H38: OA1 | I38: CF01059 | J38: JEFE DE DEPARTAMENTO ZONA II | K38: B | L38: 93 | M38: OA1 | N38: P | O38: 4685.7 | P38: 0 | Q38: 5 | R38: 0 | S38: =Tabla15[[#This Row],[Monto mensual por plaza jornada]]*Tabla15[[#This Row],[Número de Plazas Jornada]] -> 23428.5
B39: 6 | C39: 61 | D39: 64 | E39: PRIMARIA, SECUNDARIA Y CAPACITACION PARA EL TRABAJO | F39: FEDERAL | G39: 83101 | H39: OA1 | I39: CF36014 | J39: COORDINADOR DE ZONA ZONA II | K39: B | L39: 92 | M39: OA1 | N39: P | O39: 4328.85 | P39: 0 | Q39: 4 | R39: 0 | S39: =Tabla15[[#This Row],[Monto mensual por plaza jornada]]*Tabla15[[#This Row],[Número de Plazas Jornada]] -> 17315.4
B40: 6 | C40: 61 | D40: 64 | E40: PRIMARIA, SECUNDARIA Y CAPACITACION PARA EL TRABAJO | F40: FEDERAL | G40: 83101 | H40: OA1 | I40: CF36014 | J40: COORDINADOR DE ZONA ZONA III | K40: C | L40: 92 | M40: OA1 | N40: P | O40: 4649.35 | P40: 0 | Q40: 2 | R40: 0 | S40: =Tabla15[[#This Row],[Monto mensual por plaza jornada]]*Tabla15[[#This Row],[Número de Plazas Jornada]] -> 9298.7
N41: Total Jornada: | Q41: Total Autorizado: | S41: =SUM(S17:S40) -> 985258.06
N42: Total HSM
B44: Fuente : Información proporcionada por las Entidades Federativas

Sheet II D) 7 2
B11: Formato: Catálogo de Categorías y Tabuladores | P11: Entidad Federativa: | Q11: =IF('Caratula Resumen'!D21="Elige el Periodo…","",'Caratula Resumen'!D21) -> NAYARIT
B12: =IF('Caratula Resumen'!D22="Elige el Periodo…","",'Caratula Resumen'!D22) -> Fondo de Aportaciones para la Educación Tecnológica y de Adultos/Instituto Nacional para la Educación de los Adultos (FAETA/INEA) | R12: =IF('Caratula Resumen'!D23="Elige el Periodo…","",'Caratula Resumen'!D23) -> 1er. Trimestre
B15: Identificador origen presupuestal de la plaza | C15: Clave de categoría | D15: Descripción de la categoría | E15: Tipo de contratación | F15: Tipo de categoría | G15: Clave de concepto de pago | H15: Clave de nivel de puesto | I15: Clave de nivel de sueldo | J15: Sueldo asignado por zona económica | O15: Datos adicionales de horas | R15: Fecha de actualización
J16: Inicio de vigencia del sueldo | K16: Fin de vigencia del sueldo | L16: Monto Mensual Jornada ó de HSM Zona A | M16: Monto Mensual Jornada ó de HSM Zona B | N16: Monto Mensual Jornada ó de HSM Zona C | O16: Horas de compatibilidad | P16: Horas de servicio (HSM) | Q16: Horas de docencia
B18: Identificador origen presupuestal de la plaza | C18: Clave de categoría | D18: Descripción de la categoría | E18: Tipo de contratación | F18: Tipo de categoría | G18: Clave de concepto de pago | H18: Clave de nivel de puesto | I18: Clave de nivel de sueldo | J18: Inicio de vigencia del sueldo | K18: Fin de vigencia del sueldo | L18: Monto Mensual Jornada ó de HSM Zona A | M18: Monto Mensual Jornada ó de HSM Zona B | N18: Monto Mensual Jornada ó de HSM Zona C | O18: Horas de compatibilidad | P18: Horas de servicio (HSM) | Q18: Horas de docencia | R18: Fecha de actualización
B19: 1 | C19: A01803 | D19: ADMINISTRATIVO ESPECIALIZADO | E19: P | F19: 2 | G19: 1 | H19: 29 | I19: 2 | J19: 20190101 | K19: 999999 | L19: 0 | M19: 6093.65 | N19: 0 | O19: 35 | P19: 35 | Q19: 0 | R19: 20191231
B20: 1 | C20: A01803 | D20: ADMINISTRATIVO ESPECIALIZADO | E20: P | F20: 2 | G20: 9 | H20: 29 | I20: 2 | J20: 20190101 | K20: 999999 | L20: 0 | M20: 565 | N20: 0 | O20: 35 | P20: 35 | Q20: 0 | R20: 20191231
B21: 1 | C21: A01803 | D21: ADMINISTRATIVO ESPECIALIZADO | E21: P | F21: 2 | G21: 9 | H21: 29 | I21: 2 | J21: 20190101 | K21: 999999 | L21: 0 | M21: 565 | N21: 0 | O21: 35 | P21: 35 | Q21: 0 | R21: 20191231
B22: 1 | C22: A01803 | D22: ADMINISTRATIVO ESPECIALIZADO | E22: P | F22: 2 | G22: 12 | H22: 29 | I22: 2 | J22: 20190101 | K22: 999999 | L22: 0 | M22: 565 | N22: 0 | O22: 35 | P22: 35 | Q22: 0 | R22: 20191231
B23: 1 | C23: A01803 | D23: ADMINISTRATIVO ESPECIALIZADO | E23: P | F23: 2 | G23: 12 | H23: 29 | I23: 2 | J23: 20190101 | K23: 999999 | L23: 0 | M23: 565 | N23: 0 | O23: 35 | P23: 35 | Q23: 0 | R23: 20191231
B24: 1 | C24: A01803 | D24: ADMINISTRATIVO ESPECIALIZADO | E24: P | F24: 2 | G24: 63 | H24: 29 | I24: 2 | J24: 20190101 | K24: 999999 | L24: 0 | M24: 615.84 | N24: 0 | O24: 35 | P24: 35 | Q24: 0 | R24: 20191231
B25: 1 | C25: A01803 | D25: ADMINISTRATIVO ESPECIALIZADO | E25: P | F25: 2 | G25: 74 | H25: 29 | I25: 2 | J25: 20190101 | K25: 999999 | L25: 0 | M25: 686.66 | N25: 0 | O25: 35 | P25: 35 | Q25: 0 | R25: 20191231
B26: 1 | C26: A01803 | D26: ADMINISTRATIVO ESPECIALIZADO | E26: P | F26: 2 | G26: 15 | H26: 29 | I26: 2 | J26: 20190101 | K26: 999999 | L26: 0 | M26: 189.81 | N26: 0 | O26: 35 | P26: 35 | Q26: 0 | R26: 20191231
B27: 1 | C27: A01803 | D27: ADMINISTRATIVO ESPECIALIZADO | E27: P | F27: 2 | G27: 13 | H27: 29 | I27: 2 | J27: 20190101 | K27: 999999 | L27: 0 | M27: 60 | N27: 0 | O27: 35 | P27: 35 | Q27: 0 | R27: 20191231
B28: 1 | C28: A01803 | D28: ADMINISTRATIVO ESPECIALIZADO | E28: P | F28: 2 | G28: 13 | H28: 29 | I28: 2 | J28: 20190101 | K28: 999999 | L28: 0 | M28: 80 | N28: 0 | O28: 35 | P28: 35 | Q28: 0 | R28: 20191231
B29: 1 | C29: A01803 | D29: ADMINISTRATIVO ESPECIALIZADO | E29: P | F29: 2 | G29: 30 | H29: 29 | I29: 2 | J29: 20190101 | K29: 999999 | L29: 0 | M29: 291.42 | N29: 0 | O29: 35 | P29: 35 | Q29: 0 | R29: 20191231
B30: 1 | C30: A01803 | D30: ADMINISTRATIVO ESPECIALIZADO | E30: P | F30: 2 | G30: 21 | H30: 29 | I30: 2 | J30: 20190101 | K30: 999999 | L30: 0 | M30: 2000 | N30: 0 | O30: 35 | P30: 35 | Q30: 0 | R30: 20191231
B31: 1 | C31: A01803 | D31: ADMINISTRATIVO ESPECIALIZADO | E31: P | F31: 2 | G31: 100 | H31: 29 | I31: 2 | J31: 20190101 | K31: 999999 | L31: 0 | M31: 54.62 | N31: 0 | O31: 35 | P31: 35 | Q31: 0 | R31: 20191231
B32: 1 | C32: A01803 | D32: ADMINISTRATIVO ESPECIALIZADO | E32: P | F32: 2 | G32: 100 | H32: 29 | I32: 2 | J32: 20190101 | K32: 999999 | L32: 0 | M32: 106.16 | N32: 0 | O32: 35 | P32: 35 | Q32: 0 | R32: 20191231
B33: 1 | C33: A01803 | D33: ADMINISTRATIVO ESPECIALIZADO | E33: P | F33: 2 | G33: 100 | H33: 29 | I33: 2 | J33: 20190101 | K33: 999999 | L33: 0 | M33: 157.71 | N33: 0 | O33: 35 | P33: 35 | Q33: 0 | R33: 20191231
B34: 1 | C34: A01803 | D34: ADMINISTRATIVO ESPECIALIZADO | E34: P | F34: 2 | G34: 100 | H34: 29 | I34: 2 | J34: 20190101 | K34: 999999 | L34: 0 | M34: 209.25 | N34: 0 | O34: 35 | P34: 35 | Q34: 0 | R34: 20191231
B35: 1 | C35: A01803 | D35: ADMINISTRATIVO ESPECIALIZADO | E35: P | F35: 2 | G35: 100 | H35: 29 | I35: 2 | J35: 20190101 | K35: 999999 | L35: 0 | M35: 260.79 | N35: 0 | O35: 35 | P35: 35 | Q35: 0 | R35: 20191231
B36: 1 | C36: A01803 | D36: ADMINISTRATIVO ESPECIALIZADO | E36: P | F36: 2 | G36: 100 | H36: 29 | I36: 2 | J36: 20190101 | K36: 999999 | L36: 0 | M36: 287.33 | N36: 0 | O36: 35 | P36: 35 | Q36: 0 | R36: 20191231
B37: 1 | C37: A01803 | D37: ADMINISTRATIVO ESPECIALIZADO | E37: P | F37: 2 | G37: 100 | H37: 29 | I37: 2 | J37: 20190101 | K37: 999999 | L37: 0 | M37: 338.87 | N37: 0 | O37: 35 | P37: 35 | Q37: 0 | R37: 20191231
B38: 1 | C38: A01803 | D38: ADMINISTRATIVO ESPECIALIZADO | E38: P | F38: 2 | G38: 100 | H38: 29 | I38: 2 | J38: 20190101 | K38: 999999 | L38: 0 | M38: 390.41 | N38: 0 | O38: 35 | P38: 35 | Q38: 0 | R38: 20191231
B39: 1 | C39: A01803 | D39: ADMINISTRATIVO ESPECIALIZADO | E39: P | F39: 2 | G39: 100 | H39: 29 | I39: 2 | J39: 20190101 | K39: 999999 | L39: 0 | M39: 441.95 | N39: 0 | O39: 35 | P39: 35 | Q39: 0 | R39: 20191231
B40: 1 | C40: A01803 | D40: ADMINISTRATIVO ESPECIALIZADO | E40: P | F40: 2 | G40: 100 | H40: 29 | I40: 2 | J40: 20190101 | K40: 999999 | L40: 0 | M40: 493.49 | N40: 0 | O40: 35 | P40: 35 | Q40: 0 | R40: 20191231
B41: 1 | C41: A01803 | D41: ADMINISTRATIVO ESPECIALIZADO | E41: P | F41: 2 | G41: 100 | H41: 29 | I41: 2 | J41: 20190101 | K41: 999999 | L41: 0 | M41: 495.03 | N41: 0 | O41: 35 | P41: 35 | Q41: 0 | R41: 20191231
B42: 1 | C42: A01803 | D42: ADMINISTRATIVO ESPECIALIZADO | E42: P | F42: 2 | G42: 100 | H42: 29 | I42: 2 | J42: 20190101 | K42: 999999 | L42: 0 | M42: 546.57 | N42: 0 | O42: 35 | P42: 35 | Q42: 0 | R42: 20191231
B43: 1 | C43: A01803 | D43: ADMINISTRATIVO ESPECIALIZADO | E43: P | F43: 2 | G43: 100 | H43: 29 | I43: 2 | J43: 20190101 | K43: 999999 | L43: 0 | M43: 598.12 | N43: 0 | O43: 35 | P43: 35 | Q43: 0 | R43: 20191231
B44: 1 | C44: A01803 | D44: ADMINISTRATIVO ESPECIALIZADO | E44: P | F44: 2 | G44: 100 | H44: 29 | I44: 2 | J44: 20190101 | K44: 999999 | L44: 0 | M44: 649.66 | N44: 0 | O44: 35 | P44: 35 | Q44: 0 | R44: 20191231
B45: 1 | C45: A01803 | D45: ADMINISTRATIVO ESPECIALIZADO | E45: P | F45: 2 | G45: 100 | H45: 29 | I45: 2 | J45: 20190101 | K45: 999999 | L45: 0 | M45: 701.2 | N45: 0 | O45: 35 | P45: 35 | Q45: 0 | R45: 20191231
B46: 1 | C46: A01803 | D46: ADMINISTRATIVO ESPECIALIZADO | E46: P | F46: 2 | G46: 100 | H46: 29 | I46: 2 | J46: 20190101 | K46: 999999 | L46: 0 | M46: 727.74 | N46: 0 | O46: 35 | P46: 35 | Q46: 0 | R46: 20191231
B47: 1 | C47: A01803 | D47: ADMINISTRATIVO ESPECIALIZADO | E47: P | F47: 2 | G47: 100 | H47: 29 | I47: 2 | J47: 20190101 | K47: 999999 | L47: 0 | M47: 779.28 | N47: 0 | O47: 35 | P47: 35 | Q47: 0 | R47: 20191231
B48: 1 | C48: A01803 | D48: ADMINISTRATIVO ESPECIALIZADO | E48: P | F48: 2 | G48: 100 | H48: 29 | I48: 2 | J48: 20190101 | K48: 999999 | L48: 0 | M48: 830.82 | N48: 0 | O48: 35 | P48: 35 | Q48: 0 | R48: 20191231
B49: 1 | C49: A01803 | D49: ADMINISTRATIVO ESPECIALIZADO | E49: P | F49: 2 | G49: 100 | H49: 29 | I49: 2 | J49: 20190101 | K49: 999999 | L49: 0 | M49: 882.36 | N49: 0 | O49: 35 | P49: 35 | Q49: 0 | R49: 20191231
B50: 1 | C50: A01803 | D50: ADMINISTRATIVO ESPECIALIZADO | E50: P | F50: 2 | G50: 100 | H50: 29 | I50: 2 | J50: 20190101 | K50: 999999 | L50: 0 | M50: 933.9 | N50: 0 | O50: 35 | P50: 35 | Q50: 0 | R50: 20191231
B51: 1 | C51: A01803 | D51: ADMINISTRATIVO ESPECIALIZADO | E51: P | F51: 2 | G51: 100 | H51: 29 | I51: 2 | J51: 20190101 | K51: 999999 | L51: 0 | M51: 960.44 | N51: 0 | O51: 35 | P51: 35 | Q51: 0 | R51: 20191231
B52: 1 | C52: A01803 | D52: ADMINISTRATIVO ESPECIALIZADO | E52: P | F52: 2 | G52: 100 | H52: 29 | I52: 2 | J52: 20190101 | K52: 999999 | L52: 0 | M52: 1011.98 | N52: 0 | O52: 35 | P52: 35 | Q52: 0 | R52: 20191231
B53: 1 | C53: A01803 | D53: ADMINISTRATIVO ESPECIALIZADO | E53: P | F53: 2 | G53: 100 | H53: 29 | I53: 2 | J53: 20190101 | K53: 999999 | L53: 0 | M53: 1063.53 | N53: 0 | O53: 35 | P53: 35 | Q53: 0 | R53: 20191231
B54: 1 | C54: A01803 | D54: ADMINISTRATIVO ESPECIALIZADO | E54: P | F54: 2 | G54: 100 | H54: 29 | I54: 2 | J54: 20190101 | K54: 999999 | L54: 0 | M54: 1115.07 | N54: 0 | O54: 35 | P54: 35 | Q54: 0 | R54: 20191231
B55: 1 | C55: A01803 | D55: ADMINISTRATIVO ESPECIALIZADO | E55: P | F55: 2 | G55: 100 | H55: 29 | I55: 2 | J55: 20190101 | K55: 999999 | L55: 0 | M55: 1166.61 | N55: 0 | O55: 35 | P55: 35 | Q55: 0 | R55: 20191231
B56: 1 | C56: A01803 | D56: ADMINISTRATIVO ESPECIALIZADO | E56: P | F56: 2 | G56: 100 | H56: 29 | I56: 2 | J56: 20190101 | K56: 999999 | L56: 0 | M56: 1218.15 | N56: 0 | O56: 35 | P56: 35 | Q56: 0 | R56: 20191231
B57: 1 | C57: A01803 | D57: ADMINISTRATIVO ESPECIALIZADO | E57: P | F57: 2 | G57: 4 | H57: 29 | I57: 2 | J57: 20190101 | K57: 999999 | L57: 0 | M57: 200 | N57: 0 | O57: 35 | P57: 35 | Q57: 0 | R57: 20191231
B58: 1 | C58: A01803 | D58: ADMINISTRATIVO ESPECIALIZADO | E58: P | F58: 2 | G58: 4 | H58: 29 | I58: 2 | J58: 20190101 | K58: 999999 | L58: 0 | M58: 225 | N58: 0 | O58: 35 | P58: 35 | Q58: 0 | R58: 20191231
B59: 1 | C59: A01803 | D59: ADMINISTRATIVO ESPECIALIZADO | E59: P | F59: 2 | G59: 4 | H59: 29 | I59: 2 | J59: 20190101 | K59: 999999 | L59: 0 | M59: 125 | N59: 0 | O59: 35 | P59: 35 | Q59: 0 | R59: 20191231
B60: 1 | C60: A01803 | D60: ADMINISTRATIVO ESPECIALIZADO | E60: P | F60: 2 | G60: 4 | H60: 29 | I60: 2 | J60: 20190101 | K60: 999999 | L60: 0 | M60: 175 | N60: 0 | O60: 35 | P60: 35 | Q60: 0 | R60: 20191231
B61: 1 | C61: A01803 | D61: ADMINISTRATIVO ESPECIALIZADO | E61: P | F61: 2 | G61: 4 | H61: 29 | I61: 2 | J61: 20190101 | K61: 999999 | L61: 0 | M61: 100 | N61: 0 | O61: 35 | P61: 35 | Q61: 0 | R61: 20191231
B62: 1 | C62: A01803 | D62: ADMINISTRATIVO ESPECIALIZADO | E62: P | F62: 2 | G62: 20 | H62: 29 | I62: 2 | J62: 20190101 | K62: 999999 | L62: 0 | M62: 1200 | N62: 0 | O62: 35 | P62: 35 | Q62: 0 | R62: 20191231
B63: 1 | C63: A01803 | D63: ADMINISTRATIVO ESPECIALIZADO | E63: P | F63: 2 | G63: 20 | H63: 29 | I63: 2 | J63: 20190101 | K63: 999999 | L63: 0 | M63: 1200 | N63: 0 | O63: 35 | P63: 35 | Q63: 0 | R63: 20191231
B64: 1 | C64: A01803 | D64: ADMINISTRATIVO ESPECIALIZADO | E64: P | F64: 2 | G64: 11 | H64: 29 | I64: 2 | J64: 20190101 | K64: 999999 | L64: 0 | M64: 565 | N64: 0 | O64: 35 | P64: 35 | Q64: 0 | R64: 20191231
B65: 1 | C65: A01803 | D65: ADMINISTRATIVO ESPECIALIZADO | E65: P | F65: 2 | G65: 11 | H65: 29 | I65: 2 | J65: 20190101 | K65: 999999 | L65: 0 | M65: 565 | N65: 0 | O65: 35 | P65: 35 | Q65: 0 | R65: 20191231
B66: 1 | C66: A01804 | D66: ADMINISTRATIVO ESPECIALIZADO | E66: P | F66: 2 | G66: 6 | H66: 29 | I66: 2 | J66: 20190101 | K66: 999999 | L66: 0 | M66: 7588 | N66: 0 | O66: 35 | P66: 35 | Q66: 0 | R66: 20191231
B67: 1 | C67: A01805 | D67: ADMINISTRATIVO ESPECIALIZADO | E67: P | F67: 2 | G67: 5 | H67: 29 | I67: 2 | J67: 20190101 | K67: 999999 | L67: 0 | M67: 3414.24 | N67: 0 | O67: 35 | P67: 35 | Q67: 0 | R67: 20191231
B68: 1 | C68: A01806 | D68: ADMINISTRATIVO ESPECIALIZADO | E68: P | F68: 2 | G68: 7 | H68: 29 | I68: 2 | J68: 20190101 | K68: 999999 | L68: 0 | M68: 1785 | N68: 0 | O68: 35 | P68: 35 | Q68: 0 | R68: 20191231
B69: 1 | C69: A01807 | D69: ADMINISTRATIVO ESPECIALIZADO | E69: P | F69: 2 | G69: 31 | H69: 29 | I69: 2 | J69: 20190101 | K69: 999999 | L69: 0 | M69: 2276.16 | N69: 0 | O69: 35 | P69: 35 | Q69: 0 | R69: 20191231
B70: 1 | C70: A01808 | D70: ADMINISTRATIVO ESPECIALIZADO | E70: P | F70: 2 | G70: 46 | H70: 29 | I70: 2 | J70: 20190101 | K70: 999999 | L70: 0 | M70: 714 | N70: 0 | O70: 35 | P70: 35 | Q70: 0 | R70: 20191231
B71: 1 | C71: A01809 | D71: ADMINISTRATIVO ESPECIALIZADO | E71: P | F71: 2 | G71: 421 | H71: 29 | I71: 2 | J71: 20190101 | K71: 999999 | L71: 0 | M71: 892.5 | N71: 0 | O71: 35 | P71: 35 | Q71: 0 | R71: 20191231
B72: 1 | C72: S01803 | D72: OFICIAL DE SERVICIOS Y MANTENIMIENTO | E72: P | F72: 2 | G72: 1 | H72: 21 | I72: 2 | J72: 20190101 | K72: 999999 | L72: 0 | M72: 6093.65 | N72: 0 | O72: 35 | P72: 35 | Q72: 0 | R72: 20191231
B73: 1 | C73: S01803 | D73: OFICIAL DE SERVICIOS Y MANTENIMIENTO | E73: P | F73: 2 | G73: 9 | H73: 21 | I73: 2 | J73: 20190101 | K73: 999999 | L73: 0 | M73: 565 | N73: 0 | O73: 35 | P73: 35 | Q73: 0 | R73: 20191231
B74: 1 | C74: S01803 | D74: OFICIAL DE SERVICIOS Y MANTENIMIENTO | E74: P | F74: 2 | G74: 9 | H74: 21 | I74: 2 | J74: 20190101 | K74: 999999 | L74: 0 | M74: 565 | N74: 0 | O74: 35 | P74: 35 | Q74: 0 | R74: 20191231
B75: 1 | C75: S01803 | D75: OFICIAL DE SERVICIOS Y MANTENIMIENTO | E75: P | F75: 2 | G75: 12 | H75: 21 | I75: 2 | J75: 20190101 | K75: 999999 | L75: 0 | M75: 565 | N75: 0 | O75: 35 | P75: 35 | Q75: 0 | R75: 20191231
B76: 1 | C76: S01803 | D76: OFICIAL DE SERVICIOS Y MANTENIMIENTO | E76: P | F76: 2 | G76: 12 | H76: 21 | I76: 2 | J76: 20190101 | K76: 999999 | L76: 0 | M76: 565 | N76: 0 | O76: 35 | P76: 35 | Q76: 0 | R76: 20191231
B77: 1 | C77: S01803 | D77: OFICIAL DE SERVICIOS Y MANTENIMIENTO | E77: P | F77: 2 | G77: 63 | H77: 21 | I77: 2 | J77: 20190101 | K77: 999999 | L77: 0 | M77: 615.84 | N77: 0 | O77: 35 | P77: 35 | Q77: 0 | R77: 20191231
B78: 1 | C78: S01803 | D78: OFICIAL DE SERVICIOS Y MANTENIMIENTO | E78: P | F78: 2 | G78: 74 | H78: 21 | I78: 2 | J78: 20190101 | K78: 999999 | L78: 0 | M78: 686.66 | N78: 0 | O78: 35 | P78: 35 | Q78: 0 | R78: 20191231
B79: 1 | C79: S01803 | D79: OFICIAL DE SERVICIOS Y MANTENIMIENTO | E79: P | F79: 2 | G79: 15 | H79: 21 | I79: 2 | J79: 20190101 | K79: 999999 | L79: 0 | M79: 184.75 | N79: 0 | O79: 35 | P79: 35 | Q79: 0 | R79: 20191231
B80: 1 | C80: S01803 | D80: OFICIAL DE SERVICIOS Y MANTENIMIENTO | E80: P | F80: 2 | G80: 13 | H80: 21 | I80: 2 | J80: 20190101 | K80: 999999 | L80: 0 | M80: 60 | N80: 0 | O80: 35 | P80: 35 | Q80: 0 | R80: 20191231
B81: 1 | C81: S01803 | D81: OFICIAL DE SERVICIOS Y MANTENIMIENTO | E81: P | F81: 2 | G81: 13 | H81: 21 | I81: 2 | J81: 20190101 | K81: 999999 | L81: 0 | M81: 80 | N81: 0 | O81: 35 | P81: 35 | Q81: 0 | R81: 20191231
B82: 1 | C82: S01803 | D82: OFICIAL DE SERVICIOS Y MANTENIMIENTO | E82: P | F82: 2 | G82: 30 | H82: 21 | I82: 2 | J82: 20190101 | K82: 999999 | L82: 0 | M82: 291.42 | N82: 0 | O82: 35 | P82: 35 | Q82: 0 | R82: 20191231
B83: 1 | C83: S01803 | D83: OFICIAL DE SERVICIOS Y MANTENIMIENTO | E83: P | F83: 2 | G83: 21 | H83: 21 | I83: 2 | J83: 20190101 | K83: 999999 | L83: 0 | M83: 2000 | N83: 0 | O83: 35 | P83: 35 | Q83: 0 | R83: 20191231
B84: 1 | C84: S01803 | D84: OFICIAL DE SERVICIOS Y MANTENIMIENTO | E84: P | F84: 2 | G84: 100 | H84: 21 | I84: 2 | J84: 20190101 | K84: 999999 | L84: 0 | M84: 54.62 | N84: 0 | O84: 35 | P84: 35 | Q84: 0 | R84: 20191231
B85: 1 | C85: S01803 | D85: OFICIAL DE SERVICIOS Y MANTENIMIENTO | E85: P | F85: 2 | G85: 100 | H85: 21 | I85: 2 | J85: 20190101 | K85: 999999 | L85: 0 | M85: 106.16 | N85: 0 | O85: 35 | P85: 35 | Q85: 0 | R85: 20191231
B86: 1 | C86: S01803 | D86: OFICIAL DE SERVICIOS Y MANTENIMIENTO | E86: P | F86: 2 | G86: 100 | H86: 21 | I86: 2 | J86: 20190101 | K86: 999999 | L86: 0 | M86: 157.71 | N86: 0 | O86: 35 | P86: 35 | Q86: 0 | R86: 20191231
B87: 1 | C87: S01803 | D87: OFICIAL DE SERVICIOS Y MANTENIMIENTO | E87: P | F87: 2 | G87: 100 | H87: 21 | I87: 2 | J87: 20190101 | K87: 999999 | L87: 0 | M87: 209.25 | N87: 0 | O87: 35 | P87: 35 | Q87: 0 | R87: 20191231
B88: 1 | C88: S01803 | D88: OFICIAL DE SERVICIOS Y MANTENIMIENTO | E88: P | F88: 2 | G88: 100 | H88: 21 | I88: 2 | J88: 20190101 | K88: 999999 | L88: 0 | M88: 260.79 | N88: 0 | O88: 35 | P88: 35 | Q88: 0 | R88: 20191231
B89: 1 | C89: S01803 | D89: OFICIAL DE SERVICIOS Y MANTENIMIENTO | E89: P | F89: 2 | G89: 100 | H89: 21 | I89: 2 | J89: 20190101 | K89: 999999 | L89: 0 | M89: 287.33 | N89: 0 | O89: 35 | P89: 35 | Q89: 0 | R89: 20191231
B90: 1 | C90: S01803 | D90: OFICIAL DE SERVICIOS Y MANTENIMIENTO | E90: P | F90: 2 | G90: 100 | H90: 21 | I90: 2 | J90: 20190101 | K90: 999999 | L90: 0 | M90: 338.87 | N90: 0 | O90: 35 | P90: 35 | Q90: 0 | R90: 20191231
B91: 1 | C91: S01803 | D91: OFICIAL DE SERVICIOS Y MANTENIMIENTO | E91: P | F91: 2 | G91: 100 | H91: 21 | I91: 2 | J91: 20190101 | K91: 999999 | L91: 0 | M91: 390.41 | N91: 0 | O91: 35 | P91: 35 | Q91: 0 | R91: 20191231
B92: 1 | C92: S01803 | D92: OFICIAL DE SERVICIOS Y MANTENIMIENTO | E92: P | F92: 2 | G92: 100 | H92: 21 | I92: 2 | J92: 20190101 | K92: 999999 | L92: 0 | M92: 441.95 | N92: 0 | O92: 35 | P92: 35 | Q92: 0 | R92: 20191231
B93: 1 | C93: S01803 | D93: OFICIAL DE SERVICIOS Y MANTENIMIENTO | E93: P | F93: 2 | G93: 100 | H93: 21 | I93: 2 | J93: 20190101 | K93: 999999 | L93: 0 | M93: 493.49 | N93: 0 | O93: 35 | P93: 35 | Q93: 0 | R93: 20191231
B94: 1 | C94: S01803 | D94: OFICIAL DE SERVICIOS Y MANTENIMIENTO | E94: P | F94: 2 | G94: 100 | H94: 21 | I94: 2 | J94: 20190101 | K94: 999999 | L94: 0 | M94: 495.03 | N94: 0 | O94: 35 | P94: 35 | Q94: 0 | R94: 20191231
B95: 1 | C95: S01803 | D95: OFICIAL DE SERVICIOS Y MANTENIMIENTO | E95: P | F95: 2 | G95: 100 | H95: 21 | I95: 2 | J95: 20190101 | K95: 999999 | L95: 0 | M95: 546.57 | N95: 0 | O95: 35 | P95: 35 | Q95: 0 | R95: 20191231
B96: 1 | C96: S01803 | D96: OFICIAL DE SERVICIOS Y MANTENIMIENTO | E96: P | F96: 2 | G96: 100 | H96: 21 | I96: 2 | J96: 20190101 | K96: 999999 | L96: 0 | M96: 598.12 | N96: 0 | O96: 35 | P96: 35 | Q96: 0 | R96: 20191231
B97: 1 | C97: S01803 | D97: OFICIAL DE SERVICIOS Y MANTENIMIENTO | E97: P | F97: 2 | G97: 100 | H97: 21 | I97: 2 | J97: 20190101 | K97: 999999 | L97: 0 | M97: 649.66 | N97: 0 | O97: 35 | P97: 35 | Q97: 0 | R97: 20191231
B98: 1 | C98: S01803 | D98: OFICIAL DE SERVICIOS Y MANTENIMIENTO | E98: P | F98: 2 | G98: 100 | H98: 21 | I98: 2 | J98: 20190101 | K98: 999999 | L98: 0 | M98: 701.2 | N98: 0 | O98: 35 | P98: 35 | Q98: 0 | R98: 20191231
B99: 1 | C99: S01803 | D99: OFICIAL DE SERVICIOS Y MANTENIMIENTO | E99: P | F99: 2 | G99: 100 | H99: 21 | I99: 2 | J99: 20190101 | K99: 999999 | L99: 0 | M99: 727.74 | N99: 0 | O99: 35 | P99: 35 | Q99: 0 | R99: 20191231
B100: 1 | C100: S01803 | D100: OFICIAL DE SERVICIOS Y MANTENIMIENTO | E100: P | F100: 2 | G100: 100 | H100: 21 | I100: 2 | J100: 20190101 | K100: 999999 | L100: 0 | M100: 779.28 | N100: 0 | O100: 35 | P100: 35 | Q100: 0 | R100: 20191231
B101: 1 | C101: S01803 | D101: OFICIAL DE SERVICIOS Y MANTENIMIENTO | E101: P | F101: 2 | G101: 100 | H101: 21 | I101: 2 | J101: 20190101 | K101: 999999 | L101: 0 | M101: 830.82 | N101: 0 | O101: 35 | P101: 35 | Q101: 0 | R101: 20191231
B102: 1 | C102: S01803 | D102: OFICIAL DE SERVICIOS Y MANTENIMIENTO | E102: P | F102: 2 | G102: 100 | H102: 21 | I102: 2 | J102: 20190101 | K102: 999999 | L102: 0 | M102: 882.36 | N102: 0 | O102: 35 | P102: 35 | Q102: 0 | R102: 20191231
B103: 1 | C103: S01803 | D103: OFICIAL DE SERVICIOS Y MANTENIMIENTO | E103: P | F103: 2 | G103: 100 | H103: 21 | I103: 2 | J103: 20190101 | K103: 999999 | L103: 0 | M103: 933.9 | N103: 0 | O103: 35 | P103: 35 | Q103: 0 | R103: 20191231
B104: 1 | C104: S01803 | D104: OFICIAL DE SERVICIOS Y MANTENIMIENTO | E104: P | F104: 2 | G104: 100 | H104: 21 | I104: 2 | J104: 20190101 | K104: 999999 | L104: 0 | M104: 960.44 | N104: 0 | O104: 35 | P104: 35 | Q104: 0 | R104: 20191231
B105: 1 | C105: S01803 | D105: OFICIAL DE SERVICIOS Y MANTENIMIENTO | E105: P | F105: 2 | G105: 100 | H105: 21 | I105: 2 | J105: 20190101 | K105: 999999 | L105: 0 | M105: 1011.98 | N105: 0 | O105: 35 | P105: 35 | Q105: 0 | R105: 20191231
B106: 1 | C106: S01803 | D106: OFICIAL DE SERVICIOS Y MANTENIMIENTO | E106: P | F106: 2 | G106: 100 | H106: 21 | I106: 2 | J106: 20190101 | K106: 999999 | L106: 0 | M106: 1063.53 | N106: 0 | O106: 35 | P106: 35 | Q106: 0 | R106: 20191231
B107: 1 | C107: S01803 | D107: OFICIAL DE SERVICIOS Y MANTENIMIENTO | E107: P | F107: 2 | G107: 100 | H107: 21 | I107: 2 | J107: 20190101 | K107: 999999 | L107: 0 | M107: 1115.07 | N107: 0 | O107: 35 | P107: 35 | Q107: 0 | R107: 20191231
B108: 1 | C108: S01803 | D108: OFICIAL DE SERVICIOS Y MANTENIMIENTO | E108: P | F108: 2 | G108: 100 | H108: 21 | I108: 2 | J108: 20190101 | K108: 999999 | L108: 0 | M108: 1166.61 | N108: 0 | O108: 35 | P108: 35 | Q108: 0 | R108: 20191231
B109: 1 | C109: S01803 | D109: OFICIAL DE SERVICIOS Y MANTENIMIENTO | E109: P | F109: 2 | G109: 100 | H109: 21 | I109: 2 | J109: 20190101 | K109: 999999 | L109: 0 | M109: 1218.15 | N109: 0 | O109: 35 | P109: 35 | Q109: 0 | R109: 20191231
B110: 1 | C110: S01803 | D110: OFICIAL DE SERVICIOS Y MANTENIMIENTO | E110: P | F110: 2 | G110: 4 | H110: 21 | I110: 2 | J110: 20190101 | K110: 999999 | L110: 0 | M110: 200 | N110: 0 | O110: 35 | P110: 35 | Q110: 0 | R110: 20191231
B111: 1 | C111: S01803 | D111: OFICIAL DE SERVICIOS Y MANTENIMIENTO | E111: P | F111: 2 | G111: 4 | H111: 21 | I111: 2 | J111: 20190101 | K111: 999999 | L111: 0 | M111: 225 | N111: 0 | O111: 35 | P111: 35 | Q111: 0 | R111: 20191231
B112: 1 | C112: S01803 | D112: OFICIAL DE SERVICIOS Y MANTENIMIENTO | E112: P | F112: 2 | G112: 4 | H112: 21 | I112: 2 | J112: 20190101 | K112: 999999 | L112: 0 | M112: 100 | N112: 0 | O112: 35 | P112: 35 | Q112: 0 | R112: 20191231
B113: 1 | C113: S01803 | D113: OFICIAL DE SERVICIOS Y MANTENIMIENTO | E113: P | F113: 2 | G113: 4 | H113: 21 | I113: 2 | J113: 20190101 | K113: 999999 | L113: 0 | M113: 32.5 | N113: 0 | O113: 35 | P113: 35 | Q113: 0 | R113: 20191231
B114: 1 | C114: S01803 | D114: OFICIAL DE SERVICIOS Y MANTENIMIENTO | E114: P | F114: 2 | G114: 4 | H114: 21 | I114: 2 | J114: 20190101 | K114: 999999 | L114: 0 | M114: 175 | N114: 0 | O114: 35 | P114: 35 | Q114: 0 | R114: 20191231
B115: 1 | C115: S01803 | D115: OFICIAL DE SERVICIOS Y MANTENIMIENTO | E115: P | F115: 2 | G115: 20 | H115: 21 | I115: 2 | J115: 20190101 | K115: 999999 | L115: 0 | M115: 1200 | N115: 0 | O115: 35 | P115: 35 | Q115: 0 | R115: 20191231
B116: 1 | C116: S01803 | D116: OFICIAL DE SERVICIOS Y MANTENIMIENTO | E116: P | F116: 2 | G116: 20 | H116: 21 | I116: 2 | J116: 20190101 | K116: 999999 | L116: 0 | M116: 1200 | N116: 0 | O116: 35 | P116: 35 | Q116: 0 | R116: 20191231
B117: 1 | C117: S01803 | D117: OFICIAL DE SERVICIOS Y MANTENIMIENTO | E117: P | F117: 2 | G117: 11 | H117: 21 | I117: 2 | J117: 20190101 | K117: 999999 | L117: 0 | M117: 565 | N117: 0 | O117: 35 | P117: 35 | Q117: 0 | R117: 20191231
B118: 1 | C118: S01803 | D118: OFICIAL DE SERVICIOS Y MANTENIMIENTO | E118: P | F118: 2 | G118: 11 | H118: 21 | I118: 2 | J118: 20190101 | K118: 999999 | L118: 0 | M118: 565 | N118: 0 | O118: 35 | P118: 35 | Q118: 0 | R118: 20191231
B119: 1 | C119: S01804 | D119: OFICIAL DE SERVICIOS Y MANTENIMIENTO | E119: P | F119: 2 | G119: 6 | H119: 21 | I119: 2 | J119: 20190101 | K119: 999999 | L119: 0 | M119: 7390.05 | N119: 0 | O119: 35 | P119: 35 | Q119: 0 | R119: 20191231
B120: 1 | C120: S01805 | D120: OFICIAL DE SERVICIOS Y MANTENIMIENTO | E120: P | F120: 2 | G120: 5 | H120: 21 | I120: 2 | J120: 20190101 | K120: 999999 | L120: 0 | M120: 1662.76 | N120: 0 | O120: 35 | P120: 35 | Q120: 0 | R120: 20191231
B121: 1 | C121: S01806 | D121: OFICIAL DE SERVICIOS Y MANTENIMIENTO | E121: P | F121: 2 | G121: 7 | H121: 21 | I121: 2 | J121: 20190101 | K121: 999999 | L121: 0 | M121: 1785 | N121: 0 | O121: 35 | P121: 35 | Q121: 0 | R121: 20191231
B122: 1 | C122: S01807 | D122: OFICIAL DE SERVICIOS Y MANTENIMIENTO | E122: P | F122: 2 | G122: 31 | H122: 21 | I122: 2 | J122: 20190101 | K122: 999999 | L122: 0 | M122: 2217.01 | N122: 0 | O122: 35 | P122: 35 | Q122: 0 | R122: 20191231
B123: 1 | C123: S01808 | D123: OFICIAL DE SERVICIOS Y MANTENIMIENTO | E123: P | F123: 2 | G123: 46 | H123: 21 | I123: 2 | J123: 20190101 | K123: 999999 | L123: 0 | M123: 714 | N123: 0 | O123: 35 | P123: 35 | Q123: 0 | R123: 20191231
B124: 1 | C124: S01809 | D124: OFICIAL DE SERVICIOS Y MANTENIMIENTO | E124: P | F124: 2 | G124: 421 | H124: 21 | I124: 2 | J124: 20190101 | K124: 999999 | L124: 0 | M124: 892.5 | N124: 0 | O124: 35 | P124: 35 | Q124: 0 | R124: 20191231
B125: 1 | C125: A01805 | D125: AUXILIAR DE ADMINISTRADOR | E125: P | F125: 2 | G125: 1 | H125: 46 | I125: 2 | J125: 20190101 | K125: 999999 | L125: 0 | M125: 6093.65 | N125: 0 | O125: 35 | P125: 35 | Q125: 0 | R125: 20191231
B126: 1 | C126: A01805 | D126: AUXILIAR DE ADMINISTRADOR | E126: P | F126: 2 | G126: 9 | H126: 46 | I126: 2 | J126: 20190101 | K126: 999999 | L126: 0 | M126: 565 | N126: 0 | O126: 35 | P126: 35 | Q126: 0 | R126: 20191231
B127: 1 | C127: A01805 | D127: AUXILIAR DE ADMINISTRADOR | E127: P | F127: 2 | G127: 9 | H127: 46 | I127: 2 | J127: 20190101 | K127: 999999 | L127: 0 | M127: 565 | N127: 0 | O127: 35 | P127: 35 | Q127: 0 | R127: 20191231
B128: 1 | C128: A01805 | D128: AUXILIAR DE ADMINISTRADOR | E128: P | F128: 2 | G128: 12 | H128: 46 | I128: 2 | J128: 20190101 | K128: 999999 | L128: 0 | M128: 565 | N128: 0 | O128: 35 | P128: 35 | Q128: 0 | R128: 20191231
B129: 1 | C129: A01805 | D129: AUXILIAR DE ADMINISTRADOR | E129: P | F129: 2 | G129: 12 | H129: 46 | I129: 2 | J129: 20190101 | K129: 999999 | L129: 0 | M129: 565 | N129: 0 | O129: 35 | P129: 35 | Q129: 0 | R129: 20191231
B130: 1 | C130: A01805 | D130: AUXILIAR DE ADMINISTRADOR | E130: P | F130: 2 | G130: 15 | H130: 46 | I130: 2 | J130: 20190101 | K130: 999999 | L130: 0 | M130: 184.75 | N130: 0 | O130: 35 | P130: 35 | Q130: 0 | R130: 20191231
B131: 1 | C131: A01805 | D131: AUXILIAR DE ADMINISTRADOR | E131: P | F131: 2 | G131: 13 | H131: 46 | I131: 2 | J131: 20190101 | K131: 999999 | L131: 0 | M131: 60 | N131: 0 | O131: 35 | P131: 35 | Q131: 0 | R131: 20191231
B132: 1 | C132: A01805 | D132: AUXILIAR DE ADMINISTRADOR | E132: P | F132: 2 | G132: 13 | H132: 46 | I132: 2 | J132: 20190101 | K132: 999999 | L132: 0 | M132: 80 | N132: 0 | O132: 35 | P132: 35 | Q132: 0 | R132: 20191231
B133: 1 | C133: A01805 | D133: AUXILIAR DE ADMINISTRADOR | E133: P | F133: 2 | G133: 20 | H133: 46 | I133: 2 | J133: 20190101 | K133: 999999 | L133: 0 | M133: 1200 | N133: 0 | O133: 35 | P133: 35 | Q133: 0 | R133: 20191231
B134: 1 | C134: A01805 | D134: AUXILIAR DE ADMINISTRADOR | E134: P | F134: 2 | G134: 20 | H134: 46 | I134: 2 | J134: 20190101 | K134: 999999 | L134: 0 | M134: 1200 | N134: 0 | O134: 35 | P134: 35 | Q134: 0 | R134: 20191231
B135: 1 | C135: A01805 | D135: AUXILIAR DE ADMINISTRADOR | E135: P | F135: 2 | G135: 11 | H135: 46 | I135: 2 | J135: 20190101 | K135: 999999 | L135: 0 | M135: 565 | N135: 0 | O135: 35 | P135: 35 | Q135: 0 | R135: 20191231
B136: 1 | C136: A01805 | D136: AUXILIAR DE ADMINISTRADOR | E136: P | F136: 2 | G136: 11 | H136: 46 | I136: 2 | J136: 20190101 | K136: 999999 | L136: 0 | M136: 565 | N136: 0 | O136: 35 | P136: 35 | Q136: 0 | R136: 20191231
B137: 1 | C137: A01806 | D137: AUXILIAR DE ADMINISTRADOR | E137: P | F137: 2 | G137: 6 | H137: 46 | I137: 2 | J137: 20190101 | K137: 999999 | L137: 0 | M137: 7390 | N137: 0 | O137: 35 | P137: 35 | Q137: 0 | R137: 20191231
B138: 1 | C138: A01807 | D138: AUXILIAR DE ADMINISTRADOR | E138: P | F138: 2 | G138: 5 | H138: 46 | I138: 2 | J138: 20190101 | K138: 999999 | L138: 0 | M138: 1662.75 | N138: 0 | O138: 35 | P138: 35 | Q138: 0 | R138: 20191231
B139: 1 | C139: A01808 | D139: AUXILIAR DE ADMINISTRADOR | E139: P | F139: 2 | G139: 7 | H139: 46 | I139: 2 | J139: 20190101 | K139: 999999 | L139: 0 | M139: 1785 | N139: 0 | O139: 35 | P139: 35 | Q139: 0 | R139: 20191231
B140: 1 | C140: A01809 | D140: AUXILIAR DE ADMINISTRADOR | E140: P | F140: 2 | G140: 31 | H140: 46 | I140: 2 | J140: 20190101 | K140: 999999 | L140: 0 | M140: 2217 | N140: 0 | O140: 35 | P140: 35 | Q140: 0 | R140: 20191231
B141: 1 | C141: A01810 | D141: AUXILIAR DE ADMINISTRADOR | E141: P | F141: 2 | G141: 46 | H141: 46 | I141: 2 | J141: 20190101 | K141: 999999 | L141: 0 | M141: 714 | N141: 0 | O141: 35 | P141: 35 | Q141: 0 | R141: 20191231
B142: 1 | C142: A01811 | D142: AUXILIAR DE ADMINISTRADOR | E142: P | F142: 2 | G142: 421 | H142: 46 | I142: 2 | J142: 20190101 | K142: 999999 | L142: 0 | M142: 892.5 | N142: 0 | O142: 35 | P142: 35 | Q142: 0 | R142: 20191231
B143: 1 | C143: T03803 | D143: TECNICO MEDIO | E143: P | F143: 2 | G143: 1 | H143: 47 | I143: 2 | J143: 20190101 | K143: 999999 | L143: 0 | M143: 6093.65 | N143: 0 | O143: 35 | P143: 35 | Q143: 0 | R143: 20191231
B144: 1 | C144: T03803 | D144: TECNICO MEDIO | E144: P | F144: 2 | G144: 9 | H144: 47 | I144: 2 | J144: 20190101 | K144: 999999 | L144: 0 | M144: 565 | N144: 0 | O144: 35 | P144: 35 | Q144: 0 | R144: 20191231
B145: 1 | C145: T03803 | D145: TECNICO MEDIO | E145: P | F145: 2 | G145: 9 | H145: 47 | I145: 2 | J145: 20190101 | K145: 999999 | L145: 0 | M145: 565 | N145: 0 | O145: 35 | P145: 35 | Q145: 0 | R145: 20191231
B146: 1 | C146: T03803 | D146: TECNICO MEDIO | E146: P | F146: 2 | G146: 12 | H146: 47 | I146: 2 | J146: 20190101 | K146: 999999 | L146: 0 | M146: 565 | N146: 0 | O146: 35 | P146: 35 | Q146: 0 | R146: 20191231
B147: 1 | C147: T03803 | D147: TECNICO MEDIO | E147: P | F147: 2 | G147: 12 | H147: 47 | I147: 2 | J147: 20190101 | K147: 999999 | L147: 0 | M147: 565 | N147: 0 | O147: 35 | P147: 35 | Q147: 0 | R147: 20191231
B148: 1 | C148: T03803 | D148: TECNICO MEDIO | E148: P | F148: 2 | G148: 63 | H148: 47 | I148: 2 | J148: 20190101 | K148: 999999 | L148: 0 | M148: 615.84 | N148: 0 | O148: 35 | P148: 35 | Q148: 0 | R148: 20191231
B149: 1 | C149: T03803 | D149: TECNICO MEDIO | E149: P | F149: 2 | G149: 74 | H149: 47 | I149: 2 | J149: 20190101 | K149: 999999 | L149: 0 | M149: 686.66 | N149: 0 | O149: 35 | P149: 35 | Q149: 0 | R149: 20191231
B150: 1 | C150: T03803 | D150: TECNICO MEDIO | E150: P | F150: 2 | G150: 15 | H150: 47 | I150: 2 | J150: 20190101 | K150: 999999 | L150: 0 | M150: 184.75 | N150: 0 | O150: 35 | P150: 35 | Q150: 0 | R150: 20191231
B151: 1 | C151: T03803 | D151: TECNICO MEDIO | E151: P | F151: 2 | G151: 13 | H151: 47 | I151: 2 | J151: 20190101 | K151: 999999 | L151: 0 | M151: 60 | N151: 0 | O151: 35 | P151: 35 | Q151: 0 | R151: 20191231
B152: 1 | C152: T03803 | D152: TECNICO MEDIO | E152: P | F152: 2 | G152: 13 | H152: 47 | I152: 2 | J152: 20190101 | K152: 999999 | L152: 0 | M152: 80 | N152: 0 | O152: 35 | P152: 35 | Q152: 0 | R152: 20191231
B153: 1 | C153: T03803 | D153: TECNICO MEDIO | E153: P | F153: 2 | G153: 30 | H153: 47 | I153: 2 | J153: 20190101 | K153: 999999 | L153: 0 | M153: 291.42 | N153: 0 | O153: 35 | P153: 35 | Q153: 0 | R153: 20191231
B154: 1 | C154: T03803 | D154: TECNICO MEDIO | E154: P | F154: 2 | G154: 21 | H154: 47 | I154: 2 | J154: 20190101 | K154: 999999 | L154: 0 | M154: 2000 | N154: 0 | O154: 35 | P154: 35 | Q154: 0 | R154: 20191231
B155: 1 | C155: T03803 | D155: TECNICO MEDIO | E155: P | F155: 2 | G155: 100 | H155: 47 | I155: 2 | J155: 20190101 | K155: 999999 | L155: 0 | M155: 54.62 | N155: 0 | O155: 35 | P155: 35 | Q155: 0 | R155: 20191231
B156: 1 | C156: T03803 | D156: TECNICO MEDIO | E156: P | F156: 2 | G156: 100 | H156: 47 | I156: 2 | J156: 20190101 | K156: 999999 | L156: 0 | M156: 106.16 | N156: 0 | O156: 35 | P156: 35 | Q156: 0 | R156: 20191231
B157: 1 | C157: T03803 | D157: TECNICO MEDIO | E157: P | F157: 2 | G157: 100 | H157: 47 | I157: 2 | J157: 20190101 | K157: 999999 | L157: 0 | M157: 157.71 | N157: 0 | O157: 35 | P157: 35 | Q157: 0 | R157: 20191231
B158: 1 | C158: T03803 | D158: TECNICO MEDIO | E158: P | F158: 2 | G158: 100 | H158: 47 | I158: 2 | J158: 20190101 | K158: 999999 | L158: 0 | M158: 209.25 | N158: 0 | O158: 35 | P158: 35 | Q158: 0 | R158: 20191231
B159: 1 | C159: T03803 | D159: TECNICO MEDIO | E159: P | F159: 2 | G159: 100 | H159: 47 | I159: 2 | J159: 20190101 | K159: 999999 | L159: 0 | M159: 260.79 | N159: 0 | O159: 35 | P159: 35 | Q159: 0 | R159: 20191231
B160: 1 | C160: T03803 | D160: TECNICO MEDIO | E160: P | F160: 2 | G160: 100 | H160: 47 | I160: 2 | J160: 20190101 | K160: 999999 | L160: 0 | M160: 287.33 | N160: 0 | O160: 35 | P160: 35 | Q160: 0 | R160: 20191231
B161: 1 | C161: T03803 | D161: TECNICO MEDIO | E161: P | F161: 2 | G161: 100 | H161: 47 | I161: 2 | J161: 20190101 | K161: 999999 | L161: 0 | M161: 338.87 | N161: 0 | O161: 35 | P161: 35 | Q161: 0 | R161: 20191231
B162: 1 | C162: T03803 | D162: TECNICO MEDIO | E162: P | F162: 2 | G162: 100 | H162: 47 | I162: 2 | J162: 20190101 | K162: 999999 | L162: 0 | M162: 390.41 | N162: 0 | O162: 35 | P162: 35 | Q162: 0 | R162: 20191231
B163: 1 | C163: T03803 | D163: TECNICO MEDIO | E163: P | F163: 2 | G163: 100 | H163: 47 | I163: 2 | J163: 20190101 | K163: 999999 | L163: 0 | M163: 441.95 | N163: 0 | O163: 35 | P163: 35 | Q163: 0 | R163: 20191231
B164: 1 | C164: T03803 | D164: TECNICO MEDIO | E164: P | F164: 2 | G164: 100 | H164: 47 | I164: 2 | J164: 20190101 | K164: 999999 | L164: 0 | M164: 493.49 | N164: 0 | O164: 35 | P164: 35 | Q164: 0 | R164: 20191231
B165: 1 | C165: T03803 | D165: TECNICO MEDIO | E165: P | F165: 2 | G165: 100 | H165: 47 | I165: 2 | J165: 20190101 | K165: 999999 | L165: 0 | M165: 495.03 | N165: 0 | O165: 35 | P165: 35 | Q165: 0 | R165: 20191231
B166: 1 | C166: T03803 | D166: TECNICO MEDIO | E166: P | F166: 2 | G166: 100 | H166: 47 | I166: 2 | J166: 20190101 | K166: 999999 | L166: 0 | M166: 546.57 | N166: 0 | O166: 35 | P166: 35 | Q166: 0 | R166: 20191231
B167: 1 | C167: T03803 | D167: TECNICO MEDIO | E167: P | F167: 2 | G167: 100 | H167: 47 | I167: 2 | J167: 20190101 | K167: 999999 | L167: 0 | M167: 598.12 | N167: 0 | O167: 35 | P167: 35 | Q167: 0 | R167: 20191231
B168: 1 | C168: T03803 | D168: TECNICO MEDIO | E168: P | F168: 2 | G168: 100 | H168: 47 | I168: 2 | J168: 20190101 | K168: 999999 | L168: 0 | M168: 649.66 | N168: 0 | O168: 35 | P168: 35 | Q168: 0 | R168: 20191231
B169: 1 | C169: T03803 | D169: TECNICO MEDIO | E169: P | F169: 2 | G169: 100 | H169: 47 | I169: 2 | J169: 20190101 | K169: 999999 | L169: 0 | M169: 701.2 | N169: 0 | O169: 35 | P169: 35 | Q169: 0 | R169: 20191231
B170: 1 | C170: T03803 | D170: TECNICO MEDIO | E170: P | F170: 2 | G170: 100 | H170: 47 | I170: 2 | J170: 20190101 | K170: 999999 | L170: 0 | M170: 727.74 | N170: 0 | O170: 35 | P170: 35 | Q170: 0 | R170: 20191231
B171: 1 | C171: T03803 | D171: TECNICO MEDIO | E171: P | F171: 2 | G171: 100 | H171: 47 | I171: 2 | J171: 20190101 | K171: 999999 | L171: 0 | M171: 779.28 | N171: 0 | O171: 35 | P171: 35 | Q171: 0 | R171: 20191231
B172: 1 | C172: T03803 | D172: TECNICO MEDIO | E172: P | F172: 2 | G172: 100 | H172: 47 | I172: 2 | J172: 20190101 | K172: 999999 | L172: 0 | M172: 830.82 | N172: 0 | O172: 35 | P172: 35 | Q172: 0 | R172: 20191231
B173: 1 | C173: T03803 | D173: TECNICO MEDIO | E173: P | F173: 2 | G173: 100 | H173: 47 | I173: 2 | J173: 20190101 | K173: 999999 | L173: 0 | M173: 882.36 | N173: 0 | O173: 35 | P173: 35 | Q173: 0 | R173: 20191231
B174: 1 | C174: T03803 | D174: TECNICO MEDIO | E174: P | F174: 2 | G174: 100 | H174: 47 | I174: 2 | J174: 20190101 | K174: 999999 | L174: 0 | M174: 933.9 | N174: 0 | O174: 35 | P174: 35 | Q174: 0 | R174: 20191231
B175: 1 | C175: T03803 | D175: TECNICO MEDIO | E175: P | F175: 2 | G175: 100 | H175: 47 | I175: 2 | J175: 20190101 | K175: 999999 | L175: 0 | M175: 960.44 | N175: 0 | O175: 35 | P175: 35 | Q175: 0 | R175: 20191231
B176: 1 | C176: T03803 | D176: TECNICO MEDIO | E176: P | F176: 2 | G176: 100 | H176: 47 | I176: 2 | J176: 20190101 | K176: 999999 | L176: 0 | M176: 1011.98 | N176: 0 | O176: 35 | P176: 35 | Q176: 0 | R176: 20191231
B177: 1 | C177: T03803 | D177: TECNICO MEDIO | E177: P | F177: 2 | G177: 100 | H177: 47 | I177: 2 | J177: 20190101 | K177: 999999 | L177: 0 | M177: 1063.53 | N177: 0 | O177: 35 | P177: 35 | Q177: 0 | R177: 20191231
B178: 1 | C178: T03803 | D178: TECNICO MEDIO | E178: P | F178: 2 | G178: 100 | H178: 47 | I178: 2 | J178: 20190101 | K178: 999999 | L178: 0 | M178: 1115.07 | N178: 0 | O178: 35 | P178: 35 | Q178: 0 | R178: 20191231
B179: 1 | C179: T03803 | D179: TECNICO MEDIO | E179: P | F179: 2 | G179: 100 | H179: 47 | I179: 2 | J179: 20190101 | K179: 999999 | L179: 0 | M179: 1166.61 | N179: 0 | O179: 35 | P179: 35 | Q179: 0 | R179: 20191231
B180: 1 | C180: T03803 | D180: TECNICO MEDIO | E180: P | F180: 2 | G180: 100 | H180: 47 | I180: 2 | J180: 20190101 | K180: 999999 | L180: 0 | M180: 1218.15 | N180: 0 | O180: 35 | P180: 35 | Q180: 0 | R180: 20191231
B181: 1 | C181: T03803 | D181: TECNICO MEDIO | E181: P | F181: 2 | G181: 4 | H181: 47 | I181: 2 | J181: 20190101 | K181: 999999 | L181: 0 | M181: 200 | N181: 0 | O181: 35 | P181: 35 | Q181: 0 | R181: 20191231
B182: 1 | C182: T03803 | D182: TECNICO MEDIO | E182: P | F182: 2 | G182: 4 | H182: 47 | I182: 2 | J182: 20190101 | K182: 999999 | L182: 0 | M182: 225 | N182: 0 | O182: 35 | P182: 35 | Q182: 0 | R182: 20191231
B183: 1 | C183: T03803 | D183: TECNICO MEDIO | E183: P | F183: 2 | G183: 4 | H183: 47 | I183: 2 | J183: 20190101 | K183: 999999 | L183: 0 | M183: 125 | N183: 0 | O183: 35 | P183: 35 | Q183: 0 | R183: 20191231
B184: 1 | C184: T03803 | D184: TECNICO MEDIO | E184: P | F184: 2 | G184: 4 | H184: 47 | I184: 2 | J184: 20190101 | K184: 999999 | L184: 0 | M184: 175 | N184: 0 | O184: 35 | P184: 35 | Q184: 0 | R184: 20191231
B185: 1 | C185: T03803 | D185: TECNICO MEDIO | E185: P | F185: 2 | G185: 4 | H185: 47 | I185: 2 | J185: 20190101 | K185: 999999 | L185: 0 | M185: 100 | N185: 0 | O185: 35 | P185: 35 | Q185: 0 | R185: 20191231
B186: 1 | C186: T03803 | D186: TECNICO MEDIO | E186: P | F186: 2 | G186: 20 | H186: 47 | I186: 2 | J186: 20190101 | K186: 999999 | L186: 0 | M186: 1200 | N186: 0 | O186: 35 | P186: 35 | Q186: 0 | R186: 20191231
B187: 1 | C187: T03803 | D187: TECNICO MEDIO | E187: P | F187: 2 | G187: 20 | H187: 47 | I187: 2 | J187: 20190101 | K187: 999999 | L187: 0 | M187: 1200 | N187: 0 | O187: 35 | P187: 35 | Q187: 0 | R187: 20191231
B188: 1 | C188: T03803 | D188: TECNICO MEDIO | E188: P | F188: 2 | G188: 11 | H188: 47 | I188: 2 | J188: 20190101 | K188: 999999 | L188: 0 | M188: 565 | N188: 0 | O188: 35 | P188: 35 | Q188: 0 | R188: 20191231
B189: 1 | C189: T03803 | D189: TECNICO MEDIO | E189: P | F189: 2 | G189: 11 | H189: 47 | I189: 2 | J189: 20190101 | K189: 999999 | L189: 0 | M189: 565 | N189: 0 | O189: 35 | P189: 35 | Q189: 0 | R189: 20191231
B190: 1 | C190: T03804 | D190: TECNICO MEDIO | E190: P | F190: 2 | G190: 6 | H190: 47 | I190: 2 | J190: 20190101 | K190: 999999 | L190: 0 | M190: 7390 | N190: 0 | O190: 35 | P190: 35 | Q190: 0 | R190: 20191231
B191: 1 | C191: T03805 | D191: TECNICO MEDIO | E191: P | F191: 2 | G191: 5 | H191: 47 | I191: 2 | J191: 20190101 | K191: 999999 | L191: 0 | M191: 1662.75 | N191: 0 | O191: 35 | P191: 35 | Q191: 0 | R191: 20191231
B192: 1 | C192: T03806 | D192: TECNICO MEDIO | E192: P | F192: 2 | G192: 7 | H192: 47 | I192: 2 | J192: 20190101 | K192: 999999 | L192: 0 | M192: 1785 | N192: 0 | O192: 35 | P192: 35 | Q192: 0 | R192: 20191231
B193: 1 | C193: T03807 | D193: TECNICO MEDIO | E193: P | F193: 2 | G193: 31 | H193: 47 | I193: 2 | J193: 20190101 | K193: 999999 | L193: 0 | M193: 2217 | N193: 0 | O193: 35 | P193: 35 | Q193: 0 | R193: 20191231
B194: 1 | C194: T03808 | D194: TECNICO MEDIO | E194: P | F194: 2 | G194: 46 | H194: 47 | I194: 2 | J194: 20190101 | K194: 999999 | L194: 0 | M194: 714 | N194: 0 | O194: 35 | P194: 35 | Q194: 0 | R194: 20191231
B195: 1 | C195: T03809 | D195: TECNICO MEDIO | E195: P | F195: 2 | G195: 421 | H195: 47 | I195: 2 | J195: 20190101 | K195: 999999 | L195: 0 | M195: 892.5 | N195: 0 | O195: 35 | P195: 35 | Q195: 0 | R195: 20191231
B196: 1 | C196: T03804 | D196: SECRETARIA C | E196: P | F196: 2 | G196: 1 | H196: 43 | I196: 2 | J196: 20190101 | K196: 999999 | L196: 0 | M196: 6093.65 | N196: 0 | O196: 35 | P196: 35 | Q196: 0 | R196: 20191231
B197: 1 | C197: T03804 | D197: SECRETARIA C | E197: P | F197: 2 | G197: 9 | H197: 43 | I197: 2 | J197: 20190101 | K197: 999999 | L197: 0 | M197: 565 | N197: 0 | O197: 35 | P197: 35 | Q197: 0 | R197: 20191231
B198: 1 | C198: T03804 | D198: SECRETARIA C | E198: P | F198: 2 | G198: 9 | H198: 43 | I198: 2 | J198: 20190101 | K198: 999999 | L198: 0 | M198: 565 | N198: 0 | O198: 35 | P198: 35 | Q198: 0 | R198: 20191231
B199: 1 | C199: T03804 | D199: SECRETARIA C | E199: P | F199: 2 | G199: 12 | H199: 43 | I199: 2 | J199: 20190101 | K199: 999999 | L199: 0 | M199: 565 | N199: 0 | O199: 35 | P199: 35 | Q199: 0 | R199: 20191231
B200: 1 | C200: T03804 | D200: SECRETARIA C | E200: P | F200: 2 | G200: 12 | H200: 43 | I200: 2 | J200: 20190101 | K200: 999999 | L200: 0 | M200: 565 | N200: 0 | O200: 35 | P200: 35 | Q200: 0 | R200: 20191231
B201: 1 | C201: T03804 | D201: SECRETARIA C | E201: P | F201: 2 | G201: 63 | H201: 43 | I201: 2 | J201: 20190101 | K201: 999999 | L201: 0 | M201: 615.84 | N201: 0 | O201: 35 | P201: 35 | Q201: 0 | R201: 20191231
B202: 1 | C202: T03804 | D202: SECRETARIA C | E202: P | F202: 2 | G202: 74 | H202: 43 | I202: 2 | J202: 20190101 | K202: 999999 | L202: 0 | M202: 686.66 | N202: 0 | O202: 35 | P202: 35 | Q202: 0 | R202: 20191231
B203: 1 | C203: T03804 | D203: SECRETARIA C | E203: P | F203: 2 | G203: 15 | H203: 43 | I203: 2 | J203: 20190101 | K203: 999999 | L203: 0 | M203: 184.75 | N203: 0 | O203: 35 | P203: 35 | Q203: 0 | R203: 20191231
B204: 1 | C204: T03804 | D204: SECRETARIA C | E204: P | F204: 2 | G204: 13 | H204: 43 | I204: 2 | J204: 20190101 | K204: 999999 | L204: 0 | M204: 60 | N204: 0 | O204: 35 | P204: 35 | Q204: 0 | R204: 20191231
B205: 1 | C205: T03804 | D205: SECRETARIA C | E205: P | F205: 2 | G205: 13 | H205: 43 | I205: 2 | J205: 20190101 | K205: 999999 | L205: 0 | M205: 80 | N205: 0 | O205: 35 | P205: 35 | Q205: 0 | R205: 20191231
B206: 1 | C206: T03804 | D206: SECRETARIA C | E206: P | F206: 2 | G206: 30 | H206: 43 | I206: 2 | J206: 20190101 | K206: 999999 | L206: 0 | M206: 291.42 | N206: 0 | O206: 35 | P206: 35 | Q206: 0 | R206: 20191231
B207: 1 | C207: T03804 | D207: SECRETARIA C | E207: P | F207: 2 | G207: 21 | H207: 43 | I207: 2 | J207: 20190101 | K207: 999999 | L207: 0 | M207: 2000 | N207: 0 | O207: 35 | P207: 35 | Q207: 0 | R207: 20191231
B208: 1 | C208: T03804 | D208: SECRETARIA C | E208: P | F208: 2 | G208: 100 | H208: 43 | I208: 2 | J208: 20190101 | K208: 999999 | L208: 0 | M208: 54.62 | N208: 0 | O208: 35 | P208: 35 | Q208: 0 | R208: 20191231
B209: 1 | C209: T03804 | D209: SECRETARIA C | E209: P | F209: 2 | G209: 100 | H209: 43 | I209: 2 | J209: 20190101 | K209: 999999 | L209: 0 | M209: 106.16 | N209: 0 | O209: 35 | P209: 35 | Q209: 0 | R209: 20191231
B210: 1 | C210: T03804 | D210: SECRETARIA C | E210: P | F210: 2 | G210: 100 | H210: 43 | I210: 2 | J210: 20190101 | K210: 999999 | L210: 0 | M210: 157.71 | N210: 0 | O210: 35 | P210: 35 | Q210: 0 | R210: 20191231
B211: 1 | C211: T03804 | D211: SECRETARIA C | E211: P | F211: 2 | G211: 100 | H211: 43 | I211: 2 | J211: 20190101 | K211: 999999 | L211: 0 | M211: 209.25 | N211: 0 | O211: 35 | P211: 35 | Q211: 0 | R211: 20191231
B212: 1 | C212: T03804 | D212: SECRETARIA C | E212: P | F212: 2 | G212: 100 | H212: 43 | I212: 2 | J212: 20190101 | K212: 999999 | L212: 0 | M212: 260.79 | N212: 0 | O212: 35 | P212: 35 | Q212: 0 | R212: 20191231
B213: 1 | C213: T03804 | D213: SECRETARIA C | E213: P | F213: 2 | G213: 100 | H213: 43 | I213: 2 | J213: 20190101 | K213: 999999 | L213: 0 | M213: 287.33 | N213: 0 | O213: 35 | P213: 35 | Q213: 0 | R213: 20191231
... 544 more rows

Sheet II D) 7 3
B9: Formato: Catálogo de Percepciones y Deducciones | I9: Entidad Federativa: | J9: =IF('Caratula Resumen'!D21="Elige el Periodo…","",'Caratula Resumen'!D21) -> NAYARIT
B10: =IF('Caratula Resumen'!D22="Elige el Periodo…","",'Caratula Resumen'!D22) -> Fondo de Aportaciones para la Educación Tecnológica y de Adultos/Instituto Nacional para la Educación de los Adultos (FAETA/INEA) | K10: =IF('Caratula Resumen'!D23="Elige el Periodo…","",'Caratula Resumen'!D23) -> 1er. Trimestre
B13: Identificador origen presupuestal de la plaza | C13: Tipo de concepto de pago | D13: Origen de financiamiento del concepto de percepciones. | E13: Porcentaje de participación federal por fuente de recursos | F13: Grupo al que pertenece concepto de pago (Percepción y/o Deducción) | G13: Clave de concepto de pago | H13: Descripción del concepto de pago | I13: Partida presupuestal | J13: Fecha del | K13: Fecha al
B15: Identificador origen presupuestal de la plaza | C15: Tipo de concepto de pago | D15: Origen de financiamiento del concepto de percepciones. | E15: Porcentaje de participación federal por fuente de recursos | F15: Grupo al que pertenece concepto de pago (Percepción y/o Deducción) | G15: Clave de concepto de pago | H15: Descripción del concepto de pago | I15: Partida presupuestal | J15: Fecha del | K15: Fecha al
B16: 1 | C16: P | D16: F | E16: 100 | F16: P0 | G16: 1 | H16: SUELDOS | I16: 83101 | J16: 20190101 | K16: 99999999
B17: 1 | C17: P | D17: F | E17: 100 | F17: P0 | G17: 2 | H17: DIFERENCIA DE SUELDO | I17: 83101 | J17: 20190101 | K17: 99999999
B18: 1 | C18: P | D18: F | E18: 100 | F18: P1 | G18: 3 | H18: CANTIDAD ADICIONAL | I18: 83101 | J18: 20190101 | K18: 99999999
B19: 1 | C19: P | D19: F | E19: 100 | F19: P2 | G19: 4 | H19: QUINQUENIOS | I19: 83101 | J19: 20190101 | K19: 99999999
B20: 1 | C20: P | D20: F | E20: 100 | F20: P2 | G20: 5 | H20: PRIMA VACACIONAL | I20: 83101 | J20: 20190101 | K20: 99999999
B21: 1 | C21: P | D21: F | E21: 100 | F21: P2 | G21: 6 | H21: AGUINALDO | I21: 83101 | J21: 20190101 | K21: 99999999
B22: 1 | C22: P | D22: F | E22: 100 | F22: P2 | G22: 7 | H22: PERMISOS ECONOMICOS | I22: 83101 | J22: 20190101 | K22: 99999999
B23: 1 | C23: P | D23: F | E23: 100 | F23: P1 | G23: 8 | H23: COMPENSACION GARANT. | I23: 83101 | J23: 20190101 | K23: 99999999
B24: 1 | C24: P | D24: F | E24: 100 | F24: P2 | G24: 9 | H24: DESPENSA | I24: 83101 | J24: 20190101 | K24: 99999999
B25: 1 | C25: P | D25: F | E25: 100 | F25: P2 | G25: 10 | H25: OTRAS PRESTACIONES | I25: 83101 | J25: 20190101 | K25: 99999999
B26: 1 | C26: P | D26: F | E26: 100 | F26: P2 | G26: 11 | H26: PREVISION SOCIAL MULTIPLE | I26: 83101 | J26: 20190101 | K26: 99999999
B27: 1 | C27: P | D27: F | E27: 100 | F27: P2 | G27: 12 | H27: AYUDA PARA SERVICIOS | I27: 83101 | J27: 20190101 | K27: 99999999
B28: 1 | C28: P | D28: F | E28: 100 | F28: P2 | G28: 13 | H28: BECAS | I28: 83101 | J28: 20190101 | K28: 99999999
B29: 1 | C29: P | D29: F | E29: 100 | F29: P2 | G29: 14 | H29: AYUDA PARA SERVICIOS | I29: 83101 | J29: 20190101 | K29: 99999999
B30: 1 | C30: P | D30: F | E30: 100 | F30: P2 | G30: 15 | H30: DIAS DE PUNTUALIDAD | I30: 83101 | J30: 20190101 | K30: 99999999
B31: 1 | C31: P | D31: F | E31: 100 | F31: P2 | G31: 17 | H31: RET PRIMA VAC | I31: 83101 | J31: 20190101 | K31: 99999999
B32: 1 | C32: P | D32: F | E32: 100 | F32: P2 | G32: 18 | H32: DIAS ECONOMICOS | I32: 83101 | J32: 20190101 | K32: 99999999
B33: 1 | C33: P | D33: F | E33: 100 | F33: P2 | G33: 20 | H33: CAPACITACION Y DESARROLLO | I33: 83101 | J33: 20190101 | K33: 99999999
B34: 1 | C34: P | D34: F | E34: 100 | F34: P2 | G34: 21 | H34: AYUDA PARA ANTEOJOS | I34: 83101 | J34: 20190101 | K34: 99999999
B35: 1 | C35: P | D35: F | E35: 100 | F35: P2 | G35: 24 | H35: HOMOLOGACION | I35: 83101 | J35: 20190101 | K35: 99999999
B36: 1 | C36: P | D36: F | E36: 100 | F36: P2 | G36: 25 | H36: CANASTA MATERNAL | I36: 83101 | J36: 20190101 | K36: 99999999
B37: 1 | C37: P | D37: F | E37: 100 | F37: P2 | G37: 27 | H37: ESTIMULO X PRODUCC Y CALI | I37: 83101 | J37: 20190101 | K37: 99999999
B38: 1 | C38: P | D38: F | E38: 100 | F38: P2 | G38: 28 | H38: DEVOLUCION CUOTA SIND. | I38: 83101 | J38: 20190101 | K38: 99999999
B39: 1 | C39: P | D39: F | E39: 100 | F39: P2 | G39: 29 | H39: AYUDA PARA ANTEOJOS | I39: 83101 | J39: 20190101 | K39: 99999999
B40: 1 | C40: P | D40: F | E40: 100 | F40: P2 | G40: 30 | H40: GUARDERIA | I40: 83101 | J40: 20190101 | K40: 99999999
B41: 1 | C41: P | D41: F | E41: 100 | F41: P2 | G41: 31 | H41: PUNTUALIDAD PERFECTA | I41: 83101 | J41: 20190101 | K41: 99999999
B42: 1 | C42: P | D42: F | E42: 100 | F42: P2 | G42: 32 | H42: RETROACTIVO PRIMA VAC | I42: 83101 | J42: 20190101 | K42: 99999999
B43: 1 | C43: P | D43: F | E43: 100 | F43: P2 | G43: 35 | H43: BONO A LA PROD. Y EFIC. | I43: 83101 | J43: 20190101 | K43: 99999999
B44: 1 | C44: P | D44: F | E44: 100 | F44: P2 | G44: 36 | H44: REROACTIVO COMP. GARANTI | I44: 83101 | J44: 20190101 | K44: 99999999
B45: 1 | C45: P | D45: F | E45: 100 | F45: P2 | G45: 37 | H45: RETROAC. PREV. SOCIAL | I45: 83101 | J45: 20190101 | K45: 99999999
B46: 1 | C46: P | D46: F | E46: 100 | F46: P2 | G46: 40 | H46: RETROACTIVO DESPENSA | I46: 83101 | J46: 20190101 | K46: 99999999
B47: 1 | C47: P | D47: F | E47: 100 | F47: P2 | G47: 41 | H47: RETROACTIVO PUNTUALIDAD | I47: 83101 | J47: 20190101 | K47: 99999999
B48: 1 | C48: P | D48: F | E48: 100 | F48: P2 | G48: 42 | H48: RETROACTIVO P/ ANTIGUEDAD | I48: 83101 | J48: 20190101 | K48: 99999999
B49: 1 | C49: P | D49: F | E49: 100 | F49: P2 | G49: 43 | H49: RETROACTIVO AYUDA P/SERV. | I49: 83101 | J49: 20190101 | K49: 99999999
B50: 1 | C50: P | D50: F | E50: 100 | F50: P2 | G50: 45 | H50: DEVOLUCION DE GUARDERIA | I50: 83101 | J50: 20190101 | K50: 99999999
B51: 1 | C51: P | D51: F | E51: 100 | F51: P2 | G51: 46 | H51: RECALENDARIZACION | I51: 83101 | J51: 20190101 | K51: 99999999
B52: 1 | C52: P | D52: F | E52: 100 | F52: P2 | G52: 50 | H52: PRIMA DE ANTIGUEDAD | I52: 83101 | J52: 20190101 | K52: 99999999
B53: 1 | C53: P | D53: F | E53: 100 | F53: P2 | G53: 51 | H53: APARATOS ORTOPEDICOS | I53: 83101 | J53: 20190101 | K53: 99999999
B54: 1 | C54: P | D54: F | E54: 100 | F54: P2 | G54: 52 | H54: AYUDA TITULACION | I54: 83101 | J54: 20190101 | K54: 99999999
B55: 1 | C55: P | D55: F | E55: 100 | F55: P2 | G55: 53 | H55: RETRO AYUDA P/ANTEOJOS | I55: 83101 | J55: 20190101 | K55: 99999999
B56: 1 | C56: P | D56: F | E56: 100 | F56: P2 | G56: 54 | H56: APARATOS ORTOPEDICOS | I56: 83101 | J56: 20190101 | K56: 99999999
B57: 1 | C57: P | D57: F | E57: 100 | F57: P2 | G57: 55 | H57: CANASTILLA MATERNAL | I57: 83101 | J57: 20190101 | K57: 99999999
B58: 1 | C58: P | D58: F | E58: 100 | F58: P2 | G58: 56 | H58: RETR TRANSPORTE | I58: 83101 | J58: 20190101 | K58: 99999999
B59: 1 | C59: P | D59: F | E59: 100 | F59: P2 | G59: 57 | H59: RETR CAPAC. Y DESARROLLO | I59: 83101 | J59: 20190101 | K59: 99999999
B60: 1 | C60: P | D60: F | E60: 100 | F60: P2 | G60: 60 | H60: GRATIFICACION POR RENUNCI | I60: 83101 | J60: 20190101 | K60: 99999999
B61: 1 | C61: P | D61: F | E61: 100 | F61: P2 | G61: 62 | H61: 10 , 15, 20 Y 25 AÑOS | I61: 83101 | J61: 20190101 | K61: 99999999
B62: 1 | C62: P | D62: F | E62: 100 | F62: P2 | G62: 63 | H62: PROFESIONALIZACION B | I62: 83101 | J62: 20190101 | K62: 99999999
B63: 1 | C63: P | D63: F | E63: 100 | F63: P2 | G63: 64 | H63: PAGO POR UNICA VEZ | I63: 83101 | J63: 20190101 | K63: 99999999
B64: 1 | C64: P | D64: F | E64: 100 | F64: P2 | G64: 65 | H64: RETROACT PROFES | I64: 83101 | J64: 20190101 | K64: 99999999
B65: 1 | C65: P | D65: F | E65: 100 | F65: P2 | G65: 66 | H65: RETROACTIVO GUARDERIA | I65: 83101 | J65: 20190101 | K65: 99999999
B66: 1 | C66: P | D66: F | E66: 100 | F66: P2 | G66: 67 | H66: COMPENSACION | I66: 83101 | J66: 20190101 | K66: 99999999
B67: 1 | C67: P | D67: F | E67: 100 | F67: P2 | G67: 69 | H67: DIF. PRIMA ANTIGUEDAD | I67: 83101 | J67: 20190101 | K67: 99999999
B68: 1 | C68: P | D68: F | E68: 100 | F68: P2 | G68: 73 | H68: RETRO PROFESIONALIZ..2005 | I68: 83101 | J68: 20190101 | K68: 99999999
B69: 1 | C69: P | D69: F | E69: 100 | F69: P2 | G69: 74 | H69: PROFESIONALIZACION C | I69: 83101 | J69: 20190101 | K69: 99999999
B70: 1 | C70: P | D70: F | E70: 100 | F70: P2 | G70: 75 | H70: RETROACTIVO DE BECAS | I70: 83101 | J70: 20190101 | K70: 99999999
B71: 1 | C71: P | D71: F | E71: 100 | F71: P2 | G71: 78 | H71: DIA ADICIONAL PRIMA VACAC | I71: 83101 | J71: 20190101 | K71: 99999999
B72: 1 | C72: P | D72: F | E72: 100 | F72: P2 | G72: 79 | H72: DIA DEL TRABAJADOR INEA | I72: 83101 | J72: 20190101 | K72: 99999999
B73: 1 | C73: P | D73: F | E73: 100 | F73: P2 | G73: 80 | H73: RETRO PRIMA DE ANTIGUEDAD | I73: 83101 | J73: 20190101 | K73: 99999999
B74: 1 | C74: P | D74: F | E74: 100 | F74: P2 | G74: 101 | H74: VALES DE DESPENSA | I74: 83101 | J74: 20190101 | K74: 99999999
B75: 1 | C75: P | D75: F | E75: 100 | F75: P2 | G75: 102 | H75: PREMIO ADMON PUBLICA | I75: 83101 | J75: 20190101 | K75: 99999999
B76: 1 | C76: P | D76: F | E76: 100 | F76: P2 | G76: 104 | H76: RETROACTIVO QUINQUENIO | I76: 83101 | J76: 20190101 | K76: 99999999
B77: 1 | C77: P | D77: F | E77: 100 | F77: P2 | G77: 105 | H77: DIFERENCIA DE AGUINALDO | I77: 83101 | J77: 20190101 | K77: 99999999
B78: 1 | C78: P | D78: F | E78: 100 | F78: P2 | G78: 114 | H78: AYUDA DE TRANSPORTE 2009 | I78: 83101 | J78: 20190101 | K78: 99999999
B79: 1 | C79: P | D79: F | E79: 100 | F79: P2 | G79: 206 | H79: AGUINALDO COMPENSACION | I79: 83101 | J79: 20190101 | K79: 99999999
B80: 1 | C80: P | D80: F | E80: 100 | F80: P2 | G80: 401 | H80: RETROACTIVO SUELDO | I80: 83101 | J80: 20190101 | K80: 99999999
B81: 1 | C81: P | D81: F | E81: 100 | F81: P2 | G81: 402 | H81: RETROACTIVO CANTIDAD ADIC | I81: 83101 | J81: 20190101 | K81: 99999999
B82: 1 | C82: P | D82: F | E82: 100 | F82: P2 | G82: 403 | H82: DIF. CANTIDAD ADICIONAL | I82: 83101 | J82: 20190101 | K82: 99999999
B83: 1 | C83: P | D83: F | E83: 100 | F83: P2 | G83: 404 | H83: RETROACTIVO COMPENSACION | I83: 83101 | J83: 20190101 | K83: 99999999
B84: 1 | C84: P | D84: F | E84: 100 | F84: P2 | G84: 405 | H84: DIF. PRIMA VACACIONAL | I84: 83101 | J84: 20190101 | K84: 99999999
B85: 1 | C85: P | D85: F | E85: 100 | F85: P2 | G85: 406 | H85: RETROAC. COMPENS. EXTRA | I85: 83101 | J85: 20190101 | K85: 99999999
B86: 1 | C86: P | D86: F | E86: 100 | F86: P2 | G86: 408 | H86: DIF. COMP. GARANT. | I86: 83101 | J86: 20190101 | K86: 99999999
B87: 1 | C87: P | D87: F | E87: 100 | F87: P2 | G87: 415 | H87: DIF. DIAS DE PUNTUALIDAD | I87: 83101 | J87: 20190101 | K87: 99999999
B88: 1 | C88: P | D88: F | E88: 100 | F88: P2 | G88: 418 | H88: DIF. DIAS ECONOMICOS | I88: 83101 | J88: 20190101 | K88: 99999999
B89: 1 | C89: P | D89: F | E89: 100 | F89: P2 | G89: 420 | H89: A TRANSPORTE | I89: 83101 | J89: 20190101 | K89: 99999999
B90: 1 | C90: P | D90: F | E90: 100 | F90: P2 | G90: 421 | H90: ESTIMULO NOTAS BUENAS | I90: 83101 | J90: 20190101 | K90: 99999999
B91: 1 | C91: D | E91: 100 | F91: D2 | G91: 500 | H91: SUSPENSIONES | I91: 83101 | J91: 20190101 | K91: 99999999
B92: 1 | C92: D | E92: 100 | F92: D2 | G92: 503 | H92: DEVOLUCION AGUINALDO | I92: 83101 | J92: 20190101 | K92: 99999999
B93: 1 | C93: D | E93: 100 | F93: D2 | G93: 525 | H93: FONDO AHORRO RET. SNTEA | I93: 83101 | J93: 20190101 | K93: 99999999
B94: 1 | C94: D | E94: 100 | F94: D2 | G94: 527 | H94: APOYO GASTOS FUNERAL | I94: 83101 | J94: 20190101 | K94: 99999999
B95: 1 | C95: D | E95: 100 | F95: D1 | G95: 530 | H95: ISR | I95: 83101 | J95: 20190101 | K95: 99999999
B96: 1 | C96: D | E96: 100 | F96: D1 | G96: 533 | H96: I.S.R. ESTIMULO 10-15 Y 2 | I96: 83101 | J96: 20190101 | K96: 99999999
B97: 1 | C97: D | E97: 100 | F97: D2 | G97: 534 | H97: FALTAS | I97: 83101 | J97: 20190101 | K97: 99999999
B98: 1 | C98: D | E98: 100 | F98: D1 | G98: 535 | H98: IMPUESTO AGUINALDO | I98: 83101 | J98: 20190101 | K98: 99999999
B99: 1 | C99: D | E99: 100 | F99: D1 | G99: 540 | H99: FONDO/PENSION ISSSTE | I99: 83101 | J99: 20190101 | K99: 99999999
B100: 1 | C100: D | E100: 100 | F100: D1 | G100: 541 | H100: SERV.MED/MAT. ISSSTE | I100: 83101 | J100: 20190101 | K100: 99999999
B101: 1 | C101: D | E101: 100 | F101: D2 | G101: 542 | H101: PRESTAMO C.P. ISSSTE | I101: 83101 | J101: 20190101 | K101: 99999999
B102: 1 | C102: D | E102: 100 | F102: D2 | G102: 543 | H102: PRESTAMO M.P. ISSSTE | I102: 83101 | J102: 20190101 | K102: 99999999
B103: 1 | C103: D | E103: 100 | F103: D2 | G103: 544 | H103: PRES. HIP. FOVISSSTE | I103: 83101 | J103: 20190101 | K103: 99999999
B104: 1 | C104: D | E104: 100 | F104: D2 | G104: 545 | H104: PRESTAMO COMP. ISSSTE | I104: 83101 | J104: 20190101 | K104: 99999999
B105: 1 | C105: D | E105: 100 | F105: D2 | G105: 549 | H105: DESCUENTO DE COMPENSACION | I105: 83101 | J105: 20190101 | K105: 99999999
B106: 1 | C106: D | E106: 100 | F106: D2 | G106: 550 | H106: CUOTA SINDICAL | I106: 83101 | J106: 20190101 | K106: 99999999
B107: 1 | C107: D | E107: 100 | F107: D2 | G107: 551 | H107: PENSION ALIMENTICIA | I107: 83101 | J107: 20190101 | K107: 99999999
B108: 1 | C108: D | E108: 100 | F108: D2 | G108: 552 | H108: COMPLEMENTO PENSION A | I108: 83101 | J108: 20190101 | K108: 99999999
B109: 1 | C109: D | E109: 100 | F109: D2 | G109: 553 | H109: AJUSTE DE GUARDERIA | I109: 83101 | J109: 20190101 | K109: 99999999
B110: 1 | C110: D | E110: 100 | F110: D3 | G110: 555 | H110: CREDITO INFONACOT | I110: 83101 | J110: 20190101 | K110: 99999999
B111: 1 | C111: D | E111: 100 | F111: D2 | G111: 562 | H111: SEG. VIDA IND AHISA | I111: 83101 | J111: 20190101 | K111: 99999999
B112: 1 | C112: D | E112: 100 | F112: D2 | G112: 563 | H112: SEGURO COL. DE RETIRO | I112: 83101 | J112: 20190101 | K112: 99999999
B113: 1 | C113: D | E113: 100 | F113: D2 | G113: 564 | H113: POT. SEGURO DE VIDA | I113: 83101 | J113: 20190101 | K113: 99999999
B114: 1 | C114: D | E114: 100 | F114: D2 | G114: 567 | H114: RETROACTIVO POTEN | I114: 83101 | J114: 20190101 | K114: 99999999
B115: 1 | C115: D | E115: 100 | F115: D2 | G115: 568 | H115: DEVOLUC. SEGURO RETIRO | I115: 83101 | J115: 20190101 | K115: 99999999
B116: 1 | C116: D | E116: 100 | F116: D2 | G116: 569 | H116: AJUSTE FONAC | I116: 83101 | J116: 20190101 | K116: 99999999
B117: 1 | C117: D | E117: 100 | F117: D2 | G117: 570 | H117: ANTICIPO DE SUELDO | I117: 83101 | J117: 20190101 | K117: 99999999
B118: 1 | C118: D | E118: 100 | F118: D2 | G118: 571 | H118: FONDO DE AHORRO CAP. | I118: 83101 | J118: 20190101 | K118: 99999999
B119: 1 | C119: D | E119: 100 | F119: D2 | G119: 572 | H119: SEGURO DE DAÑOS | I119: 83101 | J119: 20190101 | K119: 99999999
B120: 1 | C120: D | E120: 100 | F120: D1 | G120: 573 | H120: I.S.R. PROFES | I120: 83101 | J120: 20190101 | K120: 99999999
B121: 1 | C121: D | E121: 100 | F121: D3 | G121: 574 | H121: SERVICIOS FUNERARIOS | I121: 83101 | J121: 20190101 | K121: 99999999
B122: 1 | C122: D | E122: 100 | F122: D2 | G122: 578 | H122: SEGUROS FOVISSSTE | I122: 83101 | J122: 20190101 | K122: 99999999
B123: 1 | C123: D | E123: 100 | F123: D2 | G123: 580 | H123: RETROACTIVO FONAC | I123: 83101 | J123: 20190101 | K123: 99999999
B124: 1 | C124: D | E124: 100 | F124: D2 | G124: 582 | H124: ADEUDO PENSION ALIMENTIC. | I124: 83101 | J124: 20190101 | K124: 99999999
B125: 1 | C125: D | E125: 100 | F125: D1 | G125: 583 | H125: I.S.R. PREST. PERS. CONF. | I125: 83101 | J125: 20190101 | K125: 99999999
B126: 1 | C126: D | E126: 100 | F126: D2 | G126: 584 | H126: DEVOLUCION SEGURO POTEN | I126: 83101 | J126: 20190101 | K126: 99999999
B127: 1 | C127: D | E127: 100 | F127: D2 | G127: 585 | H127: OTRA DEDUCCION | I127: 83101 | J127: 20190101 | K127: 99999999
B128: 1 | C128: D | E128: 100 | F128: D3 | G128: 586 | H128: DEVOLUCION INFONACOT | I128: 83101 | J128: 20190101 | K128: 99999999
B129: 1 | C129: D | E129: 100 | F129: D1 | G129: 587 | H129: RETRO 6.125% | I129: 83101 | J129: 20190101 | K129: 99999999
B130: 1 | C130: D | E130: 100 | F130: D1 | G130: 589 | H130: AHORRO SOLIDARIO | I130: 83101 | J130: 20190101 | K130: 99999999
B131: 1 | C131: D | E131: 100 | F131: D1 | G131: 590 | H131: DEV AHORRO SOLIDARIO | I131: 83101 | J131: 20190101 | K131: 99999999
B132: 1 | C132: D | E132: 100 | F132: D1 | G132: 591 | H132: RECUP AHORRO SOL | I132: 83101 | J132: 20190101 | K132: 99999999
B133: Fuente : Información proporcionada por las Entidades Federativas

Sheet E)
B9: Formato: Trabajadores que Cobran con RFC / CURP con Formato Incorrecto
B10: =IF('Caratula Resumen'!D22="Elige el Periodo…","",'Caratula Resumen'!D22) -> Fondo de Aportaciones para la Educación Tecnológica y de Adultos/Instituto Nacional para la Educación de los Adultos (FAETA/INEA) | H10: =IF('Caratula Resumen'!D23="Elige el Periodo…","",'Caratula Resumen'!D23) -> 1er. Trimestre
B13: Entidad Federativa | C13: RFC | D13: CURP | E13: NOMBRE TRABAJADOR | F13: Motivo
F14: Sin RFC o erroneo | G14: RFC Sin Homoclave | H14: Sin CURP o Erronea
B17: Entidad Federativa | C17: RFC | D17: CURP | E17: NOMBRE TRABAJADOR | F17: Sin RFC o erroneo | G17: RFC Sin Homoclave | H17: Sin CURP o Erronea
B25: Total Personas : | E25: Total Sin RFC o Erroneo:
F26: Total RFC Sin Homoclave:
G27: Total Sin CURP o Erroneo:
B28: Fuente : Información proporcionada por las Entidades Federativas

Sheet F) 1
B9: Formato: Trabajadores con Doble Asignación Salarial en Municipios no Colindantes Geográficamente
B10: =IF('Caratula Resumen'!D22="Elige el Periodo…","",'Caratula Resumen'!D22) -> Fondo de Aportaciones para la Educación Tecnológica y de Adultos/Instituto Nacional para la Educación de los Adultos (FAETA/INEA) | S10: =IF('Caratula Resumen'!D23="Elige el Periodo…","",'Caratula Resumen'!D23) -> 1er. Trimestre
B13: Entidad Federativa | C13: Municipio | D13: Localidad | E13: RFC | F13: CURP | G13: Nombre del Trabajador | H13: Clave integrada | I13: Clave Presupuestal | P13: Clave CT | Q13: Nombre CT | R13: Periodo en el CT
I14: Partida Presupuestal | J14: Código de Pago | K14: Clave de Unidad | L14: Clave de Sub Unidad | M14: Clave de Categoría | N14: Horas Semana Mes | O14: Número de Plaza | R14: Desde | S14: Hasta
B16: Entidad Federativa | C16: Municipio | D16: Localidad | E16: RFC | F16: CURP | G16: Nombre del Trabajador | H16: Clave integrada | I16: Partida Presupuestal | J16: Código de Pago | K16: Clave de Unidad | L16: Clave de Sub Unidad | M16: Clave de Categoría | N16: Horas semana mes | O16: Número de Plaza | P16: Clave CT | Q16: Nombre CT | R16: Periodo en el CT Desde | S16: Periodo en el CTH asta
C24: Total Personas : | M24: Total Plazas :
B27: Fuente : Información proporcionada por las Entidades Federativas
B28: Importante: Listar Sólo los Municipios no Colindantes

Sheet F) 2
B10: Formato: Trabajadores Ocupando Plazas que Superan el Número de Horas de Compatibilidad Autorizadas
B11: =IF('Caratula Resumen'!D22="Elige el Periodo…","",'Caratula Resumen'!D22) -> Fondo de Aportaciones para la Educación Tecnológica y de Adultos/Instituto Nacional para la Educación de los Adultos (FAETA/INEA) | S11: =IF('Caratula Resumen'!D23="Elige el Periodo…","",'Caratula Resumen'!D23) -> 1er. Trimestre
B14: Entidad Federativa | C14: RFC | D14: CURP | E14: Nombre | F14: Clave integrada | G14: Clave Presupuestal | N14: CT | O14: Nombre CT | P14: Turno CT | Q14: Periodo | S14: Total de Horas en el CT | T14: Horas de compatibilidad de la categoría
G15: Partida Presupuestal | H15: Código de Pago | I15: Clave de Unidad | J15: Clave de Sub Unidad | K15: Clave de Categoría | L15: Horas Semana Mes | M15: Número de Plaza | Q15: Desde | R15: Hasta
B17: Entidad Federativa | C17: RFC | D17: CURP | E17: Nombre | F17: Clave integrada | G17: Partida Presupuestal | H17: Código de Pago | I17: Clave de Unidad | J17: Clave de Sub Unidad | K17: Clave de Categoría | L17: Horas semana mes | M17: Número de plaza | N17: CT | O17: Nombre CT | P17: Turno CT | Q17: Periodo Desde | R17: Periodo Hasta | S17: Total de Horas en el CT | T17: Horas de compatibilidad de la categoría
B25: Total Personas : | K25: Total Plazas :
B28: Fuente : Información proporcionada por las Entidades Federativas

Sheet G)
B10: Formato: Trabajadores Cuyo Salario Básico Supere los Ingresos Promedio de un Docente en la Categoría más Alta del Tabulador Salarial Correspondiente a Cada Entidad
B11: =IF('Caratula Resumen'!D22="Elige el Periodo…","",'Caratula Resumen'!D22) -> Fondo de Aportaciones para la Educación Tecnológica y de Adultos/Instituto Nacional para la Educación de los Adultos (FAETA/INEA) | T11: =IF('Caratula Resumen'!D23="Elige el Periodo…","",'Caratula Resumen'!D23) -> 1er. Trimestre
B14: Entidad Federativa | C14: R.F.C. | D14: CURP | E14: Nombre | F14: Clave integrada | G14: Clave Presupuestal Integrada y Categoria aparte | N14: Clave CT Origen | O14: Nombre CT | P14: Periodo | R14: Monto de Remuneraciones Mensuales | S14: Monto de referencia | T14: Diferencia (R-S)
G15: Partida Presupuestal | H15: Código de Pago | I15: Clave de Unidad | J15: Clave de Sub Unidad | K15: Clave de Categoría | L15: Horas Semana Mes | M15: Número de Plaza | P15: Desde | Q15: Hasta
B17: Entidad Federativa | C17: R.F.C. | D17: CURP | E17: Nombre | F17: Clave integrada | G17: Partida Presupuestal | H17: Código de Pago | I17: Clave de Unidad | J17: Clave de Sub Unidad | K17: Clave de Categoría | L17: Horas Semana Mes | M17: No. de plaza | N17: CT | O17: Nombre CT | P17: Periodo Desde | Q17: Periodo Hasta | R17: Monto de Remuneraciones Mensuales | S17: Monto de referencia | T17: Diferencia (R-S)
B25: Total Personas : | O25: Total Remuneraciones Mensuales:
R27: Total Diferencia:
B29: Fuente : Información proporcionada por las Entidades Federativas

Sheet Listas (hidden)
B4: Elige un Fondo…
B5: Fondo de Aportaciones para la Educación Básica y Normal (FAEB)
B6: Fondo de Aportaciones para la Educación Tecnológica y de Adultos/Colegio Nacional de Educación Profesional Técnica (FAETA/CONALEP)
B7: Fondo de Aportaciones para la Educación Tecnológica y de Adultos/Instituto Nacional para la Educación de los Adultos (FAETA/INEA)
H10: Elige la Entidad Federativa…
B11: Elige el Periodo… | H11: AGUASCALIENTES
B12: 1er. Trimestre | H12: BAJA CALIFORNIA
B13: 2do. Trimestre | H13: BAJA CALIFORNIA SUR
B14: 3er. Trimestre | H14: CAMPECHE
B15: 4to. Trimestre | H15: COAHUILA
D16: Elige el Año… | H16: COLIMA
D17: 2013 | H17: CHIAPAS
D18: 2014 | H18: CHIHUAHUA
D19: 2015 | H19: DISTRITO FEDERAL
D20: 2016 | H20: DURANGO
D21: 2017 | H21: GUANAJUATO
D22: 2018 | H22: GUERRERO
H23: HIDALGO
H24: JALISCO
H25: MEXICO
H26: MICHOACAN
H27: MORELOS
H28: NAYARIT
H29: NUEVO LEON
H30: OAXACA
H31: PUEBLA
H32: QUERETARO
H33: QUINTANA ROO
H34: SAN LUIS
H35: SINALOA
H36: SONORA
H37: TABASCO
H38: TAMAULIPAS
H39: TLAXCALA
H40: VERACRUZ
H41: YUCATÁN
H42: ZACATECAS
